Body_Code,Body_Name,Service,GL Code,GL Code Desc,Posting Date,Doc Number,Doc Net Amount,Supplier Name
http://statistics.data.gov.uk/id/local-authority/38,Oxfordshire County Council,ICT Operations & Maintenance,5086,Other Communications,10/07/2017,2200376136,910.77,(aq) Ltd
http://statistics.data.gov.uk/id/local-authority/38,Oxfordshire County Council,ICT Operations & Maintenance,5039,ITC Services,12/07/2017,2200377190,944.97,(aq) Ltd
http://statistics.data.gov.uk/id/local-authority/38,Oxfordshire County Council,MAINSTREAM-PRIMARY,4330,Transport to School Activities,04/07/2017,3110242861,522,001 Alpha Cars Ltd
http://statistics.data.gov.uk/id/local-authority/38,Oxfordshire County Council,TRANSPORT COSTS,4330,Transport to School Activities,13/07/2017,3110246734,560,001 Alpha Cars Ltd
http://statistics.data.gov.uk/id/local-authority/38,Oxfordshire County Council,TRANSPORT COSTS,4330,Transport to School Activities,13/07/2017,3110246733,561,001 Alpha Cars Ltd
http://statistics.data.gov.uk/id/local-authority/38,Oxfordshire County Council,SEN TRANSPORT,4330,Transport to School Activities,27/07/2017,3110251655,587.52,001 Alpha Cars Ltd
http://statistics.data.gov.uk/id/local-authority/38,Oxfordshire County Council,MEADOWBROOK TRANSPT,4330,Transport to School Activities,27/07/2017,3110251644,638,001 Alpha Cars Ltd
http://statistics.data.gov.uk/id/local-authority/38,Oxfordshire County Council,MAINSTREAM-SECONDARY,4330,Transport to School Activities,27/07/2017,3110251656,658.92,001 Alpha Cars Ltd
http://statistics.data.gov.uk/id/local-authority/38,Oxfordshire County Council,TRANSPORT COSTS,4330,Transport to School Activities,13/07/2017,3110246690,680,001 Alpha Cars Ltd
http://statistics.data.gov.uk/id/local-authority/38,Oxfordshire County Council,Care Packages & Placements- LD - OCC,5227,Other Transport Arrangements,17/07/2017,3110246941,894.22,001 Alpha Cars Ltd
http://statistics.data.gov.uk/id/local-authority/38,Oxfordshire County Council,MAINSTREAM-SECONDARY,4330,Transport to School Activities,27/07/2017,3110251647,"1,102.00",001 Alpha Cars Ltd
http://statistics.data.gov.uk/id/local-authority/38,Oxfordshire County Council,LOOKED AFTER CITY 1,4330,Transport to School Activities,13/07/2017,3110246730,"1,120.00",001 Alpha Cars Ltd
http://statistics.data.gov.uk/id/local-authority/38,Oxfordshire County Council,Care Packages & Placements- LD - OCC,4314,"Other Trans Contract Costs (CRB, Car Sea",27/07/2017,3110251651,"1,186.00",001 Alpha Cars Ltd
http://statistics.data.gov.uk/id/local-authority/38,Oxfordshire County Council,TRANSPORT COSTS,4330,Transport to School Activities,13/07/2017,3110246731,"1,368.00",001 Alpha Cars Ltd
http://statistics.data.gov.uk/id/local-authority/38,Oxfordshire County Council,SEN TRANSPORT,4330,Transport to School Activities,27/07/2017,3110251649,"1,468.80",001 Alpha Cars Ltd
http://statistics.data.gov.uk/id/local-authority/38,Oxfordshire County Council,SEN TRANSPORT,4330,Transport to School Activities,27/07/2017,3110251652,"1,521.60",001 Alpha Cars Ltd
http://statistics.data.gov.uk/id/local-authority/38,Oxfordshire County Council,MEADOWBROOK TRANSPT,4330,Transport to School Activities,27/07/2017,3110251658,"1,737.00",001 Alpha Cars Ltd
http://statistics.data.gov.uk/id/local-authority/38,Oxfordshire County Council,MEADOWBROOK TRANSPT,4330,Transport to School Activities,27/07/2017,3110251657,"1,941.00",001 Alpha Cars Ltd
http://statistics.data.gov.uk/id/local-authority/38,Oxfordshire County Council,SEN TRANSPORT,4330,Transport to School Activities,27/07/2017,3110251650,"2,244.00",001 Alpha Cars Ltd
http://statistics.data.gov.uk/id/local-authority/38,Oxfordshire County Council,SEN TRANSPORT,4330,Transport to School Activities,27/07/2017,3110251648,"3,264.00",001 Alpha Cars Ltd
http://statistics.data.gov.uk/id/local-authority/38,Oxfordshire County Council,CSB - DIDCOT,5689,,26/07/2017,3110250129,525.52,1 to 1 Care
http://statistics.data.gov.uk/id/local-authority/38,Oxfordshire County Council,CSB - DIDCOT,5689,,26/07/2017,3110250127,557.09,1 to 1 Care
http://statistics.data.gov.uk/id/local-authority/38,Oxfordshire County Council,Care Packages & Placements- Older People,5689,,26/07/2017,3110250123,680.69,1 to 1 Care
http://statistics.data.gov.uk/id/local-authority/38,Oxfordshire County Council,CSB - DIDCOT,5689,,26/07/2017,3110250121,987.98,1 to 1 Care
http://statistics.data.gov.uk/id/local-authority/38,Oxfordshire County Council,CSB - DIDCOT,5689,,26/07/2017,3110250119,"1,088.71",1 to 1 Care
http://statistics.data.gov.uk/id/local-authority/38,Oxfordshire County Council,CSB - DIDCOT,5689,,26/07/2017,3110250128,"1,125.03",1 to 1 Care
http://statistics.data.gov.uk/id/local-authority/38,Oxfordshire County Council,CSB - CITY,5689,,26/07/2017,3110250117,"1,189.83",1 to 1 Care
http://statistics.data.gov.uk/id/local-authority/38,Oxfordshire County Council,LD CLIENTS SOUTH,5689,,26/07/2017,3110250130,"1,287.25",1 to 1 Care
http://statistics.data.gov.uk/id/local-authority/38,Oxfordshire County Council,Care Packages & Placements- Older People,5689,,26/07/2017,3110250125,"1,289.02",1 to 1 Care
http://statistics.data.gov.uk/id/local-authority/38,Oxfordshire County Council,CSB - DIDCOT,5689,,26/07/2017,3110250120,"1,349.52",1 to 1 Care
http://statistics.data.gov.uk/id/local-authority/38,Oxfordshire County Council,Care Packages & Placements- Older People,5689,,26/07/2017,3110250126,"1,931.20",1 to 1 Care
http://statistics.data.gov.uk/id/local-authority/38,Oxfordshire County Council,Care Packages & Placements- Older People,5689,,26/07/2017,3110250132,"1,989.91",1 to 1 Care
http://statistics.data.gov.uk/id/local-authority/38,Oxfordshire County Council,CSB - CITY,5689,,26/07/2017,3110250118,"2,438.49",1 to 1 Care
http://statistics.data.gov.uk/id/local-authority/38,Oxfordshire County Council,CSB - ABINGDON,5689,,26/07/2017,3110250124,"2,460.67",1 to 1 Care
http://statistics.data.gov.uk/id/local-authority/38,Oxfordshire County Council,Care Packages & Placements- Older People,5688,,20/07/2017,3110248129,532,1st Homecare (Oxford) Ltd
http://statistics.data.gov.uk/id/local-authority/38,Oxfordshire County Council,PD COMM SUPP - CITY,5689,,20/07/2017,3110248128,546.64,1st Homecare (Oxford) Ltd
http://statistics.data.gov.uk/id/local-authority/38,Oxfordshire County Council,LD CLIENTS CITY,5688,,20/07/2017,3110248132,693.5,1st Homecare (Oxford) Ltd
http://statistics.data.gov.uk/id/local-authority/38,Oxfordshire County Council,CSB - CITY,5688,,20/07/2017,3110248130,774.25,1st Homecare (Oxford) Ltd
http://statistics.data.gov.uk/id/local-authority/38,Oxfordshire County Council,OPPB CONTCARE H SUPP,5691,,28/07/2017,3110251691,796.57,1st Homecare (Oxford) Ltd
http://statistics.data.gov.uk/id/local-authority/38,Oxfordshire County Council,LD CLIENTS CITY,5688,,06/07/2017,3110243490,916.75,1st Homecare (Oxford) Ltd
http://statistics.data.gov.uk/id/local-authority/38,Oxfordshire County Council,Care Packages & Placements- Older People,5693,,20/07/2017,3110248125,995.25,1st Homecare (Oxford) Ltd
http://statistics.data.gov.uk/id/local-authority/38,Oxfordshire County Council,LD CLIENTS NORTH,5689,,06/07/2017,3110243480,"1,126.20",1st Homecare (Oxford) Ltd
http://statistics.data.gov.uk/id/local-authority/38,Oxfordshire County Council,CSB - CITY,5688,,20/07/2017,3110248135,"1,254.00",1st Homecare (Oxford) Ltd
http://statistics.data.gov.uk/id/local-authority/38,Oxfordshire County Council,MH COMMUNITY SUP'T,5688,,20/07/2017,3110248131,"1,415.50",1st Homecare (Oxford) Ltd
http://statistics.data.gov.uk/id/local-authority/38,Oxfordshire County Council,OPPB CONTCARE H SUPP,5691,,21/07/2017,3110249265,"1,593.51",1st Homecare (Oxford) Ltd
http://statistics.data.gov.uk/id/local-authority/38,Oxfordshire County Council,LD CLIENTS NORTH,5689,,06/07/2017,3110243491,"1,737.37",1st Homecare (Oxford) Ltd
http://statistics.data.gov.uk/id/local-authority/38,Oxfordshire County Council,LD CLIENTS NORTH,5689,,06/07/2017,3110243488,"1,859.09",1st Homecare (Oxford) Ltd
http://statistics.data.gov.uk/id/local-authority/38,Oxfordshire County Council,CSB - CITY,5688,,20/07/2017,3110248134,"2,436.75",1st Homecare (Oxford) Ltd
http://statistics.data.gov.uk/id/local-authority/38,Oxfordshire County Council,LD CLIENTS NORTH,5689,,06/07/2017,3110243479,"2,593.50",1st Homecare (Oxford) Ltd
http://statistics.data.gov.uk/id/local-authority/38,Oxfordshire County Council,ECH NICHOLSON HOUSE,5688,,13/07/2017,3110246082,"19,199.06",1st Homecare (Oxford) Ltd
http://statistics.data.gov.uk/id/local-authority/38,Oxfordshire County Council,SEN TRANSPORT,5227,Other Transport Arrangements,25/07/2017,3110249652,600,1St Taxis
http://statistics.data.gov.uk/id/local-authority/38,Oxfordshire County Council,MAINSTREAM-SECONDARY,4330,Transport to School Activities,25/07/2017,3110249655,900,1St Taxis
http://statistics.data.gov.uk/id/local-authority/38,Oxfordshire County Council,MAINSTREAM-PRIMARY,4330,Transport to School Activities,25/07/2017,3110249657,"1,080.00",1St Taxis
http://statistics.data.gov.uk/id/local-authority/38,Oxfordshire County Council,MAINSTREAM-PRIMARY,4330,Transport to School Activities,25/07/2017,3110249653,"1,200.00",1St Taxis
http://statistics.data.gov.uk/id/local-authority/38,Oxfordshire County Council,MAINSTREAM-SECONDARY,4330,Transport to School Activities,25/07/2017,3110249654,"1,400.00",1St Taxis
http://statistics.data.gov.uk/id/local-authority/38,Oxfordshire County Council,SEN TRANSPORT,4330,Transport to School Activities,25/07/2017,3110249651,"1,600.00",1St Taxis
http://statistics.data.gov.uk/id/local-authority/38,Oxfordshire County Council,SEN TRANSPORT,4330,Transport to School Activities,25/07/2017,3110249656,"1,650.00",1St Taxis
http://statistics.data.gov.uk/id/local-authority/38,Oxfordshire County Council,MH SPOT FUNDING,5686,,13/07/2017,3110246208,"25,800.87",2 Care
http://statistics.data.gov.uk/id/local-authority/38,Oxfordshire County Council,Rapid Response Reablement Outreach Team,2040,Agency Staff,19/07/2017,2200381335,"-1,265.81",3D Recruit Ltd
http://statistics.data.gov.uk/id/local-authority/38,Oxfordshire County Council,INVEST TO SAVE,2040,Agency Staff,26/07/2017,2200384940,570.04,3D Recruit Ltd
http://statistics.data.gov.uk/id/local-authority/38,Oxfordshire County Council,INVEST TO SAVE,2040,Agency Staff,18/07/2017,2200380235,735.02,3D Recruit Ltd
http://statistics.data.gov.uk/id/local-authority/38,Oxfordshire County Council,INVEST TO SAVE,2040,Agency Staff,18/07/2017,2200380243,739.52,3D Recruit Ltd
http://statistics.data.gov.uk/id/local-authority/38,Oxfordshire County Council,INVEST TO SAVE,2040,Agency Staff,26/07/2017,2200384943,741.77,3D Recruit Ltd
http://statistics.data.gov.uk/id/local-authority/38,Oxfordshire County Council,INVEST TO SAVE,2040,Agency Staff,19/07/2017,2200380857,755.27,3D Recruit Ltd
http://statistics.data.gov.uk/id/local-authority/38,Oxfordshire County Council,Rapid Response Reablement Outreach Team,2040,Agency Staff,13/07/2017,2200377974,773.33,3D Recruit Ltd
http://statistics.data.gov.uk/id/local-authority/38,Oxfordshire County Council,INVEST TO SAVE,2040,Agency Staff,19/07/2017,2200380766,794.04,3D Recruit Ltd
http://statistics.data.gov.uk/id/local-authority/38,Oxfordshire County Council,South Integrated Locality Team,2040,Agency Staff,18/07/2017,2200380505,888.55,3D Recruit Ltd
http://statistics.data.gov.uk/id/local-authority/38,Oxfordshire County Council,South Integrated Locality Team,2040,Agency Staff,21/07/2017,2200383266,947.22,3D Recruit Ltd
http://statistics.data.gov.uk/id/local-authority/38,Oxfordshire County Council,South Integrated Locality Team,2040,Agency Staff,20/07/2017,2200382481,972.37,3D Recruit Ltd
http://statistics.data.gov.uk/id/local-authority/38,Oxfordshire County Council,DISCHARGE TO ASSESS,2040,Agency Staff,14/07/2017,2200378598,975.41,3D Recruit Ltd
http://statistics.data.gov.uk/id/local-authority/38,Oxfordshire County Council,DISCHARGE TO ASSESS,2040,Agency Staff,14/07/2017,2200378595,"1,005.90",3D Recruit Ltd
http://statistics.data.gov.uk/id/local-authority/38,Oxfordshire County Council,ASSESSMENT TEAM NORT,2040,Agency Staff,24/07/2017,2200383929,"1,059.94",3D Recruit Ltd
http://statistics.data.gov.uk/id/local-authority/38,Oxfordshire County Council,DISCHARGE TO ASSESS,2040,Agency Staff,14/07/2017,2200378606,"1,109.09",3D Recruit Ltd
http://statistics.data.gov.uk/id/local-authority/38,Oxfordshire County Council,DTS-Transition Costs,2040,Agency Staff,21/07/2017,2200383292,"1,140.02",3D Recruit Ltd
http://statistics.data.gov.uk/id/local-authority/38,Oxfordshire County Council,City Rapid Respose Team,2040,Agency Staff,31/07/2017,2200386351,"1,140.05",3D Recruit Ltd
http://statistics.data.gov.uk/id/local-authority/38,Oxfordshire County Council,Rapid Response Reablement Outreach Team,2040,Agency Staff,13/07/2017,2200378016,"1,182.44",3D Recruit Ltd
http://statistics.data.gov.uk/id/local-authority/38,Oxfordshire County Council,South Integrated Locality Team,2040,Agency Staff,27/07/2017,2200385218,"1,190.32",3D Recruit Ltd
http://statistics.data.gov.uk/id/local-authority/38,Oxfordshire County Council,Hospital Social Work Team North,2040,Agency Staff,13/07/2017,2200377858,"1,240.61",3D Recruit Ltd
http://statistics.data.gov.uk/id/local-authority/38,Oxfordshire County Council,Delayed Patient Care Beds,2040,Agency Staff,27/07/2017,2200385217,"1,240.61",3D Recruit Ltd
http://statistics.data.gov.uk/id/local-authority/38,Oxfordshire County Council,ASSESSMENT TEAM NORT,2040,Agency Staff,31/07/2017,2200386429,"1,245.61",3D Recruit Ltd
http://statistics.data.gov.uk/id/local-authority/38,Oxfordshire County Council,DISCHARGE TO ASSESS,2040,Agency Staff,14/07/2017,2200378589,"1,247.30",3D Recruit Ltd
http://statistics.data.gov.uk/id/local-authority/38,Oxfordshire County Council,DISCHARGE TO ASSESS,2040,Agency Staff,14/07/2017,2200378592,"1,255.22",3D Recruit Ltd
http://statistics.data.gov.uk/id/local-authority/38,Oxfordshire County Council,City Rapid Respose Team,2040,Agency Staff,18/07/2017,2200380481,"1,257.38",3D Recruit Ltd
http://statistics.data.gov.uk/id/local-authority/38,Oxfordshire County Council,Delayed Patient Care Beds,2040,Agency Staff,13/07/2017,2200378021,"1,258.52",3D Recruit Ltd
http://statistics.data.gov.uk/id/local-authority/38,Oxfordshire County Council,DISCHARGE TO ASSESS,2040,Agency Staff,21/07/2017,2200383296,"1,258.66",3D Recruit Ltd
http://statistics.data.gov.uk/id/local-authority/38,Oxfordshire County Council,Rapid Response Reablement Outreach Team,2040,Agency Staff,27/07/2017,2200385192,"1,260.86",3D Recruit Ltd
http://statistics.data.gov.uk/id/local-authority/38,Oxfordshire County Council,Rapid Response Reablement Outreach Team,2040,Agency Staff,19/07/2017,2200380792,"1,265.81",3D Recruit Ltd
http://statistics.data.gov.uk/id/local-authority/38,Oxfordshire County Council,Rapid Response Reablement Outreach Team,2040,Agency Staff,27/07/2017,2200385529,"1,265.81",3D Recruit Ltd
http://statistics.data.gov.uk/id/local-authority/38,Oxfordshire County Council,DISCHARGE TO ASSESS,2040,Agency Staff,14/07/2017,2200378596,"1,265.98",3D Recruit Ltd
http://statistics.data.gov.uk/id/local-authority/38,Oxfordshire County Council,Delayed Patient Care Beds,2040,Agency Staff,19/07/2017,2200380794,"1,271.56",3D Recruit Ltd
http://statistics.data.gov.uk/id/local-authority/38,Oxfordshire County Council,DISCHARGE TO ASSESS,2040,Agency Staff,14/07/2017,2200378593,"1,273.54",3D Recruit Ltd
http://statistics.data.gov.uk/id/local-authority/38,Oxfordshire County Council,DTS-Transition Costs,2040,Agency Staff,19/07/2017,2200380858,"1,274.14",3D Recruit Ltd
http://statistics.data.gov.uk/id/local-authority/38,Oxfordshire County Council,DISCHARGE TO ASSESS,2040,Agency Staff,20/07/2017,2200382479,"1,281.65",3D Recruit Ltd
http://statistics.data.gov.uk/id/local-authority/38,Oxfordshire County Council,Rapid Response Reablement Outreach Team,2040,Agency Staff,27/07/2017,2200385196,"1,291.06",3D Recruit Ltd
http://statistics.data.gov.uk/id/local-authority/38,Oxfordshire County Council,Delayed Patient Care Beds,2040,Agency Staff,27/07/2017,2200385099,"1,294.34",3D Recruit Ltd
http://statistics.data.gov.uk/id/local-authority/38,Oxfordshire County Council,ASSESSMENT TEAM NORT,2040,Agency Staff,19/07/2017,2200380791,"1,329.41",3D Recruit Ltd
http://statistics.data.gov.uk/id/local-authority/38,Oxfordshire County Council,ASSESSMENT TEAM NORT,2040,Agency Staff,24/07/2017,2200383928,"1,378.69",3D Recruit Ltd
http://statistics.data.gov.uk/id/local-authority/38,Oxfordshire County Council,North FSS Statutory - Witney,2040,Agency Staff,14/07/2017,2200378586,"1,382.02",3D Recruit Ltd
http://statistics.data.gov.uk/id/local-authority/38,Oxfordshire County Council,ASSESSMENT TEAM NORT,2040,Agency Staff,18/07/2017,2200380506,"1,392.41",3D Recruit Ltd
http://statistics.data.gov.uk/id/local-authority/38,Oxfordshire County Council,ASSESSMENT TEAM NORT,2040,Agency Staff,18/07/2017,2200380503,"1,400.06",3D Recruit Ltd
http://statistics.data.gov.uk/id/local-authority/38,Oxfordshire County Council,ASSESSMENT TEAM NORT,2040,Agency Staff,20/07/2017,2200382484,"1,401.86",3D Recruit Ltd
http://statistics.data.gov.uk/id/local-authority/38,Oxfordshire County Council,North FSS Statutory - Witney,2040,Agency Staff,14/07/2017,2200378584,"1,409.38",3D Recruit Ltd
http://statistics.data.gov.uk/id/local-authority/38,Oxfordshire County Council,North FSS Statutory - Witney,2040,Agency Staff,14/07/2017,2200378569,"1,489.52",3D Recruit Ltd
http://statistics.data.gov.uk/id/local-authority/38,Oxfordshire County Council,North FSS Statutory - Witney,2040,Agency Staff,21/07/2017,2200383279,"1,500.32",3D Recruit Ltd
http://statistics.data.gov.uk/id/local-authority/38,Oxfordshire County Council,ASSESSMENT TEAM NORT,2040,Agency Staff,28/07/2017,2200385659,"1,597.61",3D Recruit Ltd
http://statistics.data.gov.uk/id/local-authority/38,Oxfordshire County Council,ADULT PROTECTION,2040,Agency Staff,19/07/2017,2200380871,"1,825.31",3D Recruit Ltd
http://statistics.data.gov.uk/id/local-authority/38,Oxfordshire County Council,ADULT PROTECTION,2040,Agency Staff,21/07/2017,2200383305,"1,839.68",3D Recruit Ltd
http://statistics.data.gov.uk/id/local-authority/38,Oxfordshire County Council,ADULT PROTECTION,2040,Agency Staff,17/07/2017,2200379655,"1,897.17",3D Recruit Ltd
http://statistics.data.gov.uk/id/local-authority/38,Oxfordshire County Council,2 YEAR OLD FUNDING,5537,Payments to Other Establishments,07/07/2017,3110243774,"3,974.40",A B C Nursery
http://statistics.data.gov.uk/id/local-authority/38,Oxfordshire County Council,FOSTERING MAIN,5542,B*Payments to carers,05/07/2017,3110243311,600.6,Redacted Personal Data
http://statistics.data.gov.uk/id/local-authority/38,Oxfordshire County Council,FOSTERING MAIN,5542,B*Payments to carers,19/07/2017,3110247543,520.96,Redacted Personal Data
http://statistics.data.gov.uk/id/local-authority/38,Oxfordshire County Council,FOSTERING MAIN,5415,Residential Activities,19/07/2017,3110247580,683.52,Redacted Personal Data
http://statistics.data.gov.uk/id/local-authority/38,Oxfordshire County Council,FOSTERING MAIN,5549,B*Fostering Allowance - Regulation 38,05/07/2017,3110243313,940.97,Redacted Personal Data
http://statistics.data.gov.uk/id/local-authority/38,Oxfordshire County Council,FOSTERING MAIN,5552,B*Fostering - Retainer Fee,26/07/2017,3110250064,887.21,Redacted Personal Data
http://statistics.data.gov.uk/id/local-authority/38,Oxfordshire County Council,FOSTERING MAIN,5542,B*Payments to carers,05/07/2017,3110243284,"1,077.56",Redacted Personal Data
http://statistics.data.gov.uk/id/local-authority/38,Oxfordshire County Council,FOSTERING MAIN,5542,B*Payments to carers,19/07/2017,3110247554,"1,265.18",Redacted Personal Data
http://statistics.data.gov.uk/id/local-authority/38,Oxfordshire County Council,DISABILITIES TEAM-C,5415,Residential Activities,12/07/2017,3110244890,"1,307.56",Redacted Personal Data
http://statistics.data.gov.uk/id/local-authority/38,Oxfordshire County Council,FOSTERING MAIN,5549,B*Fostering Allowance - Regulation 38,05/07/2017,3110243315,572.96,Redacted Personal Data
http://statistics.data.gov.uk/id/local-authority/38,Oxfordshire County Council,FOSTERING MAIN,5549,B*Fostering Allowance - Regulation 38,12/07/2017,3110244954,572.96,Redacted Personal Data
http://statistics.data.gov.uk/id/local-authority/38,Oxfordshire County Council,FOSTERING MAIN,5549,B*Fostering Allowance - Regulation 38,26/07/2017,3110250079,572.96,Redacted Personal Data
http://statistics.data.gov.uk/id/local-authority/38,Oxfordshire County Council,FOSTERING MAIN,5415,Residential Activities,19/07/2017,3110247583,772.96,Redacted Personal Data
http://statistics.data.gov.uk/id/local-authority/38,Oxfordshire County Council,FOSTERING MAIN,5569,,26/07/2017,3110250013,"1,007.76",Redacted Personal Data
http://statistics.data.gov.uk/id/local-authority/38,Oxfordshire County Council,DISBTY FAM PLACEMENT,5544,B*Fostering - Temp/Respite,19/07/2017,3110247555,503.89,Redacted Personal Data
http://statistics.data.gov.uk/id/local-authority/38,Oxfordshire County Council,TRANSPORT COSTS,4330,Transport to School Activities,03/07/2017,3110242705,"1,116.00",A2B Castle Cars Ltd
http://statistics.data.gov.uk/id/local-authority/38,Oxfordshire County Council,HOMELESS PEOPLE,4861,Hired and Contracted Services,10/07/2017,2200376188,"26,664.92",A2Dominion Housing Group
http://statistics.data.gov.uk/id/local-authority/38,Oxfordshire County Council,OPPB CONTCARE RNCC,5687,,13/07/2017,3110246370,"95,753.84",Abbey Crest Nursing Home
http://statistics.data.gov.uk/id/local-authority/38,Oxfordshire County Council,CORPORATE LANDLORD,3980,Service Charges - Premises,14/07/2017,2200378846,"2,095.00",Abbey Woods Academy
http://statistics.data.gov.uk/id/local-authority/38,Oxfordshire County Council,Care Packages & Placements- Older People,5688,,13/07/2017,3110246317,"1,372.86",Abbeyfield London Polish Society
http://statistics.data.gov.uk/id/local-authority/38,Oxfordshire County Council,Care Packages & Placements- Older People,5689,,26/07/2017,3110250152,556.45,Abicare Services Ltd (Homecare)
http://statistics.data.gov.uk/id/local-authority/38,Oxfordshire County Council,CSB - BANBURY,5689,,26/07/2017,3110250153,577.19,Abicare Services Ltd (Homecare)
http://statistics.data.gov.uk/id/local-authority/38,Oxfordshire County Council,CSB - BANBURY,5689,,26/07/2017,3110250155,626.2,Abicare Services Ltd (Homecare)
http://statistics.data.gov.uk/id/local-authority/38,Oxfordshire County Council,CSB - BANBURY,5689,,26/07/2017,3110250135,702.55,Abicare Services Ltd (Homecare)
http://statistics.data.gov.uk/id/local-authority/38,Oxfordshire County Council,Care Packages & Placements- Older People,5689,,26/07/2017,3110250145,795.55,Abicare Services Ltd (Homecare)
http://statistics.data.gov.uk/id/local-authority/38,Oxfordshire County Council,Care Packages & Placements- Older People,5689,,26/07/2017,3110250156,862.79,Abicare Services Ltd (Homecare)
http://statistics.data.gov.uk/id/local-authority/38,Oxfordshire County Council,Care Packages & Placements- Older People,5689,,26/07/2017,3110250151,950.14,Abicare Services Ltd (Homecare)
http://statistics.data.gov.uk/id/local-authority/38,Oxfordshire County Council,Care Packages & Placements- Older People,5689,,26/07/2017,3110250159,"1,040.38",Abicare Services Ltd (Homecare)
http://statistics.data.gov.uk/id/local-authority/38,Oxfordshire County Council,CSB - BANBURY,5689,,26/07/2017,3110250133,"1,053.73",Abicare Services Ltd (Homecare)
http://statistics.data.gov.uk/id/local-authority/38,Oxfordshire County Council,Care Packages & Placements- Older People,5689,,26/07/2017,3110250149,"1,085.56",Abicare Services Ltd (Homecare)
http://statistics.data.gov.uk/id/local-authority/38,Oxfordshire County Council,Care Packages & Placements- Older People,5689,,26/07/2017,3110250138,"1,116.62",Abicare Services Ltd (Homecare)
http://statistics.data.gov.uk/id/local-authority/38,Oxfordshire County Council,CSB - BANBURY,5689,,26/07/2017,3110250142,"2,116.14",Abicare Services Ltd (Homecare)
http://statistics.data.gov.uk/id/local-authority/38,Oxfordshire County Council,Care Packages & Placements- Older People,5689,,26/07/2017,3110250146,"2,185.26",Abicare Services Ltd (Homecare)
http://statistics.data.gov.uk/id/local-authority/38,Oxfordshire County Council,Care Packages & Placements- LD - Health,5899,Social Care - Direct Payments,12/07/2017,3110244914,"7,220.40",Redacted Personal Data
http://statistics.data.gov.uk/id/local-authority/38,Oxfordshire County Council,SEN TRANSPORT,5227,Other Transport Arrangements,11/07/2017,3110243948,640,Abingdon Taxis FKN Autotaxis
http://statistics.data.gov.uk/id/local-authority/38,Oxfordshire County Council,SEN TRANSPORT,5227,Other Transport Arrangements,11/07/2017,3110243967,640,Abingdon Taxis FKN Autotaxis
http://statistics.data.gov.uk/id/local-authority/38,Oxfordshire County Council,SEN TRANSPORT,5227,Other Transport Arrangements,11/07/2017,3110243976,640,Abingdon Taxis FKN Autotaxis
http://statistics.data.gov.uk/id/local-authority/38,Oxfordshire County Council,SEN TRANSPORT,5227,Other Transport Arrangements,11/07/2017,3110243982,640,Abingdon Taxis FKN Autotaxis
http://statistics.data.gov.uk/id/local-authority/38,Oxfordshire County Council,Care Packages & Placements- LD - OCC,5227,Other Transport Arrangements,06/07/2017,3110243533,748,Abingdon Taxis FKN Autotaxis
http://statistics.data.gov.uk/id/local-authority/38,Oxfordshire County Council,SEN TRANSPORT,5227,Other Transport Arrangements,11/07/2017,3110243940,800,Abingdon Taxis FKN Autotaxis
http://statistics.data.gov.uk/id/local-authority/38,Oxfordshire County Council,TRANSPORT COSTS,4330,Transport to School Activities,06/07/2017,3110243547,815,Abingdon Taxis FKN Autotaxis
http://statistics.data.gov.uk/id/local-authority/38,Oxfordshire County Council,MAINSTREAM-PRIMARY,4330,Transport to School Activities,11/07/2017,3110243988,830.4,Abingdon Taxis FKN Autotaxis
http://statistics.data.gov.uk/id/local-authority/38,Oxfordshire County Council,Care Packages & Placements- LD - OCC,5227,Other Transport Arrangements,06/07/2017,3110243530,919.44,Abingdon Taxis FKN Autotaxis
http://statistics.data.gov.uk/id/local-authority/38,Oxfordshire County Council,TRANSPORT COSTS,4330,Transport to School Activities,06/07/2017,3110243538,937,Abingdon Taxis FKN Autotaxis
http://statistics.data.gov.uk/id/local-authority/38,Oxfordshire County Council,Care Packages & Placements- LD - OCC,5227,Other Transport Arrangements,06/07/2017,3110243531,990,Abingdon Taxis FKN Autotaxis
http://statistics.data.gov.uk/id/local-authority/38,Oxfordshire County Council,Care Packages & Placements- LD - OCC,5227,Other Transport Arrangements,06/07/2017,3110243536,"1,112.00",Abingdon Taxis FKN Autotaxis
http://statistics.data.gov.uk/id/local-authority/38,Oxfordshire County Council,SEN TRANSPORT,4330,Transport to School Activities,12/07/2017,3110246030,"1,254.00",Abingdon Taxis FKN Autotaxis
http://statistics.data.gov.uk/id/local-authority/38,Oxfordshire County Council,SEN TRANSPORT,4330,Transport to School Activities,11/07/2017,3110243970,"1,287.00",Abingdon Taxis FKN Autotaxis
http://statistics.data.gov.uk/id/local-authority/38,Oxfordshire County Council,SEN TRANSPORT,4330,Transport to School Activities,11/07/2017,3110243944,"1,391.67",Abingdon Taxis FKN Autotaxis
http://statistics.data.gov.uk/id/local-authority/38,Oxfordshire County Council,SEN TRANSPORT,4330,Transport to School Activities,11/07/2017,3110243958,"1,404.00",Abingdon Taxis FKN Autotaxis
http://statistics.data.gov.uk/id/local-authority/38,Oxfordshire County Council,TRANSPORT COSTS,4330,Transport to School Activities,06/07/2017,3110243537,"2,257.00",Abingdon Taxis FKN Autotaxis
http://statistics.data.gov.uk/id/local-authority/38,Oxfordshire County Council,SEN TRANSPORT,4330,Transport to School Activities,11/07/2017,3110243973,"2,454.80",Abingdon Taxis FKN Autotaxis
http://statistics.data.gov.uk/id/local-authority/38,Oxfordshire County Council,SEN TRANSPORT,4330,Transport to School Activities,11/07/2017,3110243961,"2,480.00",Abingdon Taxis FKN Autotaxis
http://statistics.data.gov.uk/id/local-authority/38,Oxfordshire County Council,SEN TRANSPORT,4330,Transport to School Activities,11/07/2017,3110243979,"2,800.00",Abingdon Taxis FKN Autotaxis
http://statistics.data.gov.uk/id/local-authority/38,Oxfordshire County Council,SEN TRANSPORT,4330,Transport to School Activities,11/07/2017,3110243964,"3,620.00",Abingdon Taxis FKN Autotaxis
http://statistics.data.gov.uk/id/local-authority/38,Oxfordshire County Council,SEN TRANSPORT,4330,Transport to School Activities,11/07/2017,3110243985,"4,225.00",Abingdon Taxis FKN Autotaxis
http://statistics.data.gov.uk/id/local-authority/38,Oxfordshire County Council,SEN TRANSPORT,4330,Transport to School Activities,11/07/2017,3110243936,"4,480.00",Abingdon Taxis FKN Autotaxis
http://statistics.data.gov.uk/id/local-authority/38,Oxfordshire County Council,ON ST PARK ABINGDON,5526,Payments to Private Contractors,21/07/2017,2200383116,"11,727.85",Abingdon Town Council
http://statistics.data.gov.uk/id/local-authority/38,Oxfordshire County Council,CARE HOME SPOT SOUTH,5686,,13/07/2017,3110246444,"67,001.74",Acacia Lodge Care Home
http://statistics.data.gov.uk/id/local-authority/38,Oxfordshire County Council,MAINSTREAM-SECONDARY,4330,Transport to School Activities,27/07/2017,3110251627,750,Ace Taxis (West Oxfordshire) Ltd
http://statistics.data.gov.uk/id/local-authority/38,Oxfordshire County Council,MAINSTREAM-PRIMARY,4330,Transport to School Activities,27/07/2017,3110251626,850,Ace Taxis (West Oxfordshire) Ltd
http://statistics.data.gov.uk/id/local-authority/38,Oxfordshire County Council,POST 16 SEN,4330,Transport to School Activities,27/07/2017,3110251628,"1,090.00",Ace Taxis (West Oxfordshire) Ltd
http://statistics.data.gov.uk/id/local-authority/38,Oxfordshire County Council,MAINSTREAM-PRIMARY,4330,Transport to School Activities,27/07/2017,3110251623,"1,148.55",Ace Taxis (West Oxfordshire) Ltd
http://statistics.data.gov.uk/id/local-authority/38,Oxfordshire County Council,MAINSTREAM-PRIMARY,4330,Transport to School Activities,27/07/2017,3110251624,"1,185.00",Ace Taxis (West Oxfordshire) Ltd
http://statistics.data.gov.uk/id/local-authority/38,Oxfordshire County Council,MAINSTREAM-PRIMARY,4330,Transport to School Activities,27/07/2017,3110251625,"1,195.00",Ace Taxis (West Oxfordshire) Ltd
http://statistics.data.gov.uk/id/local-authority/38,Oxfordshire County Council,OPPB FAST TRACK,5687,,13/07/2017,3110246549,"166,740.54",ACER HEALTHCARE LTD
http://statistics.data.gov.uk/id/local-authority/38,Oxfordshire County Council,PD COMM SUPP - CITY,5899,Social Care - Direct Payments,12/07/2017,3110244371,"2,424.00",Redacted Personal Data
http://statistics.data.gov.uk/id/local-authority/38,Oxfordshire County Council,ContrO ASC Payments Control Account,5689,,20/07/2017,3110248510,"-4,113.00",Acquire Care Ltd
http://statistics.data.gov.uk/id/local-authority/38,Oxfordshire County Council,Care Packages & Placements- Older People,5689,,20/07/2017,3110248497,551.74,Acquire Care Ltd
http://statistics.data.gov.uk/id/local-authority/38,Oxfordshire County Council,Care Packages & Placements- PD - OCC,5689,,20/07/2017,3110248501,613.74,Acquire Care Ltd
http://statistics.data.gov.uk/id/local-authority/38,Oxfordshire County Council,Care Packages & Placements- Older People,5689,,26/07/2017,3110250162,617.85,Acquire Care Ltd
http://statistics.data.gov.uk/id/local-authority/38,Oxfordshire County Council,Care Packages & Placements- Older People,5689,,20/07/2017,3110248476,618.69,Acquire Care Ltd
http://statistics.data.gov.uk/id/local-authority/38,Oxfordshire County Council,Care Packages & Placements- PD - OCC,5689,,20/07/2017,3110248507,631.27,Acquire Care Ltd
http://statistics.data.gov.uk/id/local-authority/38,Oxfordshire County Council,Care Packages & Placements- PD - OCC,5689,,20/07/2017,3110248508,657.78,Acquire Care Ltd
http://statistics.data.gov.uk/id/local-authority/38,Oxfordshire County Council,CSB - BANBURY,5689,,26/07/2017,3110250164,677.15,Acquire Care Ltd
http://statistics.data.gov.uk/id/local-authority/38,Oxfordshire County Council,Care Packages & Placements- Older People,5689,,20/07/2017,3110248470,693.72,Acquire Care Ltd
http://statistics.data.gov.uk/id/local-authority/38,Oxfordshire County Council,Care Packages & Placements- Older People,5689,,20/07/2017,3110248493,701.36,Acquire Care Ltd
http://statistics.data.gov.uk/id/local-authority/38,Oxfordshire County Council,Care Packages & Placements- Older People,5689,,20/07/2017,3110248451,706.75,Acquire Care Ltd
http://statistics.data.gov.uk/id/local-authority/38,Oxfordshire County Council,Care Packages & Placements- Older People,5689,,20/07/2017,3110248454,720.68,Acquire Care Ltd
http://statistics.data.gov.uk/id/local-authority/38,Oxfordshire County Council,Care Packages & Placements- Older People,5689,,20/07/2017,3110248474,738.65,Acquire Care Ltd
http://statistics.data.gov.uk/id/local-authority/38,Oxfordshire County Council,Care Packages & Placements- Older People,5689,,20/07/2017,3110248449,769.65,Acquire Care Ltd
http://statistics.data.gov.uk/id/local-authority/38,Oxfordshire County Council,Care Packages & Placements- Older People,5689,,26/07/2017,3110250170,786.02,Acquire Care Ltd
http://statistics.data.gov.uk/id/local-authority/38,Oxfordshire County Council,Care Packages & Placements- Older People,5689,,26/07/2017,3110250169,872.55,Acquire Care Ltd
http://statistics.data.gov.uk/id/local-authority/38,Oxfordshire County Council,Care Packages & Placements- Older People,5689,,20/07/2017,3110248487,982.62,Acquire Care Ltd
http://statistics.data.gov.uk/id/local-authority/38,Oxfordshire County Council,Care Packages & Placements- Older People,5689,,20/07/2017,3110248491,"1,031.14",Acquire Care Ltd
http://statistics.data.gov.uk/id/local-authority/38,Oxfordshire County Council,Care Packages & Placements- Older People,5689,,26/07/2017,3110250161,"1,043.35",Acquire Care Ltd
http://statistics.data.gov.uk/id/local-authority/38,Oxfordshire County Council,Care Packages & Placements- Older People,5689,,20/07/2017,3110248450,"1,053.61",Acquire Care Ltd
http://statistics.data.gov.uk/id/local-authority/38,Oxfordshire County Council,Care Packages & Placements- Older People,5689,,20/07/2017,3110248460,"1,071.58",Acquire Care Ltd
http://statistics.data.gov.uk/id/local-authority/38,Oxfordshire County Council,Care Packages & Placements- Older People,5689,,20/07/2017,3110248458,"1,112.02",Acquire Care Ltd
http://statistics.data.gov.uk/id/local-authority/38,Oxfordshire County Council,Care Packages & Placements- Older People,5689,,20/07/2017,3110248496,"1,112.92",Acquire Care Ltd
http://statistics.data.gov.uk/id/local-authority/38,Oxfordshire County Council,Care Packages & Placements- Older People,5689,,26/07/2017,3110250175,"1,121.06",Acquire Care Ltd
http://statistics.data.gov.uk/id/local-authority/38,Oxfordshire County Council,Care Packages & Placements- Older People,5689,,20/07/2017,3110248479,"1,141.22",Acquire Care Ltd
http://statistics.data.gov.uk/id/local-authority/38,Oxfordshire County Council,Care Packages & Placements- Older People,5689,,26/07/2017,3110250173,"1,157.69",Acquire Care Ltd
http://statistics.data.gov.uk/id/local-authority/38,Oxfordshire County Council,Care Packages & Placements- Older People,5689,,26/07/2017,3110250176,"1,260.46",Acquire Care Ltd
http://statistics.data.gov.uk/id/local-authority/38,Oxfordshire County Council,Care Packages & Placements- PD - OCC,5689,,20/07/2017,3110248506,"1,378.45",Acquire Care Ltd
http://statistics.data.gov.uk/id/local-authority/38,Oxfordshire County Council,Care Packages & Placements- Older People,5689,,20/07/2017,3110248466,"1,421.59",Acquire Care Ltd
http://statistics.data.gov.uk/id/local-authority/38,Oxfordshire County Council,Care Packages & Placements- Older People,5689,,20/07/2017,3110248486,"1,433.27",Acquire Care Ltd
http://statistics.data.gov.uk/id/local-authority/38,Oxfordshire County Council,Care Packages & Placements- Older People,5689,,20/07/2017,3110248492,"1,448.54",Acquire Care Ltd
http://statistics.data.gov.uk/id/local-authority/38,Oxfordshire County Council,Care Packages & Placements- Older People,5689,,20/07/2017,3110248485,"1,471.46",Acquire Care Ltd
http://statistics.data.gov.uk/id/local-authority/38,Oxfordshire County Council,Care Packages & Placements- Older People,5689,,20/07/2017,3110248488,"1,477.30",Acquire Care Ltd
http://statistics.data.gov.uk/id/local-authority/38,Oxfordshire County Council,Care Packages & Placements- Older People,5689,,26/07/2017,3110250168,"1,486.42",Acquire Care Ltd
http://statistics.data.gov.uk/id/local-authority/38,Oxfordshire County Council,CSB - CITY,5689,,20/07/2017,3110248448,"1,499.42",Acquire Care Ltd
http://statistics.data.gov.uk/id/local-authority/38,Oxfordshire County Council,Care Packages & Placements- Older People,5689,,20/07/2017,3110248473,"1,502.91",Acquire Care Ltd
http://statistics.data.gov.uk/id/local-authority/38,Oxfordshire County Council,Care Packages & Placements- Older People,5689,,20/07/2017,3110248453,"1,557.72",Acquire Care Ltd
http://statistics.data.gov.uk/id/local-authority/38,Oxfordshire County Council,Care Packages & Placements- Older People,5689,,20/07/2017,3110248465,"1,592.77",Acquire Care Ltd
http://statistics.data.gov.uk/id/local-authority/38,Oxfordshire County Council,Care Packages & Placements- Older People,5689,,20/07/2017,3110248483,"1,628.26",Acquire Care Ltd
http://statistics.data.gov.uk/id/local-authority/38,Oxfordshire County Council,Care Packages & Placements- Older People,5689,,20/07/2017,3110248498,"1,649.83",Acquire Care Ltd
http://statistics.data.gov.uk/id/local-authority/38,Oxfordshire County Council,CSB - BANBURY,5689,,26/07/2017,3110250174,"1,681.63",Acquire Care Ltd
http://statistics.data.gov.uk/id/local-authority/38,Oxfordshire County Council,Care Packages & Placements- Older People,5689,,20/07/2017,3110248464,"1,803.04",Acquire Care Ltd
http://statistics.data.gov.uk/id/local-authority/38,Oxfordshire County Council,Care Packages & Placements- Older People,5689,,20/07/2017,3110248490,"1,900.09",Acquire Care Ltd
http://statistics.data.gov.uk/id/local-authority/38,Oxfordshire County Council,Care Packages & Placements- Older People,5689,,26/07/2017,3110250171,"2,003.16",Acquire Care Ltd
http://statistics.data.gov.uk/id/local-authority/38,Oxfordshire County Council,Care Packages & Placements- Older People,5689,,26/07/2017,3110250160,"2,135.21",Acquire Care Ltd
http://statistics.data.gov.uk/id/local-authority/38,Oxfordshire County Council,Care Packages & Placements- Older People,5689,,20/07/2017,3110248477,"2,140.47",Acquire Care Ltd
http://statistics.data.gov.uk/id/local-authority/38,Oxfordshire County Council,Care Packages & Placements- Older People,5689,,26/07/2017,3110250166,"2,177.51",Acquire Care Ltd
http://statistics.data.gov.uk/id/local-authority/38,Oxfordshire County Council,Care Packages & Placements- Older People,5689,,20/07/2017,3110248468,"2,361.07",Acquire Care Ltd
http://statistics.data.gov.uk/id/local-authority/38,Oxfordshire County Council,Care Packages & Placements- Older People,5689,,26/07/2017,3110250167,"2,572.77",Acquire Care Ltd
http://statistics.data.gov.uk/id/local-authority/38,Oxfordshire County Council,Care Packages & Placements- Older People,5689,,20/07/2017,3110248461,"2,682.77",Acquire Care Ltd
http://statistics.data.gov.uk/id/local-authority/38,Oxfordshire County Council,CSB - BANBURY,5689,,26/07/2017,3110250165,"2,864.97",Acquire Care Ltd
http://statistics.data.gov.uk/id/local-authority/38,Oxfordshire County Council,Care Packages & Placements- Older People,5689,,20/07/2017,3110248457,"2,924.26",Acquire Care Ltd
http://statistics.data.gov.uk/id/local-authority/38,Oxfordshire County Council,PD COMM SUPP BANB,5689,,26/07/2017,3110250163,"2,958.51",Acquire Care Ltd
http://statistics.data.gov.uk/id/local-authority/38,Oxfordshire County Council,Care Packages & Placements- Older People,5689,,20/07/2017,3110248459,"3,052.54",Acquire Care Ltd
http://statistics.data.gov.uk/id/local-authority/38,Oxfordshire County Council,PD COMM SUPP AB'DON,5689,,28/07/2017,3110251759,"3,080.00",Acquire Care Ltd
http://statistics.data.gov.uk/id/local-authority/38,Oxfordshire County Council,Care Packages & Placements- Older People,5689,,20/07/2017,3110248478,"3,202.61",Acquire Care Ltd
http://statistics.data.gov.uk/id/local-authority/38,Oxfordshire County Council,Care Packages & Placements- Older People,5689,,20/07/2017,3110248480,"3,237.21",Acquire Care Ltd
http://statistics.data.gov.uk/id/local-authority/38,Oxfordshire County Council,Care Packages & Placements- PD - OCC,5689,,20/07/2017,3110248504,"3,296.06",Acquire Care Ltd
http://statistics.data.gov.uk/id/local-authority/38,Oxfordshire County Council,Care Packages & Placements- Older People,5689,,20/07/2017,3110248481,"3,306.40",Acquire Care Ltd
http://statistics.data.gov.uk/id/local-authority/38,Oxfordshire County Council,Care Packages & Placements- Older People,5689,,20/07/2017,3110248469,"3,360.76",Acquire Care Ltd
http://statistics.data.gov.uk/id/local-authority/38,Oxfordshire County Council,Care Packages & Placements- Older People,5689,,20/07/2017,3110248463,"3,378.74",Acquire Care Ltd
http://statistics.data.gov.uk/id/local-authority/38,Oxfordshire County Council,Care Packages & Placements- Older People,5689,,20/07/2017,3110248484,"3,487.47",Acquire Care Ltd
http://statistics.data.gov.uk/id/local-authority/38,Oxfordshire County Council,Care Packages & Placements- Older People,5689,,20/07/2017,3110248452,"3,490.16",Acquire Care Ltd
http://statistics.data.gov.uk/id/local-authority/38,Oxfordshire County Council,Care Packages & Placements- Older People,5689,,20/07/2017,3110248471,"3,813.66",Acquire Care Ltd
http://statistics.data.gov.uk/id/local-authority/38,Oxfordshire County Council,Care Packages & Placements- Older People,5689,,20/07/2017,3110248494,"4,101.66",Acquire Care Ltd
http://statistics.data.gov.uk/id/local-authority/38,Oxfordshire County Council,Care Packages & Placements- Older People,5689,,20/07/2017,3110248455,"4,523.55",Acquire Care Ltd
http://statistics.data.gov.uk/id/local-authority/38,Oxfordshire County Council,Care Packages & Placements- Older People,5689,,20/07/2017,3110248482,"4,799.87",Acquire Care Ltd
http://statistics.data.gov.uk/id/local-authority/38,Oxfordshire County Council,Care Packages & Placements- OP Health,5689,,20/07/2017,3110248499,"4,947.69",Acquire Care Ltd
http://statistics.data.gov.uk/id/local-authority/38,Oxfordshire County Council,Care Packages & Placements- PD - OCC,5689,,20/07/2017,3110248500,"5,186.27",Acquire Care Ltd
http://statistics.data.gov.uk/id/local-authority/38,Oxfordshire County Council,PD RES PURCH - SOUTH,5686,,13/07/2017,3110246170,"4,835.87",ACTION ON HEARING LOSS
http://statistics.data.gov.uk/id/local-authority/38,Oxfordshire County Council,PD COMM SUPP - CITY,5688,,13/07/2017,3110246185,"4,990.91",ACTION ON HEARING LOSS
http://statistics.data.gov.uk/id/local-authority/38,Oxfordshire County Council,HN IN SEC SCHOOLS,5537,Payments to Other Establishments,17/07/2017,3110248029,"3,313.00",Activate Learning Education Trust
http://statistics.data.gov.uk/id/local-authority/38,Oxfordshire County Council,Care Packages & Placements- PD - Health,5691,,21/07/2017,3110249251,"1,495.00",ACTIVE ASSISTANCE
http://statistics.data.gov.uk/id/local-authority/38,Oxfordshire County Council,Care Packages & Placements- PD - Health,5691,,21/07/2017,3110249252,"1,495.00",ACTIVE ASSISTANCE
http://statistics.data.gov.uk/id/local-authority/38,Oxfordshire County Council,Care Packages & Placements- PD - Health,5691,,21/07/2017,3110249253,"1,495.00",ACTIVE ASSISTANCE
http://statistics.data.gov.uk/id/local-authority/38,Oxfordshire County Council,Care Packages & Placements- PD - Health,5691,,21/07/2017,3110249254,"1,495.00",ACTIVE ASSISTANCE
http://statistics.data.gov.uk/id/local-authority/38,Oxfordshire County Council,Care Packages & Placements- PD - Health,5691,,21/07/2017,3110249256,"1,495.00",ACTIVE ASSISTANCE
http://statistics.data.gov.uk/id/local-authority/38,Oxfordshire County Council,Care Packages & Placements- PD - Health,5691,,21/07/2017,3110249257,"1,495.00",ACTIVE ASSISTANCE
http://statistics.data.gov.uk/id/local-authority/38,Oxfordshire County Council,Care Packages & Placements- PD - Health,5691,,14/07/2017,3110247042,"1,584.17",ACTIVE ASSISTANCE
http://statistics.data.gov.uk/id/local-authority/38,Oxfordshire County Council,Care Packages & Placements- PD - Health,5691,,14/07/2017,3110247044,"1,584.17",ACTIVE ASSISTANCE
http://statistics.data.gov.uk/id/local-authority/38,Oxfordshire County Council,Care Packages & Placements- PD - Health,5691,,14/07/2017,3110247046,"1,584.17",ACTIVE ASSISTANCE
http://statistics.data.gov.uk/id/local-authority/38,Oxfordshire County Council,Care Packages & Placements- PD - Health,5691,,14/07/2017,3110247049,"1,584.17",ACTIVE ASSISTANCE
http://statistics.data.gov.uk/id/local-authority/38,Oxfordshire County Council,Care Packages & Placements- PD - Health,5691,,21/07/2017,3110249258,"1,584.17",ACTIVE ASSISTANCE
http://statistics.data.gov.uk/id/local-authority/38,Oxfordshire County Council,Care Packages & Placements- OP Health,5691,,14/07/2017,3110247119,"10,093.57",ACTIVE ASSISTANCE
http://statistics.data.gov.uk/id/local-authority/38,Oxfordshire County Council,LD CLIENTS SOUTH,5899,Social Care - Direct Payments,12/07/2017,3110244977,"2,076.92",Redacted Personal Data
http://statistics.data.gov.uk/id/local-authority/38,Oxfordshire County Council,CORPORATE LANDLORD,3945,Rent,01/07/2017,3500031217,"1,251.19",Adderbury PCC
http://statistics.data.gov.uk/id/local-authority/38,Oxfordshire County Council,CORPORATE LANDLORD,3980,Service Charges - Premises,01/07/2017,3500031218,"1,798.62",Adderbury PCC
http://statistics.data.gov.uk/id/local-authority/38,Oxfordshire County Council,RESIDENTIAL TREATMEN,5686,,10/07/2017,2200375656,"1,905.78",Addiction Recovery Centre
http://statistics.data.gov.uk/id/local-authority/38,Oxfordshire County Council,RESIDENTIAL TREATMEN,5686,,10/07/2017,2200375653,"2,485.80",Addiction Recovery Centre
http://statistics.data.gov.uk/id/local-authority/38,Oxfordshire County Council,RESIDENTIAL TREATMEN,5686,,10/07/2017,2200375654,"2,485.80",Addiction Recovery Centre
http://statistics.data.gov.uk/id/local-authority/38,Oxfordshire County Council,LD CLIENTS SOUTH,5689,,13/07/2017,3110246270,777.6,ADVANCE HOUSING & SUPPORT LTD
http://statistics.data.gov.uk/id/local-authority/38,Oxfordshire County Council,Care Packages & Placements- LD - OCC,5690,,13/07/2017,3110246069,919.93,ADVANCE HOUSING & SUPPORT LTD
http://statistics.data.gov.uk/id/local-authority/38,Oxfordshire County Council,LD CLIENTS NORTH,5688,,13/07/2017,3110246194,"14,411.06",ADVANCE HOUSING & SUPPORT LTD
http://statistics.data.gov.uk/id/local-authority/38,Oxfordshire County Council,LD EXT RESP CONTRACT,5544,B*Fostering - Temp/Respite,13/07/2017,3110246181,"16,574.94",ADVANCE HOUSING & SUPPORT LTD
http://statistics.data.gov.uk/id/local-authority/38,Oxfordshire County Council,SM DISABILITIES,5899,Social Care - Direct Payments,27/07/2017,3110251367,517.18,Advance Oxford
http://statistics.data.gov.uk/id/local-authority/38,Oxfordshire County Council,SM DISABILITIES,5899,Social Care - Direct Payments,27/07/2017,3110251361,564.2,Advance Oxford
http://statistics.data.gov.uk/id/local-authority/38,Oxfordshire County Council,SM DISABILITIES,5899,Social Care - Direct Payments,27/07/2017,3110251368,620.13,Advance Oxford
http://statistics.data.gov.uk/id/local-authority/38,Oxfordshire County Council,SM DISABILITIES,5899,Social Care - Direct Payments,27/07/2017,3110251379,640,Advance Oxford
http://statistics.data.gov.uk/id/local-authority/38,Oxfordshire County Council,SM DISABILITIES,5899,Social Care - Direct Payments,27/07/2017,3110251355,752.27,Advance Oxford
http://statistics.data.gov.uk/id/local-authority/38,Oxfordshire County Council,SM DISABILITIES,5899,Social Care - Direct Payments,27/07/2017,3110251353,846.3,Advance Oxford
http://statistics.data.gov.uk/id/local-authority/38,Oxfordshire County Council,ContrO ASC Payments Control Account,5899,Social Care - Direct Payments,27/07/2017,3110251358,854.88,Advance Oxford
http://statistics.data.gov.uk/id/local-authority/38,Oxfordshire County Council,SM DISABILITIES,5899,Social Care - Direct Payments,27/07/2017,3110251347,940.33,Advance Oxford
http://statistics.data.gov.uk/id/local-authority/38,Oxfordshire County Council,SM DISABILITIES,5899,Social Care - Direct Payments,27/07/2017,3110251350,960,Advance Oxford
http://statistics.data.gov.uk/id/local-authority/38,Oxfordshire County Council,ContrO ASC Payments Control Account,5899,Social Care - Direct Payments,27/07/2017,3110251352,"1,170.78",Advance Oxford
http://statistics.data.gov.uk/id/local-authority/38,Oxfordshire County Council,ContrO ASC Payments Control Account,5899,Social Care - Direct Payments,27/07/2017,3110251360,"1,170.78",Advance Oxford
http://statistics.data.gov.uk/id/local-authority/38,Oxfordshire County Council,SM DISABILITIES,5899,Social Care - Direct Payments,27/07/2017,3110251362,"1,175.42",Advance Oxford
http://statistics.data.gov.uk/id/local-authority/38,Oxfordshire County Council,ContrO ASC Payments Control Account,5899,Social Care - Direct Payments,27/07/2017,3110251377,"1,333.80",Advance Oxford
http://statistics.data.gov.uk/id/local-authority/38,Oxfordshire County Council,ContrO ASC Payments Control Account,5899,Social Care - Direct Payments,27/07/2017,3110251357,"1,857.96",Advance Oxford
http://statistics.data.gov.uk/id/local-authority/38,Oxfordshire County Council,SM DISABILITIES,5899,Social Care - Direct Payments,27/07/2017,3110251373,"2,788.45",Advance Oxford
http://statistics.data.gov.uk/id/local-authority/38,Oxfordshire County Council,SM DISABILITIES,5899,Social Care - Direct Payments,27/07/2017,3110251374,"2,788.45",Advance Oxford
http://statistics.data.gov.uk/id/local-authority/38,Oxfordshire County Council,GYPSY & TRAVELLER SV,4861,Hired and Contracted Services,04/07/2017,2200373349,588,Advanced Pest Control Ltd
http://statistics.data.gov.uk/id/local-authority/38,Oxfordshire County Council,RD COND SURVEYS/INV,4940,Other Services,03/07/2017,2200372533,"46,105.00",AECOM Infrastructure & Environment
http://statistics.data.gov.uk/id/local-authority/38,Oxfordshire County Council,LD CLIENTS CITY,5688,,13/07/2017,3110246145,"225,644.85",AFFINITY TRUST
http://statistics.data.gov.uk/id/local-authority/38,Oxfordshire County Council,E-PLANNING,4495,IT Software,11/07/2017,2200376563,"10,758.06",Agile Applications Limited
http://statistics.data.gov.uk/id/local-authority/38,Oxfordshire County Council,ICT Transformation,5039,ITC Services,07/07/2017,2200375021,"8,226.00",Agile Collective Ltd
http://statistics.data.gov.uk/id/local-authority/38,Oxfordshire County Council,CSB - DIDCOT,5899,Social Care - Direct Payments,12/07/2017,3110244290,"2,620.00",Redacted Personal Data
http://statistics.data.gov.uk/id/local-authority/38,Oxfordshire County Council,COMPOSTING,5526,Payments to Private Contractors,28/07/2017,2200385821,504.78,Agrivert (Ardley) Limited
http://statistics.data.gov.uk/id/local-authority/38,Oxfordshire County Council,COMPOSTING,5526,Payments to Private Contractors,06/07/2017,2200374640,"1,370.10",Agrivert (Ardley) Limited
http://statistics.data.gov.uk/id/local-authority/38,Oxfordshire County Council,COMPOSTING,5526,Payments to Private Contractors,03/07/2017,2200372966,"33,231.08",Agrivert (Ardley) Limited
http://statistics.data.gov.uk/id/local-authority/38,Oxfordshire County Council,COMPOSTING,5526,Payments to Private Contractors,31/07/2017,2200386447,"39,535.60",Agrivert (Ardley) Limited
http://statistics.data.gov.uk/id/local-authority/38,Oxfordshire County Council,COMPOSTING,5526,Payments to Private Contractors,03/07/2017,2200372609,"112,680.60",Agrivert (Ardley) Limited
http://statistics.data.gov.uk/id/local-authority/38,Oxfordshire County Council,COMPOSTING,5526,Payments to Private Contractors,28/07/2017,2200385822,"124,962.36",Agrivert (Ardley) Limited
http://statistics.data.gov.uk/id/local-authority/38,Oxfordshire County Council,COMPOSTING,5526,Payments to Private Contractors,28/07/2017,2200385826,"139,353.27",Agrivert (Ardley) Limited
http://statistics.data.gov.uk/id/local-authority/38,Oxfordshire County Council,COMPOSTING,5526,Payments to Private Contractors,28/07/2017,2200385827,504.78,Agrivert (Biogas) Limited
http://statistics.data.gov.uk/id/local-authority/38,Oxfordshire County Council,COMPOSTING,5526,Payments to Private Contractors,28/07/2017,2200385829,"68,703.51",Agrivert (Biogas) Limited
http://statistics.data.gov.uk/id/local-authority/38,Oxfordshire County Council,Supervised Consumption APL,4934,,19/07/2017,3110251804,980,Ahmeys Pharmacy
http://statistics.data.gov.uk/id/local-authority/38,Oxfordshire County Council,LD CLIENTS SOUTH,5899,Social Care - Direct Payments,12/07/2017,3110244875,"1,184.48",Redacted Personal Data
http://statistics.data.gov.uk/id/local-authority/38,Oxfordshire County Council,SEN TRANSPORT,5227,Other Transport Arrangements,19/07/2017,3110247846,600,Airport Transfers Banbury Ltd
http://statistics.data.gov.uk/id/local-authority/38,Oxfordshire County Council,POST 16 SEN,5227,Other Transport Arrangements,19/07/2017,3110247835,900,Airport Transfers Banbury Ltd
http://statistics.data.gov.uk/id/local-authority/38,Oxfordshire County Council,MAINSTREAM-SECONDARY,4330,Transport to School Activities,19/07/2017,3110247838,"1,121.00",Airport Transfers Banbury Ltd
http://statistics.data.gov.uk/id/local-authority/38,Oxfordshire County Council,SEN TRANSPORT,4330,Transport to School Activities,19/07/2017,3110247853,"2,109.00",Airport Transfers Banbury Ltd
http://statistics.data.gov.uk/id/local-authority/38,Oxfordshire County Council,MAINSTREAM-PRIMARY,4330,Transport to School Activities,19/07/2017,3110247849,"2,755.00",Airport Transfers Banbury Ltd
http://statistics.data.gov.uk/id/local-authority/38,Oxfordshire County Council,SEN TRANSPORT,4330,Transport to School Activities,19/07/2017,3110247842,"3,600.00",Airport Transfers Banbury Ltd
http://statistics.data.gov.uk/id/local-authority/38,Oxfordshire County Council,SEN TRANSPORT,4330,Transport to School Activities,19/07/2017,3110247856,"3,610.00",Airport Transfers Banbury Ltd
http://statistics.data.gov.uk/id/local-authority/38,Oxfordshire County Council,POST 16 SEN,4330,Transport to School Activities,19/07/2017,3110247831,"4,000.00",Airport Transfers Banbury Ltd
http://statistics.data.gov.uk/id/local-authority/38,Oxfordshire County Council,South Integrated Locality Team,2040,Agency Staff,03/07/2017,2200373180,"1,340.60",Ajana Ltd
http://statistics.data.gov.uk/id/local-authority/38,Oxfordshire County Council,South Integrated Locality Team,2040,Agency Staff,28/07/2017,2200385748,"2,283.75",Ajana Ltd
http://statistics.data.gov.uk/id/local-authority/38,Oxfordshire County Council,South Integrated Locality Team,2040,Agency Staff,18/07/2017,2200379721,"2,298.15",Ajana Ltd
http://statistics.data.gov.uk/id/local-authority/38,Oxfordshire County Council,SEN TRANSPORT,5227,Other Transport Arrangements,21/07/2017,3110249323,570,AKR Ltd
http://statistics.data.gov.uk/id/local-authority/38,Oxfordshire County Council,SEN TRANSPORT,5227,Other Transport Arrangements,21/07/2017,3110249328,640,AKR Ltd
http://statistics.data.gov.uk/id/local-authority/38,Oxfordshire County Council,SEN TRANSPORT,5227,Other Transport Arrangements,21/07/2017,3110249337,640,AKR Ltd
http://statistics.data.gov.uk/id/local-authority/38,Oxfordshire County Council,SEN TRANSPORT,5227,Other Transport Arrangements,21/07/2017,3110249333,651.2,AKR Ltd
http://statistics.data.gov.uk/id/local-authority/38,Oxfordshire County Council,SEN TRANSPORT,5227,Other Transport Arrangements,21/07/2017,3110249321,704,AKR Ltd
http://statistics.data.gov.uk/id/local-authority/38,Oxfordshire County Council,SEN TRANSPORT,5227,Other Transport Arrangements,21/07/2017,3110249331,726,AKR Ltd
http://statistics.data.gov.uk/id/local-authority/38,Oxfordshire County Council,SEN TRANSPORT,5227,Other Transport Arrangements,21/07/2017,3110249325,760,AKR Ltd
http://statistics.data.gov.uk/id/local-authority/38,Oxfordshire County Council,SEN TRANSPORT,5227,Other Transport Arrangements,21/07/2017,3110249335,798,AKR Ltd
http://statistics.data.gov.uk/id/local-authority/38,Oxfordshire County Council,MAINSTREAM-PRIMARY,4330,Transport to School Activities,21/07/2017,3110249329,"1,600.00",AKR Ltd
http://statistics.data.gov.uk/id/local-authority/38,Oxfordshire County Council,SEN TRANSPORT,4330,Transport to School Activities,21/07/2017,3110249322,"2,090.00",AKR Ltd
http://statistics.data.gov.uk/id/local-authority/38,Oxfordshire County Council,MAINSTREAM-PRIMARY,4330,Transport to School Activities,21/07/2017,3110249319,"2,375.00",AKR Ltd
http://statistics.data.gov.uk/id/local-authority/38,Oxfordshire County Council,SEN TRANSPORT,4330,Transport to School Activities,21/07/2017,3110249332,"2,376.00",AKR Ltd
http://statistics.data.gov.uk/id/local-authority/38,Oxfordshire County Council,SEN TRANSPORT,4330,Transport to School Activities,21/07/2017,3110249318,"2,460.00",AKR Ltd
http://statistics.data.gov.uk/id/local-authority/38,Oxfordshire County Council,SEN TRANSPORT,4330,Transport to School Activities,21/07/2017,3110249324,"2,660.00",AKR Ltd
http://statistics.data.gov.uk/id/local-authority/38,Oxfordshire County Council,SEN TRANSPORT,4330,Transport to School Activities,21/07/2017,3110249327,"2,920.00",AKR Ltd
http://statistics.data.gov.uk/id/local-authority/38,Oxfordshire County Council,SEN TRANSPORT,4330,Transport to School Activities,21/07/2017,3110249336,"3,120.00",AKR Ltd
http://statistics.data.gov.uk/id/local-authority/38,Oxfordshire County Council,SEN TRANSPORT,4330,Transport to School Activities,21/07/2017,3110249330,"3,336.00",AKR Ltd
http://statistics.data.gov.uk/id/local-authority/38,Oxfordshire County Council,SEN TRANSPORT,4330,Transport to School Activities,21/07/2017,3110249320,"3,498.00",AKR Ltd
http://statistics.data.gov.uk/id/local-authority/38,Oxfordshire County Council,SEN TRANSPORT,4330,Transport to School Activities,21/07/2017,3110249326,"3,916.00",AKR Ltd
http://statistics.data.gov.uk/id/local-authority/38,Oxfordshire County Council,MAINSTREAM-PRIMARY,4330,Transport to School Activities,21/07/2017,3110249317,"4,018.80",AKR Ltd
http://statistics.data.gov.uk/id/local-authority/38,Oxfordshire County Council,SEN TRANSPORT,4330,Transport to School Activities,21/07/2017,3110249334,"4,522.00",AKR Ltd
http://statistics.data.gov.uk/id/local-authority/38,Oxfordshire County Council,LD CLIENTS NORTH,5686,,13/07/2017,3110246519,"28,791.28",ALBANY FARM CARE
http://statistics.data.gov.uk/id/local-authority/38,Oxfordshire County Council,TRAINING MANAGEMENT,3105,Training related expenditure,17/07/2017,2200379120,"1,800.00",Aldridge Scrap Metal Ltd
http://statistics.data.gov.uk/id/local-authority/38,Oxfordshire County Council,TRAINING MANAGEMENT,3105,Training related expenditure,17/07/2017,2200379119,"3,300.00",Aldridge Scrap Metal Ltd
http://statistics.data.gov.uk/id/local-authority/38,Oxfordshire County Council,LEGAL SERVICES,5251,Legal Costs,31/07/2017,2200386402,550,Alex Perry
http://statistics.data.gov.uk/id/local-authority/38,Oxfordshire County Council,LEGAL SERVICES,5251,Legal Costs,20/07/2017,2200381638,"2,000.00",Alex Perry
http://statistics.data.gov.uk/id/local-authority/38,Oxfordshire County Council,LD CLIENTS SOUTH,5899,Social Care - Direct Payments,12/07/2017,3110244983,"2,995.08",Redacted Personal Data
http://statistics.data.gov.uk/id/local-authority/38,Oxfordshire County Council,ContrO ASC Payments Control Account,5899,Social Care - Direct Payments,27/07/2017,3110251334,"1,297.79",Redacted Personal Data
http://statistics.data.gov.uk/id/local-authority/38,Oxfordshire County Council,LD CLIENTS CITY,5899,Social Care - Direct Payments,12/07/2017,3110244276,"5,388.00",Redacted Personal Data
http://statistics.data.gov.uk/id/local-authority/38,Oxfordshire County Council,Care Packages & Placements- LD - Health,5899,Social Care - Direct Payments,12/07/2017,3110244213,"6,654.76",Redacted Personal Data
http://statistics.data.gov.uk/id/local-authority/38,Oxfordshire County Council,Care Packages & Placements- Older People,5899,Social Care - Direct Payments,12/07/2017,3110245526,627.36,Redacted Personal Data
http://statistics.data.gov.uk/id/local-authority/38,Oxfordshire County Council,LD CLIENTS SOUTH,5899,Social Care - Direct Payments,12/07/2017,3110245226,753.24,Redacted Personal Data
http://statistics.data.gov.uk/id/local-authority/38,Oxfordshire County Council,LD CLIENTS NORTH,5899,Social Care - Direct Payments,12/07/2017,3110244898,"4,493.16",Redacted Personal Data
http://statistics.data.gov.uk/id/local-authority/38,Oxfordshire County Council,DIRECTOR'S OFFICE,2040,Agency Staff,04/07/2017,2200373554,935.9,Allen Associates (Oxford) Limited
http://statistics.data.gov.uk/id/local-authority/38,Oxfordshire County Council,DIRECTOR'S OFFICE,2040,Agency Staff,03/07/2017,2200372802,"1,123.60",Allen Associates (Oxford) Limited
http://statistics.data.gov.uk/id/local-authority/38,Oxfordshire County Council,MH COMMUNITY SUP'T,5899,Social Care - Direct Payments,12/07/2017,3110244593,640,Redacted Personal Data
http://statistics.data.gov.uk/id/local-authority/38,Oxfordshire County Council,CARE HOME SPOT CITY,5686,,13/07/2017,3110246513,"16,557.54",ALLIED CARE LTD
http://statistics.data.gov.uk/id/local-authority/38,Oxfordshire County Council,PLAYGROUP FEES,5537,Payments to Other Establishments,03/07/2017,3110242497,"1,963.50",Allsorts Pre-School
http://statistics.data.gov.uk/id/local-authority/38,Oxfordshire County Council,HEADINGTON/ CITY DTS,4232,Vehicle Fuel,04/07/2017,3110242771,518.81,Allstar Business Solutions Ltd
http://statistics.data.gov.uk/id/local-authority/38,Oxfordshire County Council,HEADINGTON/ CITY DTS,4232,Vehicle Fuel,04/07/2017,3110242772,524.82,Allstar Business Solutions Ltd
http://statistics.data.gov.uk/id/local-authority/38,Oxfordshire County Council,TRANSPORT GENERAL,4232,Vehicle Fuel,03/07/2017,2200372811,"1,194.98",Allstar Business Solutions Ltd
http://statistics.data.gov.uk/id/local-authority/38,Oxfordshire County Council,FLEET OPERATIONS,4232,Vehicle Fuel,31/07/2017,2200386259,"2,382.74",Allstar Business Solutions Ltd
http://statistics.data.gov.uk/id/local-authority/38,Oxfordshire County Council,PROCUREMENT,4232,Vehicle Fuel,05/07/2017,2200374173,"4,357.24",Allstar Business Solutions Ltd
http://statistics.data.gov.uk/id/local-authority/38,Oxfordshire County Council,FLEET OPERATIONS,4232,Vehicle Fuel,13/07/2017,2200377735,"12,992.33",Allstar Business Solutions Ltd
http://statistics.data.gov.uk/id/local-authority/38,Oxfordshire County Council,PD COMM SUPP WITNEY,5899,Social Care - Direct Payments,12/07/2017,3110245394,928,Redacted Personal Data
http://statistics.data.gov.uk/id/local-authority/38,Oxfordshire County Council,Care Packages & Placements- Older People,5899,Social Care - Direct Payments,12/07/2017,3110245479,984,Redacted Personal Data
http://statistics.data.gov.uk/id/local-authority/38,Oxfordshire County Council,Care Packages & Placements- LD - OCC,5899,Social Care - Direct Payments,27/07/2017,3110251210,650,Redacted Personal Data
http://statistics.data.gov.uk/id/local-authority/38,Oxfordshire County Council,MAINSTREAM-PRIMARY,4330,Transport to School Activities,04/07/2017,3110242867,703,Ambassador cars
http://statistics.data.gov.uk/id/local-authority/38,Oxfordshire County Council,MAINSTREAM-PRIMARY,4330,Transport to School Activities,27/07/2017,3110251641,703,Ambassador cars
http://statistics.data.gov.uk/id/local-authority/38,Oxfordshire County Council,MAINSTREAM-PRIMARY,4330,Transport to School Activities,04/07/2017,3110242868,756,Ambassador cars
http://statistics.data.gov.uk/id/local-authority/38,Oxfordshire County Council,MAINSTREAM-PRIMARY,4330,Transport to School Activities,27/07/2017,3110251640,840,Ambassador cars
http://statistics.data.gov.uk/id/local-authority/38,Oxfordshire County Council,CSB - ABINGDON,5689,,26/07/2017,3110250182,514.01,Amber Healthcare Personnel Ltd
http://statistics.data.gov.uk/id/local-authority/38,Oxfordshire County Council,CSB - ABINGDON,5689,,26/07/2017,3110250209,566.72,Amber Healthcare Personnel Ltd
http://statistics.data.gov.uk/id/local-authority/38,Oxfordshire County Council,Care Packages & Placements- Older People,5689,,26/07/2017,3110250201,566.94,Amber Healthcare Personnel Ltd
http://statistics.data.gov.uk/id/local-authority/38,Oxfordshire County Council,CSB - ABINGDON,5689,,26/07/2017,3110250217,575.94,Amber Healthcare Personnel Ltd
http://statistics.data.gov.uk/id/local-authority/38,Oxfordshire County Council,PD COMM SUPP AB'DON,5689,,26/07/2017,3110250211,578.62,Amber Healthcare Personnel Ltd
http://statistics.data.gov.uk/id/local-authority/38,Oxfordshire County Council,CSB - ABINGDON,5689,,26/07/2017,3110250220,605.16,Amber Healthcare Personnel Ltd
http://statistics.data.gov.uk/id/local-authority/38,Oxfordshire County Council,Care Packages & Placements- Older People,5689,,26/07/2017,3110250180,685.14,Amber Healthcare Personnel Ltd
http://statistics.data.gov.uk/id/local-authority/38,Oxfordshire County Council,Care Packages & Placements- Older People,5689,,26/07/2017,3110250206,726.33,Amber Healthcare Personnel Ltd
http://statistics.data.gov.uk/id/local-authority/38,Oxfordshire County Council,Care Packages & Placements- Older People,5689,,26/07/2017,3110250190,757.72,Amber Healthcare Personnel Ltd
http://statistics.data.gov.uk/id/local-authority/38,Oxfordshire County Council,Care Packages & Placements- PD - OCC,5689,,26/07/2017,3110250185,829.91,Amber Healthcare Personnel Ltd
http://statistics.data.gov.uk/id/local-authority/38,Oxfordshire County Council,Care Packages & Placements- Older People,5689,,26/07/2017,3110250179,831.04,Amber Healthcare Personnel Ltd
http://statistics.data.gov.uk/id/local-authority/38,Oxfordshire County Council,Care Packages & Placements- Older People,5689,,26/07/2017,3110250222,871.68,Amber Healthcare Personnel Ltd
http://statistics.data.gov.uk/id/local-authority/38,Oxfordshire County Council,Care Packages & Placements- Older People,5689,,26/07/2017,3110250223,951.58,Amber Healthcare Personnel Ltd
http://statistics.data.gov.uk/id/local-authority/38,Oxfordshire County Council,Care Packages & Placements- Older People,5689,,26/07/2017,3110250198,"1,154.53",Amber Healthcare Personnel Ltd
http://statistics.data.gov.uk/id/local-authority/38,Oxfordshire County Council,CSB - ABINGDON,5689,,26/07/2017,3110250210,"1,176.84",Amber Healthcare Personnel Ltd
http://statistics.data.gov.uk/id/local-authority/38,Oxfordshire County Council,Care Packages & Placements- Older People,5689,,26/07/2017,3110250225,"1,193.35",Amber Healthcare Personnel Ltd
http://statistics.data.gov.uk/id/local-authority/38,Oxfordshire County Council,Care Packages & Placements- PD - OCC,5689,,26/07/2017,3110250203,"1,201.34",Amber Healthcare Personnel Ltd
http://statistics.data.gov.uk/id/local-authority/38,Oxfordshire County Council,Care Packages & Placements- Older People,5689,,26/07/2017,3110250194,"1,214.87",Amber Healthcare Personnel Ltd
http://statistics.data.gov.uk/id/local-authority/38,Oxfordshire County Council,Care Packages & Placements- Older People,5689,,26/07/2017,3110250188,"1,267.90",Amber Healthcare Personnel Ltd
http://statistics.data.gov.uk/id/local-authority/38,Oxfordshire County Council,Care Packages & Placements- PD - OCC,5689,,26/07/2017,3110250227,"1,425.26",Amber Healthcare Personnel Ltd
http://statistics.data.gov.uk/id/local-authority/38,Oxfordshire County Council,Care Packages & Placements- Older People,5689,,26/07/2017,3110250205,"1,426.98",Amber Healthcare Personnel Ltd
http://statistics.data.gov.uk/id/local-authority/38,Oxfordshire County Council,Care Packages & Placements- Older People,5689,,26/07/2017,3110250219,"1,553.28",Amber Healthcare Personnel Ltd
http://statistics.data.gov.uk/id/local-authority/38,Oxfordshire County Council,CSB - ABINGDON,5689,,26/07/2017,3110250197,"1,591.95",Amber Healthcare Personnel Ltd
http://statistics.data.gov.uk/id/local-authority/38,Oxfordshire County Council,Care Packages & Placements- Older People,5689,,26/07/2017,3110250181,"1,858.53",Amber Healthcare Personnel Ltd
http://statistics.data.gov.uk/id/local-authority/38,Oxfordshire County Council,CSB - ABINGDON,5689,,26/07/2017,3110250186,"2,338.89",Amber Healthcare Personnel Ltd
http://statistics.data.gov.uk/id/local-authority/38,Oxfordshire County Council,PD COMM SUPP AB'DON,5689,,26/07/2017,3110250187,"2,584.77",Amber Healthcare Personnel Ltd
http://statistics.data.gov.uk/id/local-authority/38,Oxfordshire County Council,CMPB WITNEY,5689,,06/07/2017,3110243438,"5,336.00",Amber Healthcare Personnel Ltd
http://statistics.data.gov.uk/id/local-authority/38,Oxfordshire County Council,Transition Fund - Children Centres,5195,Grant Aid and Donations,12/07/2017,3110246942,"3,918.00",Ambrosden 4 Children
http://statistics.data.gov.uk/id/local-authority/38,Oxfordshire County Council,COMM DRAWDOWN FUNDNG,8004,Design Consultant,05/07/2017,2200373840,"3,704.00",AMEC Foster Wheeler Environment &
http://statistics.data.gov.uk/id/local-authority/38,Oxfordshire County Council,Mainstream Res,5558,,18/07/2017,2200380121,"15,800.00",Amegreen Children's Services Ltd
http://statistics.data.gov.uk/id/local-authority/38,Oxfordshire County Council,Care Packages & Placements- LD - OCC,5899,Social Care - Direct Payments,27/07/2017,3110251233,"2,360.75",Redacted Personal Data
http://statistics.data.gov.uk/id/local-authority/38,Oxfordshire County Council,Care Packages & Placements- LD - OCC,5899,Social Care - Direct Payments,12/07/2017,3110245192,"6,736.00",Redacted Personal Data
http://statistics.data.gov.uk/id/local-authority/38,Oxfordshire County Council,RESIDENTIAL TREATMEN,5686,,10/07/2017,2200375637,"1,260.00",ANA
http://statistics.data.gov.uk/id/local-authority/38,Oxfordshire County Council,RESIDENTIAL TREATMEN,5686,,10/07/2017,2200375650,"1,714.28",ANA
http://statistics.data.gov.uk/id/local-authority/38,Oxfordshire County Council,RESIDENTIAL TREATMEN,5686,,10/07/2017,2200375648,"2,228.57",ANA
http://statistics.data.gov.uk/id/local-authority/38,Oxfordshire County Council,RESIDENTIAL TREATMEN,5686,,10/07/2017,2200375651,"2,367.90",ANA
http://statistics.data.gov.uk/id/local-authority/38,Oxfordshire County Council,RESIDENTIAL TREATMEN,5686,,06/07/2017,2200374516,"2,400.00",ANA
http://statistics.data.gov.uk/id/local-authority/38,Oxfordshire County Council,RESIDENTIAL TREATMEN,5686,,10/07/2017,2200375647,"2,571.43",ANA
http://statistics.data.gov.uk/id/local-authority/38,Oxfordshire County Council,RESIDENTIAL TREATMEN,5686,,11/07/2017,2200377127,"2,660.00",ANA
http://statistics.data.gov.uk/id/local-authority/38,Oxfordshire County Council,SM DISABILITIES,5899,Social Care - Direct Payments,27/07/2017,3110251320,564.2,Redacted Personal Data
http://statistics.data.gov.uk/id/local-authority/38,Oxfordshire County Council,Care Packages & Placements- PD - OCC,5899,Social Care - Direct Payments,12/07/2017,3110245244,"2,156.72",Redacted Personal Data
http://statistics.data.gov.uk/id/local-authority/38,Oxfordshire County Council,Care Packages & Placements- PD - OCC,5899,Social Care - Direct Payments,12/07/2017,3110244057,"5,250.80",Redacted Personal Data
http://statistics.data.gov.uk/id/local-authority/38,Oxfordshire County Council,Mental Health Clients,5899,Social Care - Direct Payments,12/07/2017,3110245398,605.08,Redacted Personal Data
http://statistics.data.gov.uk/id/local-authority/38,Oxfordshire County Council,PD COMM SUPP BANB,5899,Social Care - Direct Payments,12/07/2017,3110244201,"1,833.60",Redacted Personal Data
http://statistics.data.gov.uk/id/local-authority/38,Oxfordshire County Council,PD COMM SUPP BANB,5899,Social Care - Direct Payments,12/07/2017,3110245228,"1,402.80",Redacted Personal Data
http://statistics.data.gov.uk/id/local-authority/38,Oxfordshire County Council,SEN TRANSPORT,5227,Other Transport Arrangements,17/07/2017,3110247187,550,Angelas Travel
http://statistics.data.gov.uk/id/local-authority/38,Oxfordshire County Council,SEN TRANSPORT,5227,Other Transport Arrangements,17/07/2017,3110247189,720,Angelas Travel
http://statistics.data.gov.uk/id/local-authority/38,Oxfordshire County Council,SEN TRANSPORT,4330,Transport to School Activities,17/07/2017,3110247183,784.8,Angelas Travel
http://statistics.data.gov.uk/id/local-authority/38,Oxfordshire County Council,SEN TRANSPORT,4330,Transport to School Activities,17/07/2017,3110247190,"1,150.00",Angelas Travel
http://statistics.data.gov.uk/id/local-authority/38,Oxfordshire County Council,SEN TRANSPORT,5227,Other Transport Arrangements,17/07/2017,3110247191,"1,150.00",Angelas Travel
http://statistics.data.gov.uk/id/local-authority/38,Oxfordshire County Council,SEN TRANSPORT,4330,Transport to School Activities,17/07/2017,3110247186,"1,200.00",Angelas Travel
http://statistics.data.gov.uk/id/local-authority/38,Oxfordshire County Council,SEN TRANSPORT,4330,Transport to School Activities,17/07/2017,3110247184,"1,406.00",Angelas Travel
http://statistics.data.gov.uk/id/local-authority/38,Oxfordshire County Council,SEN TRANSPORT,4330,Transport to School Activities,17/07/2017,3110247182,"1,550.00",Angelas Travel
http://statistics.data.gov.uk/id/local-authority/38,Oxfordshire County Council,SEN TRANSPORT,4330,Transport to School Activities,17/07/2017,3110247188,"1,974.80",Angelas Travel
http://statistics.data.gov.uk/id/local-authority/38,Oxfordshire County Council,MAINSTREAM-SECONDARY,4330,Transport to School Activities,17/07/2017,3110247181,"2,485.00",Angelas Travel
http://statistics.data.gov.uk/id/local-authority/38,Oxfordshire County Council,MAINSTREAM-PRIMARY,4330,Transport to School Activities,17/07/2017,3110247179,"2,703.00",Angelas Travel
http://statistics.data.gov.uk/id/local-authority/38,Oxfordshire County Council,MAINSTREAM-SECONDARY,4330,Transport to School Activities,24/07/2017,3110249539,"2,848.29",Angelas Travel
http://statistics.data.gov.uk/id/local-authority/38,Oxfordshire County Council,MAINSTREAM-SECONDARY,4330,Transport to School Activities,17/07/2017,3110247180,"2,942.80",Angelas Travel
http://statistics.data.gov.uk/id/local-authority/38,Oxfordshire County Council,MAINSTREAM-SECONDARY,4330,Transport to School Activities,24/07/2017,3110249541,"2,998.20",Angelas Travel
http://statistics.data.gov.uk/id/local-authority/38,Oxfordshire County Council,FOSTERING MAIN,5548,B*Fostering - Special Rates & Plus Amou,05/07/2017,3110243344,732.44,Redacted Personal Data
http://statistics.data.gov.uk/id/local-authority/38,Oxfordshire County Council,FOSTERING MAIN,5548,B*Fostering - Special Rates & Plus Amou,12/07/2017,3110245033,732.44,Redacted Personal Data
http://statistics.data.gov.uk/id/local-authority/38,Oxfordshire County Council,FOSTERING MAIN,5548,B*Fostering - Special Rates & Plus Amou,26/07/2017,3110250102,732.44,Redacted Personal Data
http://statistics.data.gov.uk/id/local-authority/38,Oxfordshire County Council,FOSTERING MAIN,5415,Residential Activities,19/07/2017,3110247633,"1,132.44",Redacted Personal Data
http://statistics.data.gov.uk/id/local-authority/38,Oxfordshire County Council,Care Packages & Placements- Older People,5899,Social Care - Direct Payments,12/07/2017,3110245456,"2,596.00",Redacted Personal Data
http://statistics.data.gov.uk/id/local-authority/38,Oxfordshire County Council,PD COMM SUPP BANB,5899,Social Care - Direct Payments,12/07/2017,3110244280,647.48,Redacted Personal Data
http://statistics.data.gov.uk/id/local-authority/38,Oxfordshire County Council,Care Packages & Placements- Older People,5899,Social Care - Direct Payments,12/07/2017,3110245554,"4,400.00",Redacted Personal Data
http://statistics.data.gov.uk/id/local-authority/38,Oxfordshire County Council,FAM GRP CONFERENCES,4861,Hired and Contracted Services,13/07/2017,2200377701,710.2,Anne Marie Ede
http://statistics.data.gov.uk/id/local-authority/38,Oxfordshire County Council,FOSTERING MAIN,5549,B*Fostering Allowance - Regulation 38,05/07/2017,3110243101,830.79,Redacted Personal Data
http://statistics.data.gov.uk/id/local-authority/38,Oxfordshire County Council,CSB - BANBURY,5899,Social Care - Direct Payments,12/07/2017,3110244666,"4,258.44",Redacted Personal Data
http://statistics.data.gov.uk/id/local-authority/38,Oxfordshire County Council,FOSTERING MAIN,5542,B*Payments to carers,19/07/2017,3110247551,520.96,Redacted Personal Data
http://statistics.data.gov.uk/id/local-authority/38,Oxfordshire County Council,COUNTY PRINT FINSHRS,5666,Hire of Admin Equipment,12/07/2017,2200377260,"3,327.23",ANNODATA BUSINESS COMMUNICATIONS
http://statistics.data.gov.uk/id/local-authority/38,Oxfordshire County Council,COUNTY PRINT FINSHRS,5666,Hire of Admin Equipment,12/07/2017,2200377257,"6,722.51",ANNODATA BUSINESS COMMUNICATIONS
http://statistics.data.gov.uk/id/local-authority/38,Oxfordshire County Council,CENTRAL PRINTING,4719,Photocopying,14/07/2017,2200378389,"12,611.20",ANNODATA BUSINESS COMMUNICATIONS
http://statistics.data.gov.uk/id/local-authority/38,Oxfordshire County Council,CENTRAL PRINTING,4719,Photocopying,14/07/2017,2200378331,"42,439.87",ANNODATA BUSINESS COMMUNICATIONS
http://statistics.data.gov.uk/id/local-authority/38,Oxfordshire County Council,HILL END,4665,Catering,10/07/2017,2200376137,"3,295.50",Ann's Munchies Ltd
http://statistics.data.gov.uk/id/local-authority/38,Oxfordshire County Council,PD COMM SUPP AB'DON,5899,Social Care - Direct Payments,12/07/2017,3110244566,"1,367.12",Redacted Personal Data
http://statistics.data.gov.uk/id/local-authority/38,Oxfordshire County Council,LD CLIENTS SOUTH,5899,Social Care - Direct Payments,12/07/2017,3110244294,"3,337.60",Redacted Personal Data
http://statistics.data.gov.uk/id/local-authority/38,Oxfordshire County Council,CSB - BANBURY,5899,Social Care - Direct Payments,12/07/2017,3110244963,"5,412.00",Redacted Personal Data
http://statistics.data.gov.uk/id/local-authority/38,Oxfordshire County Council,LD CLIENTS SOUTH,5899,Social Care - Direct Payments,12/07/2017,3110245085,768,Redacted Personal Data
http://statistics.data.gov.uk/id/local-authority/38,Oxfordshire County Council,Mental Health Clients,5691,,13/07/2017,3110246852,500,Redacted Personal Data
http://statistics.data.gov.uk/id/local-authority/38,Oxfordshire County Council,Mental Health Clients,5691,,05/07/2017,3110243397,"2,509.96",Redacted Personal Data
http://statistics.data.gov.uk/id/local-authority/38,Oxfordshire County Council,Young Peoples Service,5195,Grant Aid and Donations,27/07/2017,3500032060,"28,333.33",Aquarius Action Projects
http://statistics.data.gov.uk/id/local-authority/38,Oxfordshire County Council,FOSTERING MAIN,5663,B*Birthday Allowance,05/07/2017,3110243184,714.07,Redacted Personal Data
http://statistics.data.gov.uk/id/local-authority/38,Oxfordshire County Council,FOSTERING MAIN,5549,B*Fostering Allowance - Regulation 38,26/07/2017,3110250018,813.02,Redacted Personal Data
http://statistics.data.gov.uk/id/local-authority/38,Oxfordshire County Council,FOSTERING MAIN,5549,B*Fostering Allowance - Regulation 38,12/07/2017,3110244640,"1,315.07",Redacted Personal Data
http://statistics.data.gov.uk/id/local-authority/38,Oxfordshire County Council,UASC UNDER 16,4685,Clothing and Uniforms,19/07/2017,3110247509,"1,533.66",Redacted Personal Data
http://statistics.data.gov.uk/id/local-authority/38,Oxfordshire County Council,SM DISABILITIES,5899,Social Care - Direct Payments,27/07/2017,3110251332,506.33,Redacted Personal Data
http://statistics.data.gov.uk/id/local-authority/38,Oxfordshire County Council,CORPORATE LANDLORD,4861,Hired and Contracted Services,11/07/2017,2200376636,"3,441.64",Ardington Archives LLP
http://statistics.data.gov.uk/id/local-authority/38,Oxfordshire County Council,ContrO ASC Payments Control Account,5899,Social Care - Direct Payments,27/07/2017,3110251390,"5,063.89",Redacted Personal Data
http://statistics.data.gov.uk/id/local-authority/38,Oxfordshire County Council,CONCESSIONARY FARES,5781,Payments to Transport Operators,31/07/2017,2200386046,"30,069.29",Arriva The Shires Ltd
http://statistics.data.gov.uk/id/local-authority/38,Oxfordshire County Council,CONCESSIONARY FARES,5781,Payments to Transport Operators,31/07/2017,2200386048,"30,884.78",Arriva The Shires Ltd
http://statistics.data.gov.uk/id/local-authority/38,Oxfordshire County Council,CONCESSIONARY FARES,5781,Payments to Transport Operators,31/07/2017,2200386045,"31,223.03",Arriva The Shires Ltd
http://statistics.data.gov.uk/id/local-authority/38,Oxfordshire County Council,S38 INSPECT & OTHER,4531,Materials,12/07/2017,2200377665,"-21,978.50",Arriva Trains Holdings Ltd
http://statistics.data.gov.uk/id/local-authority/38,Oxfordshire County Council,,1441,Uncleared Misc Income Receipts,12/07/2017,3110246066,"26,374.20",Arriva Trains Holdings Ltd
http://statistics.data.gov.uk/id/local-authority/38,Oxfordshire County Council,SEN TRANSPORT,5227,Other Transport Arrangements,14/07/2017,3110246874,606.6,Ash Cars (UK) Ltd
http://statistics.data.gov.uk/id/local-authority/38,Oxfordshire County Council,SEN TRANSPORT,5227,Other Transport Arrangements,14/07/2017,3110246872,726,Ash Cars (UK) Ltd
http://statistics.data.gov.uk/id/local-authority/38,Oxfordshire County Council,SEN TRANSPORT,5227,Other Transport Arrangements,18/07/2017,3110247301,760,Ash Cars (UK) Ltd
http://statistics.data.gov.uk/id/local-authority/38,Oxfordshire County Council,SEN TRANSPORT,5227,Other Transport Arrangements,14/07/2017,3110246870,798,Ash Cars (UK) Ltd
http://statistics.data.gov.uk/id/local-authority/38,Oxfordshire County Council,SEN TRANSPORT,5227,Other Transport Arrangements,14/07/2017,3110246877,800,Ash Cars (UK) Ltd
http://statistics.data.gov.uk/id/local-authority/38,Oxfordshire County Council,MEADOWBROOK TRANSPT,4330,Transport to School Activities,14/07/2017,3110246879,855,Ash Cars (UK) Ltd
http://statistics.data.gov.uk/id/local-authority/38,Oxfordshire County Council,MEADOWBROOK TRANSPT,4330,Transport to School Activities,14/07/2017,3110246880,"1,025.00",Ash Cars (UK) Ltd
http://statistics.data.gov.uk/id/local-authority/38,Oxfordshire County Council,SEN TRANSPORT,5227,Other Transport Arrangements,14/07/2017,3110246866,"1,232.00",Ash Cars (UK) Ltd
http://statistics.data.gov.uk/id/local-authority/38,Oxfordshire County Council,SEN TRANSPORT,5227,Other Transport Arrangements,14/07/2017,3110246868,"1,400.00",Ash Cars (UK) Ltd
http://statistics.data.gov.uk/id/local-authority/38,Oxfordshire County Council,SEN TRANSPORT,5227,Other Transport Arrangements,14/07/2017,3110246863,"1,600.00",Ash Cars (UK) Ltd
http://statistics.data.gov.uk/id/local-authority/38,Oxfordshire County Council,SEN TRANSPORT,4330,Transport to School Activities,18/07/2017,3110247299,"1,900.00",Ash Cars (UK) Ltd
http://statistics.data.gov.uk/id/local-authority/38,Oxfordshire County Council,SEN TRANSPORT,4330,Transport to School Activities,14/07/2017,3110246876,"2,000.00",Ash Cars (UK) Ltd
http://statistics.data.gov.uk/id/local-authority/38,Oxfordshire County Council,SEN TRANSPORT,4330,Transport to School Activities,14/07/2017,3110246867,"2,010.00",Ash Cars (UK) Ltd
http://statistics.data.gov.uk/id/local-authority/38,Oxfordshire County Council,MEADOWBROOK TRANSPT,4330,Transport to School Activities,14/07/2017,3110246881,"2,770.00",Ash Cars (UK) Ltd
http://statistics.data.gov.uk/id/local-authority/38,Oxfordshire County Council,SEN TRANSPORT,4330,Transport to School Activities,14/07/2017,3110246862,"2,924.00",Ash Cars (UK) Ltd
http://statistics.data.gov.uk/id/local-authority/38,Oxfordshire County Council,SEN TRANSPORT,4330,Transport to School Activities,14/07/2017,3110246869,"2,999.00",Ash Cars (UK) Ltd
http://statistics.data.gov.uk/id/local-authority/38,Oxfordshire County Council,SEN TRANSPORT,4330,Transport to School Activities,14/07/2017,3110246871,"3,293.40",Ash Cars (UK) Ltd
http://statistics.data.gov.uk/id/local-authority/38,Oxfordshire County Council,SEN TRANSPORT,4330,Transport to School Activities,14/07/2017,3110246864,"3,705.00",Ash Cars (UK) Ltd
http://statistics.data.gov.uk/id/local-authority/38,Oxfordshire County Council,SEN TRANSPORT,4330,Transport to School Activities,14/07/2017,3110246865,"4,413.20",Ash Cars (UK) Ltd
http://statistics.data.gov.uk/id/local-authority/38,Oxfordshire County Council,SEN TRANSPORT,4330,Transport to School Activities,14/07/2017,3110246873,"5,199.60",Ash Cars (UK) Ltd
http://statistics.data.gov.uk/id/local-authority/38,Oxfordshire County Council,CARE HOME SPOT CITY,5686,,13/07/2017,3110246420,"-19,907.37",Ashamber Homes Limited
http://statistics.data.gov.uk/id/local-authority/38,Oxfordshire County Council,Mental Health Clients,5691,,05/07/2017,3110243376,"1,922.00",Ashamber Homes Limited
http://statistics.data.gov.uk/id/local-authority/38,Oxfordshire County Council,CSB - CITY,5688,,13/07/2017,3110246292,"45,655.23",Ashamber Homes Limited
http://statistics.data.gov.uk/id/local-authority/38,Oxfordshire County Council,LD CLIENTS NORTH,5686,,13/07/2017,3110246435,"6,379.14",Ashgrange House
http://statistics.data.gov.uk/id/local-authority/38,Oxfordshire County Council,LD CLIENTS SOUTH,5899,Social Care - Direct Payments,12/07/2017,3110244101,"3,339.32",Redacted Personal Data
http://statistics.data.gov.uk/id/local-authority/38,Oxfordshire County Council,COMM DRAWDOWN FUNDNG,8390,Other capital equipment,06/07/2017,2200374425,"1,500.00",Asite
http://statistics.data.gov.uk/id/local-authority/38,Oxfordshire County Council,COMM DRAWDOWN FUNDNG,8390,Other capital equipment,25/07/2017,2200384261,"1,500.00",Asite
http://statistics.data.gov.uk/id/local-authority/38,Oxfordshire County Council,LIBRARY COLLECTIONS,4539,"Books, DVDs and CDs",19/07/2017,3110251267,500.38,ASKEWS & HOLTS LIBRARY SERVICES LTD
http://statistics.data.gov.uk/id/local-authority/38,Oxfordshire County Council,LIBRARY COLLECTIONS,4539,"Books, DVDs and CDs",17/07/2017,3110247233,505.16,ASKEWS & HOLTS LIBRARY SERVICES LTD
http://statistics.data.gov.uk/id/local-authority/38,Oxfordshire County Council,LIBRARY COLLECTIONS,4539,"Books, DVDs and CDs",19/07/2017,3110251263,505.67,ASKEWS & HOLTS LIBRARY SERVICES LTD
http://statistics.data.gov.uk/id/local-authority/38,Oxfordshire County Council,LIBRARY COLLECTIONS,4539,"Books, DVDs and CDs",18/07/2017,3110247904,515.38,ASKEWS & HOLTS LIBRARY SERVICES LTD
http://statistics.data.gov.uk/id/local-authority/38,Oxfordshire County Council,LIBRARY COLLECTIONS,4539,"Books, DVDs and CDs",19/07/2017,3110251283,518.12,ASKEWS & HOLTS LIBRARY SERVICES LTD
http://statistics.data.gov.uk/id/local-authority/38,Oxfordshire County Council,LIBRARY COLLECTIONS,4539,"Books, DVDs and CDs",18/07/2017,3110247909,532.53,ASKEWS & HOLTS LIBRARY SERVICES LTD
http://statistics.data.gov.uk/id/local-authority/38,Oxfordshire County Council,LIBRARY COLLECTIONS,4539,"Books, DVDs and CDs",19/07/2017,3110251266,536.01,ASKEWS & HOLTS LIBRARY SERVICES LTD
http://statistics.data.gov.uk/id/local-authority/38,Oxfordshire County Council,LIBRARY COLLECTIONS,4539,"Books, DVDs and CDs",18/07/2017,3110247910,540.22,ASKEWS & HOLTS LIBRARY SERVICES LTD
http://statistics.data.gov.uk/id/local-authority/38,Oxfordshire County Council,LIBRARY COLLECTIONS,4539,"Books, DVDs and CDs",18/07/2017,3110247877,548.37,ASKEWS & HOLTS LIBRARY SERVICES LTD
http://statistics.data.gov.uk/id/local-authority/38,Oxfordshire County Council,LIBRARY COLLECTIONS,4539,"Books, DVDs and CDs",17/07/2017,3110247237,557.13,ASKEWS & HOLTS LIBRARY SERVICES LTD
http://statistics.data.gov.uk/id/local-authority/38,Oxfordshire County Council,LIBRARY COLLECTIONS,4539,"Books, DVDs and CDs",18/07/2017,3110247884,590.01,ASKEWS & HOLTS LIBRARY SERVICES LTD
http://statistics.data.gov.uk/id/local-authority/38,Oxfordshire County Council,LIBRARY COLLECTIONS,4539,"Books, DVDs and CDs",19/07/2017,3110247949,687.57,ASKEWS & HOLTS LIBRARY SERVICES LTD
http://statistics.data.gov.uk/id/local-authority/38,Oxfordshire County Council,LIBRARY COLLECTIONS,4539,"Books, DVDs and CDs",18/07/2017,3110247879,715.61,ASKEWS & HOLTS LIBRARY SERVICES LTD
http://statistics.data.gov.uk/id/local-authority/38,Oxfordshire County Council,LIBRARY COLLECTIONS,4539,"Books, DVDs and CDs",17/07/2017,3110247236,726.16,ASKEWS & HOLTS LIBRARY SERVICES LTD
http://statistics.data.gov.uk/id/local-authority/38,Oxfordshire County Council,LIBRARY COLLECTIONS,4539,"Books, DVDs and CDs",19/07/2017,3110247992,728.78,ASKEWS & HOLTS LIBRARY SERVICES LTD
http://statistics.data.gov.uk/id/local-authority/38,Oxfordshire County Council,LIBRARY COLLECTIONS,4539,"Books, DVDs and CDs",19/07/2017,3110251268,778.79,ASKEWS & HOLTS LIBRARY SERVICES LTD
http://statistics.data.gov.uk/id/local-authority/38,Oxfordshire County Council,LIBRARY COLLECTIONS,4539,"Books, DVDs and CDs",18/07/2017,3110247895,828.25,ASKEWS & HOLTS LIBRARY SERVICES LTD
http://statistics.data.gov.uk/id/local-authority/38,Oxfordshire County Council,LIBRARY COLLECTIONS,4539,"Books, DVDs and CDs",18/07/2017,3110247893,"1,054.36",ASKEWS & HOLTS LIBRARY SERVICES LTD
http://statistics.data.gov.uk/id/local-authority/38,Oxfordshire County Council,LIBRARY COLLECTIONS,4539,"Books, DVDs and CDs",19/07/2017,3110247994,"1,150.71",ASKEWS & HOLTS LIBRARY SERVICES LTD
http://statistics.data.gov.uk/id/local-authority/38,Oxfordshire County Council,LIBRARY COLLECTIONS,4539,"Books, DVDs and CDs",19/07/2017,3110247943,"1,222.48",ASKEWS & HOLTS LIBRARY SERVICES LTD
http://statistics.data.gov.uk/id/local-authority/38,Oxfordshire County Council,LIBRARY COLLECTIONS,4539,"Books, DVDs and CDs",19/07/2017,3110247959,"1,310.99",ASKEWS & HOLTS LIBRARY SERVICES LTD
http://statistics.data.gov.uk/id/local-authority/38,Oxfordshire County Council,LD CLIENTS CITY,5688,,13/07/2017,3110246301,"8,011.29",Aspirations
http://statistics.data.gov.uk/id/local-authority/38,Oxfordshire County Council,LD CLIENTS NORTH,5688,,13/07/2017,3110246307,"4,597.92",Aspirations (North West Adults)
http://statistics.data.gov.uk/id/local-authority/38,Oxfordshire County Council,"Didcot CC, Park Road",3821,Grounds Maintenance Contracts,20/07/2017,2200381582,700,Aspire Oxfordshire
http://statistics.data.gov.uk/id/local-authority/38,Oxfordshire County Council,CONCESSIONARY FARES,5781,Payments to Transport Operators,05/07/2017,2200374293,"2,601.50",Aspire Oxfordshire
http://statistics.data.gov.uk/id/local-authority/38,Oxfordshire County Council,CONCESSIONARY FARES,5781,Payments to Transport Operators,05/07/2017,2200374291,"3,718.00",Aspire Oxfordshire
http://statistics.data.gov.uk/id/local-authority/38,Oxfordshire County Council,SCH&SOC CARE TRANSP,5781,Payments to Transport Operators,26/07/2017,2200384838,"3,949.00",Aspire Oxfordshire
http://statistics.data.gov.uk/id/local-authority/38,Oxfordshire County Council,RISING BOLLARDS,5526,Payments to Private Contractors,11/07/2017,2200376800,"4,785.00",ATG ACCESS LTD
http://statistics.data.gov.uk/id/local-authority/38,Oxfordshire County Council,ITS PROJECTS,5668,Technical and Professional Consultant F,24/07/2017,2200383529,690,ATKINS LIMITED
http://statistics.data.gov.uk/id/local-authority/38,Oxfordshire County Council,CONCESSIONARY FARES,5526,Payments to Private Contractors,07/07/2017,2200375082,"1,027.00",ATKINS LIMITED
http://statistics.data.gov.uk/id/local-authority/38,Oxfordshire County Council,Oxfordshire Growth Board,4861,Hired and Contracted Services,18/07/2017,2200380008,"2,272.37",ATKINS LIMITED
http://statistics.data.gov.uk/id/local-authority/38,Oxfordshire County Council,Care Packages & Placements- Older People,5687,,13/07/2017,3110246228,"3,427.49",AUSTEN HOUSE
http://statistics.data.gov.uk/id/local-authority/38,Oxfordshire County Council,LD CLIENTS NORTH,5686,,13/07/2017,3110246457,"21,770.81",Autism Care (Bedford) Ltd
http://statistics.data.gov.uk/id/local-authority/38,Oxfordshire County Council,LD CLIENTS NORTH,5688,,13/07/2017,3110246311,"8,877.71",AUTISM CARE (UK) LTD
http://statistics.data.gov.uk/id/local-authority/38,Oxfordshire County Council,AIM HIGHER FUNDING,4861,Hired and Contracted Services,03/07/2017,3500031371,"25,000.00",Autism Family Support
http://statistics.data.gov.uk/id/local-authority/38,Oxfordshire County Council,TRAINING MANAGEMENT,3100,Educational and Vocational Training,26/07/2017,2200384936,"2,162.50",AVADO Learning Limited
http://statistics.data.gov.uk/id/local-authority/38,Oxfordshire County Council,Care Packages & Placements- Older People,5899,Social Care - Direct Payments,12/07/2017,3110244527,"3,120.00",Redacted Personal Data
http://statistics.data.gov.uk/id/local-authority/38,Oxfordshire County Council,OUT OF COUNTY,5537,Payments to Other Establishments,19/07/2017,3500031864,"16,284.39",Avon Park School
http://statistics.data.gov.uk/id/local-authority/38,Oxfordshire County Council,OUT OF COUNTY,5537,Payments to Other Establishments,19/07/2017,3500031865,"22,940.67",Avon Park School
http://statistics.data.gov.uk/id/local-authority/38,Oxfordshire County Council,OPPB FAST TRACK,5687,,13/07/2017,3110246480,"11,332.72",Avondale Care Home
http://statistics.data.gov.uk/id/local-authority/38,Oxfordshire County Council,Care Packages & Placements- Older People,5689,,26/07/2017,3110251085,557.29,AVR (Oxon) Ltd
http://statistics.data.gov.uk/id/local-authority/38,Oxfordshire County Council,Care Packages & Placements- Older People,5689,,26/07/2017,3110251081,597.38,AVR (Oxon) Ltd
http://statistics.data.gov.uk/id/local-authority/38,Oxfordshire County Council,Care Packages & Placements- Older People,5689,,26/07/2017,3110251098,603.43,AVR (Oxon) Ltd
http://statistics.data.gov.uk/id/local-authority/38,Oxfordshire County Council,CSB - BANBURY,5689,,26/07/2017,3110251097,629.47,AVR (Oxon) Ltd
http://statistics.data.gov.uk/id/local-authority/38,Oxfordshire County Council,Care Packages & Placements- Older People,5689,,26/07/2017,3110251099,825.17,AVR (Oxon) Ltd
http://statistics.data.gov.uk/id/local-authority/38,Oxfordshire County Council,Care Packages & Placements- Older People,5689,,26/07/2017,3110251078,"1,073.06",AVR (Oxon) Ltd
http://statistics.data.gov.uk/id/local-authority/38,Oxfordshire County Council,CSB - BANBURY,5689,,26/07/2017,3110251086,"1,164.58",AVR (Oxon) Ltd
http://statistics.data.gov.uk/id/local-authority/38,Oxfordshire County Council,Care Packages & Placements- Older People,5689,,26/07/2017,3110251077,"1,212.79",AVR (Oxon) Ltd
http://statistics.data.gov.uk/id/local-authority/38,Oxfordshire County Council,CSB - BANBURY,5689,,26/07/2017,3110251089,"1,239.29",AVR (Oxon) Ltd
http://statistics.data.gov.uk/id/local-authority/38,Oxfordshire County Council,Care Packages & Placements- Older People,5689,,26/07/2017,3110251093,"1,983.93",AVR (Oxon) Ltd
http://statistics.data.gov.uk/id/local-authority/38,Oxfordshire County Council,CSB - BANBURY,5689,,26/07/2017,3110251075,"2,050.96",AVR (Oxon) Ltd
http://statistics.data.gov.uk/id/local-authority/38,Oxfordshire County Council,Care Packages & Placements- PD - OCC,5689,,26/07/2017,3110251092,"2,121.04",AVR (Oxon) Ltd
http://statistics.data.gov.uk/id/local-authority/38,Oxfordshire County Council,CSB - BANBURY,5689,,26/07/2017,3110251091,"2,276.74",AVR (Oxon) Ltd
http://statistics.data.gov.uk/id/local-authority/38,Oxfordshire County Council,Care Packages & Placements- Older People,5689,,26/07/2017,3110251096,"2,318.50",AVR (Oxon) Ltd
http://statistics.data.gov.uk/id/local-authority/38,Oxfordshire County Council,COMM DRAWDOWN FUNDNG,8102,Payments to main contractor,10/07/2017,2200376178,"1,317.44",Aylesbury Mains
http://statistics.data.gov.uk/id/local-authority/38,Oxfordshire County Council,LD CLIENTS NORTH,5899,Social Care - Direct Payments,12/07/2017,3110245112,"2,600.00",Redacted Personal Data
http://statistics.data.gov.uk/id/local-authority/38,Oxfordshire County Council,Care Packages & Placements- OP Health,5691,,07/07/2017,3110243706,511.65,B CARERS LTD
http://statistics.data.gov.uk/id/local-authority/38,Oxfordshire County Council,MH SPOT FUNDING,5686,,13/07/2017,3110246560,"5,314.29",B O'CONNOR T/A DUNRAVEN
http://statistics.data.gov.uk/id/local-authority/38,Oxfordshire County Council,Mockingbird,5549,B*Fostering Allowance - Regulation 38,12/07/2017,3110244559,629.05,Redacted Personal Data
http://statistics.data.gov.uk/id/local-authority/38,Oxfordshire County Council,Mockingbird,5549,B*Fostering Allowance - Regulation 38,05/07/2017,3110243143,704.1,Redacted Personal Data
http://statistics.data.gov.uk/id/local-authority/38,Oxfordshire County Council,PD RES PURC - VALE,5686,,13/07/2017,3110246442,"191,231.26",Badby Park Ltd
http://statistics.data.gov.uk/id/local-authority/38,Oxfordshire County Council,FFF - Programme Capacity,2040,Agency Staff,31/07/2017,2200386344,"1,590.00",Badenoch and Clark
http://statistics.data.gov.uk/id/local-authority/38,Oxfordshire County Council,FFF - Programme Capacity,2040,Agency Staff,26/07/2017,2200384971,"2,120.00",Badenoch and Clark
http://statistics.data.gov.uk/id/local-authority/38,Oxfordshire County Council,FFF - Programme Capacity,2040,Agency Staff,27/07/2017,2200385115,"2,200.00",Badenoch and Clark
http://statistics.data.gov.uk/id/local-authority/38,Oxfordshire County Council,FFF - Programme Capacity,2040,Agency Staff,04/07/2017,2200373429,"2,650.00",Badenoch and Clark
http://statistics.data.gov.uk/id/local-authority/38,Oxfordshire County Council,FFF - Programme Capacity,2040,Agency Staff,26/07/2017,2200384666,"2,650.00",Badenoch and Clark
http://statistics.data.gov.uk/id/local-authority/38,Oxfordshire County Council,FFF - Programme Capacity,2040,Agency Staff,26/07/2017,2200384674,"2,650.00",Badenoch and Clark
http://statistics.data.gov.uk/id/local-authority/38,Oxfordshire County Council,FFF - Programme Capacity,2040,Agency Staff,31/07/2017,2200386093,"2,650.00",Badenoch and Clark
http://statistics.data.gov.uk/id/local-authority/38,Oxfordshire County Council,FFF - Programme Capacity,2040,Agency Staff,04/07/2017,2200373430,"2,725.00",Badenoch and Clark
http://statistics.data.gov.uk/id/local-authority/38,Oxfordshire County Council,FFF - Programme Capacity,2040,Agency Staff,26/07/2017,2200384667,"2,725.00",Badenoch and Clark
http://statistics.data.gov.uk/id/local-authority/38,Oxfordshire County Council,FFF - Programme Capacity,2040,Agency Staff,26/07/2017,2200384669,"2,725.00",Badenoch and Clark
http://statistics.data.gov.uk/id/local-authority/38,Oxfordshire County Council,FFF - Programme Capacity,2040,Agency Staff,26/07/2017,2200384676,"2,725.00",Badenoch and Clark
http://statistics.data.gov.uk/id/local-authority/38,Oxfordshire County Council,FFF - Programme Capacity,2040,Agency Staff,26/07/2017,2200384968,"2,725.00",Badenoch and Clark
http://statistics.data.gov.uk/id/local-authority/38,Oxfordshire County Council,FFF - Programme Capacity,2040,Agency Staff,31/07/2017,2200386302,"2,725.00",Badenoch and Clark
http://statistics.data.gov.uk/id/local-authority/38,Oxfordshire County Council,FFF - Programme Capacity,2040,Agency Staff,04/07/2017,2200373465,"2,750.00",Badenoch and Clark
http://statistics.data.gov.uk/id/local-authority/38,Oxfordshire County Council,FFF - Programme Capacity,2040,Agency Staff,05/07/2017,2200374113,"2,750.00",Badenoch and Clark
http://statistics.data.gov.uk/id/local-authority/38,Oxfordshire County Council,FFF - Programme Capacity,2040,Agency Staff,26/07/2017,2200384673,"2,750.00",Badenoch and Clark
http://statistics.data.gov.uk/id/local-authority/38,Oxfordshire County Council,FFF - Programme Capacity,2040,Agency Staff,26/07/2017,2200384705,"2,750.00",Badenoch and Clark
http://statistics.data.gov.uk/id/local-authority/38,Oxfordshire County Council,FFF - Programme Capacity,2040,Agency Staff,26/07/2017,2200384963,"2,750.00",Badenoch and Clark
http://statistics.data.gov.uk/id/local-authority/38,Oxfordshire County Council,FFF - Programme Capacity,2040,Agency Staff,31/07/2017,2200386297,"2,750.00",Badenoch and Clark
http://statistics.data.gov.uk/id/local-authority/38,Oxfordshire County Council,FFF - Programme Capacity,2040,Agency Staff,26/07/2017,2200384701,"2,925.00",Badenoch and Clark
http://statistics.data.gov.uk/id/local-authority/38,Oxfordshire County Council,FFF - Programme Capacity,2040,Agency Staff,26/07/2017,2200384702,"2,925.00",Badenoch and Clark
http://statistics.data.gov.uk/id/local-authority/38,Oxfordshire County Council,FFF - Programme Capacity,2040,Agency Staff,26/07/2017,2200384706,"2,925.00",Badenoch and Clark
http://statistics.data.gov.uk/id/local-authority/38,Oxfordshire County Council,FFF - Programme Capacity,2040,Agency Staff,26/07/2017,2200384708,"2,925.00",Badenoch and Clark
http://statistics.data.gov.uk/id/local-authority/38,Oxfordshire County Council,FFF - Programme Capacity,2040,Agency Staff,31/07/2017,2200386397,"2,925.00",Badenoch and Clark
http://statistics.data.gov.uk/id/local-authority/38,Oxfordshire County Council,MAINSTREAM-SECONDARY,4330,Transport to School Activities,04/07/2017,3110242874,"3,391.50",Bakers Commercial Services Ltd
http://statistics.data.gov.uk/id/local-authority/38,Oxfordshire County Council,MAINSTREAM-PRIMARY,4330,Transport to School Activities,17/07/2017,3110247178,"3,570.00",Bakers Commercial Services Ltd
http://statistics.data.gov.uk/id/local-authority/38,Oxfordshire County Council,MAINSTREAM-SECONDARY,4330,Transport to School Activities,04/07/2017,3110242872,"3,779.10",Bakers Commercial Services Ltd
http://statistics.data.gov.uk/id/local-authority/38,Oxfordshire County Council,MAINSTREAM-SECONDARY,4330,Transport to School Activities,17/07/2017,3110247176,"3,978.00",Bakers Commercial Services Ltd
http://statistics.data.gov.uk/id/local-authority/38,Oxfordshire County Council,MAINSTREAM-SECONDARY,4330,Transport to School Activities,04/07/2017,3110242873,"4,069.80",Bakers Commercial Services Ltd
http://statistics.data.gov.uk/id/local-authority/38,Oxfordshire County Council,MAINSTREAM-SECONDARY,4330,Transport to School Activities,17/07/2017,3110247177,"4,284.00",Bakers Commercial Services Ltd
http://statistics.data.gov.uk/id/local-authority/38,Oxfordshire County Council,PROCUREMENT,4685,Clothing and Uniforms,10/07/2017,2200375851,639.2,Ballyclare LHD Ltd
http://statistics.data.gov.uk/id/local-authority/38,Oxfordshire County Council,PROCUREMENT,4685,Clothing and Uniforms,10/07/2017,2200375710,"24,713.50",Ballyclare LHD Ltd
http://statistics.data.gov.uk/id/local-authority/38,Oxfordshire County Council,CAP CHRGES-SEC SCHS,8102,Payments to main contractor,05/07/2017,2200374327,"11,450.00",Banbury Academy
http://statistics.data.gov.uk/id/local-authority/38,Oxfordshire County Council,OPPB CONTCARE RNCC,5687,,13/07/2017,3110246399,"82,541.65",Banbury Heights Nursing Home
http://statistics.data.gov.uk/id/local-authority/38,Oxfordshire County Council,COUNTY PRINT FINSHRS,4705,Printing,12/07/2017,2200377359,"3,171.00",Banbury Litho Ltd
http://statistics.data.gov.uk/id/local-authority/38,Oxfordshire County Council,HN IN SEC SCHOOLS,5537,Payments to Other Establishments,17/07/2017,3110248020,"3,827.00",Banbury Schools AAT
http://statistics.data.gov.uk/id/local-authority/38,Oxfordshire County Council,LD CLIENTS NORTH,5688,,13/07/2017,3110246196,"5,411.36",BANYA FAMILY PLACEMENT
http://statistics.data.gov.uk/id/local-authority/38,Oxfordshire County Council,CSB - BANBURY,5899,Social Care - Direct Payments,12/07/2017,3110244205,"1,360.00",Redacted Personal Data
http://statistics.data.gov.uk/id/local-authority/38,Oxfordshire County Council,OPPB 12WK PDF,5686,,13/07/2017,3110246276,"199,072.93",Barchester Healthcare Homes Ltd
http://statistics.data.gov.uk/id/local-authority/38,Oxfordshire County Council,LD CLIENTS NORTH,5899,Social Care - Direct Payments,12/07/2017,3110244536,"2,261.00",Redacted Personal Data
http://statistics.data.gov.uk/id/local-authority/38,Oxfordshire County Council,AIM HIGHER FUNDING,4861,Hired and Contracted Services,14/07/2017,3500031720,"53,750.00",Barnardo's
http://statistics.data.gov.uk/id/local-authority/38,Oxfordshire County Council,MAINSTREAM-SECONDARY,4330,Transport to School Activities,28/07/2017,3110251902,570,Barnes Coaches Ltd
http://statistics.data.gov.uk/id/local-authority/38,Oxfordshire County Council,MAINSTREAM-SECONDARY,4330,Transport to School Activities,28/07/2017,3110251899,690,Barnes Coaches Ltd
http://statistics.data.gov.uk/id/local-authority/38,Oxfordshire County Council,MAINSTREAM-SECONDARY,4330,Transport to School Activities,28/07/2017,3110251869,997.5,Barnes Coaches Ltd
http://statistics.data.gov.uk/id/local-authority/38,Oxfordshire County Council,MAINSTREAM-SECONDARY,4330,Transport to School Activities,28/07/2017,3110251875,"2,500.00",Barnes Coaches Ltd
http://statistics.data.gov.uk/id/local-authority/38,Oxfordshire County Council,MAINSTREAM-SECONDARY,4330,Transport to School Activities,28/07/2017,3110251878,"3,380.00",Barnes Coaches Ltd
http://statistics.data.gov.uk/id/local-authority/38,Oxfordshire County Council,MAINSTREAM-SECONDARY,4330,Transport to School Activities,28/07/2017,3110251872,"4,949.00",Barnes Coaches Ltd
http://statistics.data.gov.uk/id/local-authority/38,Oxfordshire County Council,MAINSTREAM-SECONDARY,4330,Transport to School Activities,28/07/2017,3110251884,"5,700.00",Barnes Coaches Ltd
http://statistics.data.gov.uk/id/local-authority/38,Oxfordshire County Council,MAINSTREAM-SECONDARY,4330,Transport to School Activities,28/07/2017,3110251881,"6,900.00",Barnes Coaches Ltd
http://statistics.data.gov.uk/id/local-authority/38,Oxfordshire County Council,LD CLIENTS NORTH,5899,Social Care - Direct Payments,12/07/2017,3110244240,840.68,Redacted Personal Data
http://statistics.data.gov.uk/id/local-authority/38,Oxfordshire County Council,Care Packages & Placements- Older People,5686,,13/07/2017,3110246446,"49,807.13",Bartletts Residential Home
http://statistics.data.gov.uk/id/local-authority/38,Oxfordshire County Council,COMM DRAWDOWN FUNDNG,8103,Payments to sub contractor,14/07/2017,2200378807,"-17,383.00",Barton Oxford LLP
http://statistics.data.gov.uk/id/local-authority/38,Oxfordshire County Council,COMM DRAWDOWN FUNDNG,8103,Payments to sub contractor,17/07/2017,2200379589,"17,383.00",Barton Oxford LLP
http://statistics.data.gov.uk/id/local-authority/38,Oxfordshire County Council,Supervised Consumption APL,4934,,19/07/2017,3110251806,784,Barton Pharmacy
http://statistics.data.gov.uk/id/local-authority/38,Oxfordshire County Council,Care Packages & Placements- PD - OCC,5687,,13/07/2017,3110246383,"23,848.65",Beacher Hall Nursing Centre
http://statistics.data.gov.uk/id/local-authority/38,Oxfordshire County Council,OPPB CONTCARE RNCC,5687,,13/07/2017,3110246313,"12,631.26",Beech Court Nursing Home
http://statistics.data.gov.uk/id/local-authority/38,Oxfordshire County Council,CARE HOME SPOT CHERW,5686,,13/07/2017,3110246385,"60,373.05",Beech Haven Care Home
http://statistics.data.gov.uk/id/local-authority/38,Oxfordshire County Council,Care Packages & Placements- OP Health,5687,,13/07/2017,3110246555,"28,684.43",Belsfield Care
http://statistics.data.gov.uk/id/local-authority/38,Oxfordshire County Council,,1162,VAT - Input Adjustment,17/07/2017,3110246972,"1,129.20",BERRYMANS LACE MAWER SOLICITORS
http://statistics.data.gov.uk/id/local-authority/38,Oxfordshire County Council,Care Packages & Placements- Older People,5899,Social Care - Direct Payments,12/07/2017,3110245485,522,Redacted Personal Data
http://statistics.data.gov.uk/id/local-authority/38,Oxfordshire County Council,Care Packages & Placements- Older People,5899,Social Care - Direct Payments,27/07/2017,3110251217,"1,969.36",Redacted Personal Data
http://statistics.data.gov.uk/id/local-authority/38,Oxfordshire County Council,PD COMM SUPP DIDCOT,5899,Social Care - Direct Payments,12/07/2017,3110245278,"3,428.00",Redacted Personal Data
http://statistics.data.gov.uk/id/local-authority/38,Oxfordshire County Council,CSB - ABINGDON,5899,Social Care - Direct Payments,12/07/2017,3110245283,992,Redacted Personal Data
http://statistics.data.gov.uk/id/local-authority/38,Oxfordshire County Council,Care Packages & Placements- Older People,5899,Social Care - Direct Payments,19/07/2017,3110247358,"2,740.80",Redacted Personal Data
http://statistics.data.gov.uk/id/local-authority/38,Oxfordshire County Council,HN IN SEC SCHOOLS,5537,Payments to Other Establishments,17/07/2017,3110248034,"3,841.00",Bicester Learning Academy
http://statistics.data.gov.uk/id/local-authority/38,Oxfordshire County Council,OPPB CONTCARE DEL HE,5691,,07/07/2017,3110243678,600.85,Bicester PA and Care LLP
http://statistics.data.gov.uk/id/local-authority/38,Oxfordshire County Council,OPPB CONTCARE DEL HE,5691,,07/07/2017,3110243675,610.7,Bicester PA and Care LLP
http://statistics.data.gov.uk/id/local-authority/38,Oxfordshire County Council,Care Packages & Placements- LD - OCC,5693,,13/07/2017,3110246096,"2,398.18",Bicester PA and Care LLP
http://statistics.data.gov.uk/id/local-authority/38,Oxfordshire County Council,CORPORATE LANDLORD,3945,Rent,13/07/2017,3500031704,"2,500.00",Bicester Town Council
http://statistics.data.gov.uk/id/local-authority/38,Oxfordshire County Council,CORPORATE LANDLORD,3945,Rent,14/07/2017,3500031721,"2,500.00",Bicester Town Council
http://statistics.data.gov.uk/id/local-authority/38,Oxfordshire County Council,,1441,Uncleared Misc Income Receipts,10/07/2017,3110243763,"6,161.90",Biomarsh Environmental Ltd
http://statistics.data.gov.uk/id/local-authority/38,Oxfordshire County Council,LAC PUPIL PREMIUM,5537,Payments to Other Establishments,19/07/2017,3110248179,"1,145.00",Bishop Loveday CofE Primary School
http://statistics.data.gov.uk/id/local-authority/38,Oxfordshire County Council,SEN TRANSPORT,5227,Other Transport Arrangements,04/07/2017,3110242837,540,Black and White Cars T/A Banbury Ta
http://statistics.data.gov.uk/id/local-authority/38,Oxfordshire County Council,POST 16 SEN,4330,Transport to School Activities,12/07/2017,3110245967,556.4,Black and White Cars T/A Banbury Ta
http://statistics.data.gov.uk/id/local-authority/38,Oxfordshire County Council,SEN TRANSPORT,4330,Transport to School Activities,12/07/2017,3110246044,560,Black and White Cars T/A Banbury Ta
http://statistics.data.gov.uk/id/local-authority/38,Oxfordshire County Council,SEN TRANSPORT,5227,Other Transport Arrangements,04/07/2017,3110242846,600,Black and White Cars T/A Banbury Ta
http://statistics.data.gov.uk/id/local-authority/38,Oxfordshire County Council,SEN TRANSPORT,5227,Other Transport Arrangements,04/07/2017,3110242853,608,Black and White Cars T/A Banbury Ta
http://statistics.data.gov.uk/id/local-authority/38,Oxfordshire County Council,SEN TRANSPORT,5227,Other Transport Arrangements,12/07/2017,3110245963,672.41,Black and White Cars T/A Banbury Ta
http://statistics.data.gov.uk/id/local-authority/38,Oxfordshire County Council,SEN TRANSPORT,4330,Transport to School Activities,12/07/2017,3110245958,690,Black and White Cars T/A Banbury Ta
http://statistics.data.gov.uk/id/local-authority/38,Oxfordshire County Council,SEN TRANSPORT,5227,Other Transport Arrangements,12/07/2017,3110245954,836,Black and White Cars T/A Banbury Ta
http://statistics.data.gov.uk/id/local-authority/38,Oxfordshire County Council,SEN TRANSPORT,4330,Transport to School Activities,04/07/2017,3110242857,840,Black and White Cars T/A Banbury Ta
http://statistics.data.gov.uk/id/local-authority/38,Oxfordshire County Council,MEADOWBROOK TRANSPT,4330,Transport to School Activities,04/07/2017,3110242860,888,Black and White Cars T/A Banbury Ta
http://statistics.data.gov.uk/id/local-authority/38,Oxfordshire County Council,SEN TRANSPORT,4330,Transport to School Activities,12/07/2017,3110245957,950,Black and White Cars T/A Banbury Ta
http://statistics.data.gov.uk/id/local-authority/38,Oxfordshire County Council,SEN TRANSPORT,4330,Transport to School Activities,04/07/2017,3110242848,960,Black and White Cars T/A Banbury Ta
http://statistics.data.gov.uk/id/local-authority/38,Oxfordshire County Council,SEN TRANSPORT,4330,Transport to School Activities,04/07/2017,3110242840,"1,000.00",Black and White Cars T/A Banbury Ta
http://statistics.data.gov.uk/id/local-authority/38,Oxfordshire County Council,SEN TRANSPORT,4330,Transport to School Activities,04/07/2017,3110242845,"1,000.00",Black and White Cars T/A Banbury Ta
http://statistics.data.gov.uk/id/local-authority/38,Oxfordshire County Council,SEN TRANSPORT,5227,Other Transport Arrangements,12/07/2017,3110245961,"1,020.00",Black and White Cars T/A Banbury Ta
http://statistics.data.gov.uk/id/local-authority/38,Oxfordshire County Council,SEN TRANSPORT,4330,Transport to School Activities,04/07/2017,3110242838,"1,064.61",Black and White Cars T/A Banbury Ta
http://statistics.data.gov.uk/id/local-authority/38,Oxfordshire County Council,SEN TRANSPORT,4330,Transport to School Activities,04/07/2017,3110242843,"1,100.00",Black and White Cars T/A Banbury Ta
http://statistics.data.gov.uk/id/local-authority/38,Oxfordshire County Council,SEN TRANSPORT,4330,Transport to School Activities,12/07/2017,3110246049,"1,136.00",Black and White Cars T/A Banbury Ta
http://statistics.data.gov.uk/id/local-authority/38,Oxfordshire County Council,SEN TRANSPORT,5227,Other Transport Arrangements,12/07/2017,3110245956,"1,140.00",Black and White Cars T/A Banbury Ta
http://statistics.data.gov.uk/id/local-authority/38,Oxfordshire County Council,SEN TRANSPORT,4330,Transport to School Activities,04/07/2017,3110242847,"1,170.00",Black and White Cars T/A Banbury Ta
http://statistics.data.gov.uk/id/local-authority/38,Oxfordshire County Council,SEN TRANSPORT,5227,Other Transport Arrangements,12/07/2017,3110245952,"1,216.00",Black and White Cars T/A Banbury Ta
http://statistics.data.gov.uk/id/local-authority/38,Oxfordshire County Council,Care Packages & Placements- LD - OCC,4314,"Other Trans Contract Costs (CRB, Car Sea",12/07/2017,3110246042,"1,253.00",Black and White Cars T/A Banbury Ta
http://statistics.data.gov.uk/id/local-authority/38,Oxfordshire County Council,SEN TRANSPORT,5227,Other Transport Arrangements,04/07/2017,3110242834,"1,260.00",Black and White Cars T/A Banbury Ta
http://statistics.data.gov.uk/id/local-authority/38,Oxfordshire County Council,MEADOWBROOK TRANSPT,4330,Transport to School Activities,04/07/2017,3110242859,"1,397.00",Black and White Cars T/A Banbury Ta
http://statistics.data.gov.uk/id/local-authority/38,Oxfordshire County Council,SEN TRANSPORT,4330,Transport to School Activities,04/07/2017,3110242855,"1,521.00",Black and White Cars T/A Banbury Ta
http://statistics.data.gov.uk/id/local-authority/38,Oxfordshire County Council,SEN TRANSPORT,4330,Transport to School Activities,04/07/2017,3110242852,"1,600.00",Black and White Cars T/A Banbury Ta
http://statistics.data.gov.uk/id/local-authority/38,Oxfordshire County Council,SEN TRANSPORT,4330,Transport to School Activities,12/07/2017,3110245965,"1,824.00",Black and White Cars T/A Banbury Ta
http://statistics.data.gov.uk/id/local-authority/38,Oxfordshire County Council,SEN TRANSPORT,4330,Transport to School Activities,12/07/2017,3110245955,"1,900.00",Black and White Cars T/A Banbury Ta
http://statistics.data.gov.uk/id/local-authority/38,Oxfordshire County Council,RESPITE,4330,Transport to School Activities,04/07/2017,3110242854,"1,980.00",Black and White Cars T/A Banbury Ta
http://statistics.data.gov.uk/id/local-authority/38,Oxfordshire County Council,RESPITE,4330,Transport to School Activities,12/07/2017,3110245949,"2,002.00",Black and White Cars T/A Banbury Ta
http://statistics.data.gov.uk/id/local-authority/38,Oxfordshire County Council,SEN TRANSPORT,4330,Transport to School Activities,04/07/2017,3110242833,"2,100.00",Black and White Cars T/A Banbury Ta
http://statistics.data.gov.uk/id/local-authority/38,Oxfordshire County Council,SEN TRANSPORT,4330,Transport to School Activities,04/07/2017,3110242836,"2,160.00",Black and White Cars T/A Banbury Ta
http://statistics.data.gov.uk/id/local-authority/38,Oxfordshire County Council,SEN TRANSPORT,4330,Transport to School Activities,12/07/2017,3110245964,"2,223.00",Black and White Cars T/A Banbury Ta
http://statistics.data.gov.uk/id/local-authority/38,Oxfordshire County Council,SEN TRANSPORT,4330,Transport to School Activities,12/07/2017,3110245962,"2,247.51",Black and White Cars T/A Banbury Ta
http://statistics.data.gov.uk/id/local-authority/38,Oxfordshire County Council,SEN TRANSPORT,4330,Transport to School Activities,04/07/2017,3110242851,"2,304.00",Black and White Cars T/A Banbury Ta
http://statistics.data.gov.uk/id/local-authority/38,Oxfordshire County Council,SEN TRANSPORT,4330,Transport to School Activities,12/07/2017,3110245953,"2,378.00",Black and White Cars T/A Banbury Ta
http://statistics.data.gov.uk/id/local-authority/38,Oxfordshire County Council,SEN TRANSPORT,4330,Transport to School Activities,04/07/2017,3110242835,"2,400.00",Black and White Cars T/A Banbury Ta
http://statistics.data.gov.uk/id/local-authority/38,Oxfordshire County Council,SEN TRANSPORT,4330,Transport to School Activities,04/07/2017,3110242849,"2,458.88",Black and White Cars T/A Banbury Ta
http://statistics.data.gov.uk/id/local-authority/38,Oxfordshire County Council,SEN TRANSPORT,4330,Transport to School Activities,04/07/2017,3110242842,"2,640.00",Black and White Cars T/A Banbury Ta
http://statistics.data.gov.uk/id/local-authority/38,Oxfordshire County Council,Care Packages & Placements- LD - OCC,4314,"Other Trans Contract Costs (CRB, Car Sea",12/07/2017,3110245966,"2,781.60",Black and White Cars T/A Banbury Ta
http://statistics.data.gov.uk/id/local-authority/38,Oxfordshire County Council,SEN TRANSPORT,4330,Transport to School Activities,12/07/2017,3110245950,"2,850.00",Black and White Cars T/A Banbury Ta
http://statistics.data.gov.uk/id/local-authority/38,Oxfordshire County Council,RESPITE,4330,Transport to School Activities,12/07/2017,3110245948,"3,080.00",Black and White Cars T/A Banbury Ta
http://statistics.data.gov.uk/id/local-authority/38,Oxfordshire County Council,RESPITE,4330,Transport to School Activities,12/07/2017,3110245947,"3,236.00",Black and White Cars T/A Banbury Ta
http://statistics.data.gov.uk/id/local-authority/38,Oxfordshire County Council,MEADOWBROOK TRANSPT,4330,Transport to School Activities,04/07/2017,3110242858,"3,760.00",Black and White Cars T/A Banbury Ta
http://statistics.data.gov.uk/id/local-authority/38,Oxfordshire County Council,SEN TRANSPORT,4330,Transport to School Activities,12/07/2017,3110245951,"3,800.00",Black and White Cars T/A Banbury Ta
http://statistics.data.gov.uk/id/local-authority/38,Oxfordshire County Council,SEN TRANSPORT,4330,Transport to School Activities,12/07/2017,3110245960,"4,080.00",Black and White Cars T/A Banbury Ta
http://statistics.data.gov.uk/id/local-authority/38,Oxfordshire County Council,SEN TRANSPORT,4330,Transport to School Activities,04/07/2017,3110242850,"4,350.00",Black and White Cars T/A Banbury Ta
http://statistics.data.gov.uk/id/local-authority/38,Oxfordshire County Council,CARE HOME SPOT VALE,5686,,13/07/2017,3110246510,"2,856.43",Blackwood House
http://statistics.data.gov.uk/id/local-authority/38,Oxfordshire County Council,LIABILITY,3257,,10/07/2017,3110243802,969.8,Blake Morgan LLP
http://statistics.data.gov.uk/id/local-authority/38,Oxfordshire County Council,LIABILITY,3257,,10/07/2017,3110243799,"1,311.50",Blake Morgan LLP
http://statistics.data.gov.uk/id/local-authority/38,Oxfordshire County Council,LIABILITY,3257,,10/07/2017,3110243801,"1,637.50",Blake Morgan LLP
http://statistics.data.gov.uk/id/local-authority/38,Oxfordshire County Council,LIABILITY,3257,,10/07/2017,3110243800,"3,896.00",Blake Morgan LLP
http://statistics.data.gov.uk/id/local-authority/38,Oxfordshire County Council,HN IN SEC SCHOOLS,5537,Payments to Other Establishments,17/07/2017,3110248085,"2,445.00",Blessed George Napier C School
http://statistics.data.gov.uk/id/local-authority/38,Oxfordshire County Council,OBS,4790,"Publicity, Promotions and Advertisement",05/07/2017,2200374134,"2,008.23",Blooberry Design ltd
http://statistics.data.gov.uk/id/local-authority/38,Oxfordshire County Council,OBS,4790,"Publicity, Promotions and Advertisement",05/07/2017,2200374133,"2,994.00",Blooberry Design ltd
http://statistics.data.gov.uk/id/local-authority/38,Oxfordshire County Council,OBS,4790,"Publicity, Promotions and Advertisement",05/07/2017,2200374130,"3,015.43",Blooberry Design ltd
http://statistics.data.gov.uk/id/local-authority/38,Oxfordshire County Council,OBS,4790,"Publicity, Promotions and Advertisement",05/07/2017,2200374131,"4,649.21",Blooberry Design ltd
http://statistics.data.gov.uk/id/local-authority/38,Oxfordshire County Council,OBS,4790,"Publicity, Promotions and Advertisement",05/07/2017,2200374135,"5,187.20",Blooberry Design ltd
http://statistics.data.gov.uk/id/local-authority/38,Oxfordshire County Council,OBS,4790,"Publicity, Promotions and Advertisement",05/07/2017,2200374137,"8,564.00",Blooberry Design ltd
http://statistics.data.gov.uk/id/local-authority/38,Oxfordshire County Council,OPPB CONTCARE DEL HE,5691,,07/07/2017,3110243647,515.45,Bluebird Care
http://statistics.data.gov.uk/id/local-authority/38,Oxfordshire County Council,OPPB CONTCARE DEL HE,5691,,28/07/2017,3110251724,603,Bluebird Care
http://statistics.data.gov.uk/id/local-authority/38,Oxfordshire County Council,OPPB CONTCARE DEL HE,5691,,07/07/2017,3110243677,817.4,Bluebird Care
http://statistics.data.gov.uk/id/local-authority/38,Oxfordshire County Council,OPPB CONTCARE DEL HE,5691,,28/07/2017,3110251725,"1,206.00",Bluebird Care
http://statistics.data.gov.uk/id/local-authority/38,Oxfordshire County Council,OPPB CONTCARE DEL HE,5691,,21/07/2017,3110249166,"2,221.45",Bluebird Care
http://statistics.data.gov.uk/id/local-authority/38,Oxfordshire County Council,Care Packages & Placements- OP Health,5691,,21/07/2017,3110249255,"4,741.70",Bluebird Care
http://statistics.data.gov.uk/id/local-authority/38,Oxfordshire County Council,OPPB FAST TRACK,5691,,21/07/2017,3110249168,"5,366.70",Bluebird Care
http://statistics.data.gov.uk/id/local-authority/38,Oxfordshire County Council,OPPB CONTCARE H SUPP,5691,,21/07/2017,3110249169,"2,086.80",Bluebird Care (Oxford South & West)
http://statistics.data.gov.uk/id/local-authority/38,Oxfordshire County Council,Care Packages & Placements- Older People,5691,,27/07/2017,2200385109,"2,184.00",Bluebird Care (Oxford South & West)
http://statistics.data.gov.uk/id/local-authority/38,Oxfordshire County Council,Care Packages & Placements- Older People,5691,,11/07/2017,2200376480,"2,278.45",Bluebird Care (Oxford South & West)
http://statistics.data.gov.uk/id/local-authority/38,Oxfordshire County Council,Care Packages & Placements- OP Health,5691,,21/07/2017,3110249167,"2,627.30",Bluebird Care (Oxford South & West)
http://statistics.data.gov.uk/id/local-authority/38,Oxfordshire County Council,OPPB CONTCARE H SUPP,5691,,14/07/2017,3110247109,"3,936.15",Bluebird Care (Oxford South & West)
http://statistics.data.gov.uk/id/local-authority/38,Oxfordshire County Council,OPERATIONS,4407,Equipment,06/07/2017,2200374580,561.33,Boc Ltd
http://statistics.data.gov.uk/id/local-authority/38,Oxfordshire County Council,GRASS CUTTING DIST.,5526,Payments to Private Contractors,18/07/2017,3110247921,"2,139.82",Bodicote Parish Council
http://statistics.data.gov.uk/id/local-authority/38,Oxfordshire County Council,Supervised Consumption APL,4934,,19/07/2017,3110251846,532,Boots the Chemist
http://statistics.data.gov.uk/id/local-authority/38,Oxfordshire County Council,CONTRACEPTION,4934,,07/07/2017,3110243853,551.2,Boots the Chemist
http://statistics.data.gov.uk/id/local-authority/38,Oxfordshire County Council,Supervised Consumption APL,4934,,19/07/2017,3110251843,644,Boots the Chemist
http://statistics.data.gov.uk/id/local-authority/38,Oxfordshire County Council,CONTRACEPTION,4934,,07/07/2017,3110243854,"2,125.30",Boots the Chemist
http://statistics.data.gov.uk/id/local-authority/38,Oxfordshire County Council,Supervised Consumption APL,4934,,19/07/2017,3110251864,"1,764.00",Boswells of Oxford Pharmacy
http://statistics.data.gov.uk/id/local-authority/38,Oxfordshire County Council,LD CLIENTS CITY,5686,,13/07/2017,3110246424,"2,956.20",Bradbury House Organisation
http://statistics.data.gov.uk/id/local-authority/38,Oxfordshire County Council,SPECIAL GUARDIANSHIP,5664,B*Holiday Allowance,05/07/2017,3110243303,979.6,Redacted Personal Data
http://statistics.data.gov.uk/id/local-authority/38,Oxfordshire County Council,SPECIAL GUARDIANSHIP,5664,B*Holiday Allowance,12/07/2017,3110244873,979.6,Redacted Personal Data
http://statistics.data.gov.uk/id/local-authority/38,Oxfordshire County Council,SPECIAL GUARDIANSHIP,5664,B*Holiday Allowance,19/07/2017,3110247811,979.6,Redacted Personal Data
http://statistics.data.gov.uk/id/local-authority/38,Oxfordshire County Council,SPECIAL GUARDIANSHIP,5664,B*Holiday Allowance,26/07/2017,3110249868,979.6,Redacted Personal Data
http://statistics.data.gov.uk/id/local-authority/38,Oxfordshire County Council,PD COMM SUPP - CITY,5899,Social Care - Direct Payments,12/07/2017,3110245269,"3,160.00",Redacted Personal Data
http://statistics.data.gov.uk/id/local-authority/38,Oxfordshire County Council,SEN TRANSPORT,4330,Transport to School Activities,04/07/2017,3110242869,"1,140.00",Brians Hire Ltd
http://statistics.data.gov.uk/id/local-authority/38,Oxfordshire County Council,SEN TRANSPORT,4330,Transport to School Activities,28/07/2017,3110251785,"1,200.00",Brians Hire Ltd
http://statistics.data.gov.uk/id/local-authority/38,Oxfordshire County Council,CARE HOME SPOT VALE,5686,,13/07/2017,3110246474,"74,905.45",Bridge House
http://statistics.data.gov.uk/id/local-authority/38,Oxfordshire County Council,CSB - DIDCOT,5689,,20/07/2017,3110249013,-825.55,Bridges Home Care Ltd
http://statistics.data.gov.uk/id/local-authority/38,Oxfordshire County Council,CSB - DIDCOT,5689,,20/07/2017,3110249039,515.97,Bridges Home Care Ltd
http://statistics.data.gov.uk/id/local-authority/38,Oxfordshire County Council,Care Packages & Placements- Older People,5689,,20/07/2017,3110249071,527.05,Bridges Home Care Ltd
http://statistics.data.gov.uk/id/local-authority/38,Oxfordshire County Council,Care Packages & Placements- Older People,5689,,20/07/2017,3110249048,533.93,Bridges Home Care Ltd
http://statistics.data.gov.uk/id/local-authority/38,Oxfordshire County Council,CSB - DIDCOT,5689,,20/07/2017,3110249020,561.45,Bridges Home Care Ltd
http://statistics.data.gov.uk/id/local-authority/38,Oxfordshire County Council,CSB - DIDCOT,5689,,20/07/2017,3110249010,575.98,Bridges Home Care Ltd
http://statistics.data.gov.uk/id/local-authority/38,Oxfordshire County Council,Care Packages & Placements- Older People,5689,,20/07/2017,3110249077,622.98,Bridges Home Care Ltd
http://statistics.data.gov.uk/id/local-authority/38,Oxfordshire County Council,Care Packages & Placements- Older People,5689,,20/07/2017,3110249067,625.28,Bridges Home Care Ltd
http://statistics.data.gov.uk/id/local-authority/38,Oxfordshire County Council,CSB - DIDCOT,5689,,20/07/2017,3110249040,630.63,Bridges Home Care Ltd
http://statistics.data.gov.uk/id/local-authority/38,Oxfordshire County Council,Care Packages & Placements- Older People,5689,,20/07/2017,3110249069,634.83,Bridges Home Care Ltd
http://statistics.data.gov.uk/id/local-authority/38,Oxfordshire County Council,CSB - DIDCOT,5689,,20/07/2017,3110249018,648.21,Bridges Home Care Ltd
http://statistics.data.gov.uk/id/local-authority/38,Oxfordshire County Council,CSB - DIDCOT,5689,,20/07/2017,3110249024,650.89,Bridges Home Care Ltd
http://statistics.data.gov.uk/id/local-authority/38,Oxfordshire County Council,CSB - DIDCOT,5689,,20/07/2017,3110249027,657,Bridges Home Care Ltd
http://statistics.data.gov.uk/id/local-authority/38,Oxfordshire County Council,LD CLIENTS SOUTH,5689,,20/07/2017,3110249044,668.09,Bridges Home Care Ltd
http://statistics.data.gov.uk/id/local-authority/38,Oxfordshire County Council,Care Packages & Placements- Older People,5689,,20/07/2017,3110249082,699.81,Bridges Home Care Ltd
http://statistics.data.gov.uk/id/local-authority/38,Oxfordshire County Council,Care Packages & Placements- Older People,5689,,20/07/2017,3110249062,723.89,Bridges Home Care Ltd
http://statistics.data.gov.uk/id/local-authority/38,Oxfordshire County Council,CSB - DIDCOT,5689,,20/07/2017,3110249023,767.46,Bridges Home Care Ltd
http://statistics.data.gov.uk/id/local-authority/38,Oxfordshire County Council,CSB - DIDCOT,5689,,20/07/2017,3110249036,770.52,Bridges Home Care Ltd
http://statistics.data.gov.uk/id/local-authority/38,Oxfordshire County Council,CSB - DIDCOT,5689,,20/07/2017,3110249033,786.18,Bridges Home Care Ltd
http://statistics.data.gov.uk/id/local-authority/38,Oxfordshire County Council,Care Packages & Placements- Older People,5689,,20/07/2017,3110249053,807.58,Bridges Home Care Ltd
http://statistics.data.gov.uk/id/local-authority/38,Oxfordshire County Council,Care Packages & Placements- Older People,5689,,20/07/2017,3110249092,830.9,Bridges Home Care Ltd
http://statistics.data.gov.uk/id/local-authority/38,Oxfordshire County Council,CSB - DIDCOT,5689,,20/07/2017,3110249022,840.08,Bridges Home Care Ltd
http://statistics.data.gov.uk/id/local-authority/38,Oxfordshire County Council,CSB - DIDCOT,5689,,20/07/2017,3110249043,845.81,Bridges Home Care Ltd
http://statistics.data.gov.uk/id/local-authority/38,Oxfordshire County Council,CSB - DIDCOT,5689,,20/07/2017,3110249011,857.66,Bridges Home Care Ltd
http://statistics.data.gov.uk/id/local-authority/38,Oxfordshire County Council,Care Packages & Placements- Older People,5689,,20/07/2017,3110249055,867.98,Bridges Home Care Ltd
http://statistics.data.gov.uk/id/local-authority/38,Oxfordshire County Council,CSB - DIDCOT,5689,,20/07/2017,3110249009,897.02,Bridges Home Care Ltd
http://statistics.data.gov.uk/id/local-authority/38,Oxfordshire County Council,CSB - DIDCOT,5689,,20/07/2017,3110249031,921.48,Bridges Home Care Ltd
http://statistics.data.gov.uk/id/local-authority/38,Oxfordshire County Council,Care Packages & Placements- Older People,5689,,20/07/2017,3110249085,924.16,Bridges Home Care Ltd
http://statistics.data.gov.uk/id/local-authority/38,Oxfordshire County Council,CSB - DIDCOT,5689,,20/07/2017,3110249028,"1,012.07",Bridges Home Care Ltd
http://statistics.data.gov.uk/id/local-authority/38,Oxfordshire County Council,CSB - DIDCOT,5689,,20/07/2017,3110249025,"1,077.42",Bridges Home Care Ltd
http://statistics.data.gov.uk/id/local-authority/38,Oxfordshire County Council,Care Packages & Placements- PD - OCC,5689,,20/07/2017,3110249095,"1,090.42",Bridges Home Care Ltd
http://statistics.data.gov.uk/id/local-authority/38,Oxfordshire County Council,Care Packages & Placements- Older People,5689,,20/07/2017,3110249072,"1,113.73",Bridges Home Care Ltd
http://statistics.data.gov.uk/id/local-authority/38,Oxfordshire County Council,Care Packages & Placements- Older People,5689,,20/07/2017,3110249080,"1,187.11",Bridges Home Care Ltd
http://statistics.data.gov.uk/id/local-authority/38,Oxfordshire County Council,Care Packages & Placements- Older People,5689,,20/07/2017,3110249065,"1,245.21",Bridges Home Care Ltd
http://statistics.data.gov.uk/id/local-authority/38,Oxfordshire County Council,CSB - DIDCOT,5689,,20/07/2017,3110249017,"1,248.65",Bridges Home Care Ltd
http://statistics.data.gov.uk/id/local-authority/38,Oxfordshire County Council,Care Packages & Placements- PD - OCC,5689,,20/07/2017,3110249094,"1,278.84",Bridges Home Care Ltd
http://statistics.data.gov.uk/id/local-authority/38,Oxfordshire County Council,Care Packages & Placements- Older People,5689,,20/07/2017,3110249083,"1,295.66",Bridges Home Care Ltd
http://statistics.data.gov.uk/id/local-authority/38,Oxfordshire County Council,Care Packages & Placements- Older People,5689,,20/07/2017,3110249081,"1,378.98",Bridges Home Care Ltd
http://statistics.data.gov.uk/id/local-authority/38,Oxfordshire County Council,CSB - DIDCOT,5689,,20/07/2017,3110249012,"1,390.44",Bridges Home Care Ltd
http://statistics.data.gov.uk/id/local-authority/38,Oxfordshire County Council,CSB - DIDCOT,5689,,20/07/2017,3110249015,"1,490.96",Bridges Home Care Ltd
http://statistics.data.gov.uk/id/local-authority/38,Oxfordshire County Council,Care Packages & Placements- Older People,5689,,20/07/2017,3110249060,"1,591.86",Bridges Home Care Ltd
http://statistics.data.gov.uk/id/local-authority/38,Oxfordshire County Council,Care Packages & Placements- Older People,5689,,20/07/2017,3110249078,"1,688.18",Bridges Home Care Ltd
http://statistics.data.gov.uk/id/local-authority/38,Oxfordshire County Council,Care Packages & Placements- Older People,5689,,20/07/2017,3110249052,"1,832.65",Bridges Home Care Ltd
http://statistics.data.gov.uk/id/local-authority/38,Oxfordshire County Council,CSB - DIDCOT,5689,,20/07/2017,3110249030,"1,871.63",Bridges Home Care Ltd
http://statistics.data.gov.uk/id/local-authority/38,Oxfordshire County Council,CSB - DIDCOT,5689,,20/07/2017,3110249032,"2,059.29",Bridges Home Care Ltd
http://statistics.data.gov.uk/id/local-authority/38,Oxfordshire County Council,CSB - DIDCOT,5689,,20/07/2017,3110249038,"2,199.18",Bridges Home Care Ltd
http://statistics.data.gov.uk/id/local-authority/38,Oxfordshire County Council,Care Packages & Placements- Older People,5689,,20/07/2017,3110249059,"2,350.15",Bridges Home Care Ltd
http://statistics.data.gov.uk/id/local-authority/38,Oxfordshire County Council,Care Packages & Placements- Older People,5689,,20/07/2017,3110249063,"2,403.66",Bridges Home Care Ltd
http://statistics.data.gov.uk/id/local-authority/38,Oxfordshire County Council,PD COMM SUPP DIDCOT,5689,,20/07/2017,3110249101,"2,501.50",Bridges Home Care Ltd
http://statistics.data.gov.uk/id/local-authority/38,Oxfordshire County Council,CSB - DIDCOT,5689,,20/07/2017,3110249035,"2,565.71",Bridges Home Care Ltd
http://statistics.data.gov.uk/id/local-authority/38,Oxfordshire County Council,Care Packages & Placements- Older People,5689,,20/07/2017,3110249079,"2,623.04",Bridges Home Care Ltd
http://statistics.data.gov.uk/id/local-authority/38,Oxfordshire County Council,PD COMM SUPP DIDCOT,5689,,20/07/2017,3110249100,"2,658.20",Bridges Home Care Ltd
http://statistics.data.gov.uk/id/local-authority/38,Oxfordshire County Council,Care Packages & Placements- Older People,5689,,20/07/2017,3110249076,"2,666.61",Bridges Home Care Ltd
http://statistics.data.gov.uk/id/local-authority/38,Oxfordshire County Council,Care Packages & Placements- Older People,5689,,20/07/2017,3110249075,"2,693.74",Bridges Home Care Ltd
http://statistics.data.gov.uk/id/local-authority/38,Oxfordshire County Council,Care Packages & Placements- PD - OCC,5689,,20/07/2017,3110249098,"2,797.71",Bridges Home Care Ltd
http://statistics.data.gov.uk/id/local-authority/38,Oxfordshire County Council,Care Packages & Placements- LD - OCC,5899,Social Care - Direct Payments,12/07/2017,3110244232,"13,543.64",Redacted Personal Data
http://statistics.data.gov.uk/id/local-authority/38,Oxfordshire County Council,ICT Operations & Maintenance,5039,ITC Services,03/07/2017,2200372766,"2,319.87",Britannic Technologies Limited
http://statistics.data.gov.uk/id/local-authority/38,Oxfordshire County Council,OUT OF COUNTY,5537,Payments to Other Establishments,05/07/2017,2200373905,"-21,591.27",Broadlands Hall Ltd
http://statistics.data.gov.uk/id/local-authority/38,Oxfordshire County Council,OUT OF COUNTY,5537,Payments to Other Establishments,05/07/2017,2200374352,"19,241.70",Broadlands Hall Ltd
http://statistics.data.gov.uk/id/local-authority/38,Oxfordshire County Council,Mainstream Res,5558,,18/07/2017,2200380117,"21,591.27",Broadlands Hall Ltd
http://statistics.data.gov.uk/id/local-authority/38,Oxfordshire County Council,RESIDENTIAL TREATMEN,5686,,06/07/2017,2200374959,"1,028.40",BROADREACH HOUSE
http://statistics.data.gov.uk/id/local-authority/38,Oxfordshire County Council,RESIDENTIAL TREATMEN,5686,,06/07/2017,2200374960,"1,290.53",BROADREACH HOUSE
http://statistics.data.gov.uk/id/local-authority/38,Oxfordshire County Council,RESIDENTIAL TREATMEN,5686,,11/07/2017,2200377126,"1,542.60",BROADREACH HOUSE
http://statistics.data.gov.uk/id/local-authority/38,Oxfordshire County Council,RESIDENTIAL TREATMEN,5686,,06/07/2017,2200374604,"2,696.43",BROADREACH HOUSE
http://statistics.data.gov.uk/id/local-authority/38,Oxfordshire County Council,RESIDENTIAL TREATMEN,5686,,20/07/2017,2200382537,621.43,BROADWAY LODGE LTD
http://statistics.data.gov.uk/id/local-authority/38,Oxfordshire County Council,RESIDENTIAL TREATMEN,5686,,20/07/2017,2200382539,"1,702.60",BROADWAY LODGE LTD
http://statistics.data.gov.uk/id/local-authority/38,Oxfordshire County Council,RESIDENTIAL TREATMEN,5686,,31/07/2017,2200386107,"1,754.31",BROADWAY LODGE LTD
http://statistics.data.gov.uk/id/local-authority/38,Oxfordshire County Council,RESIDENTIAL TREATMEN,5686,,06/07/2017,2200374602,"2,456.04",BROADWAY LODGE LTD
http://statistics.data.gov.uk/id/local-authority/38,Oxfordshire County Council,RESIDENTIAL TREATMEN,5686,,10/07/2017,2200375639,"2,692.86",BROADWAY LODGE LTD
http://statistics.data.gov.uk/id/local-authority/38,Oxfordshire County Council,RESIDENTIAL TREATMEN,5686,,31/07/2017,2200386108,"2,900.00",BROADWAY LODGE LTD
http://statistics.data.gov.uk/id/local-authority/38,Oxfordshire County Council,RESIDENTIAL TREATMEN,5686,,10/07/2017,2200375691,"3,407.20",BROADWAY LODGE LTD
http://statistics.data.gov.uk/id/local-authority/38,Oxfordshire County Council,RESIDENTIAL TREATMEN,5686,,10/07/2017,2200375684,"4,350.00",BROADWAY LODGE LTD
http://statistics.data.gov.uk/id/local-authority/38,Oxfordshire County Council,RESIDENTIAL TREATMEN,5686,,06/07/2017,2200374961,"4,400.00",BROADWAY LODGE LTD
http://statistics.data.gov.uk/id/local-authority/38,Oxfordshire County Council,RESIDENTIAL TREATMEN,5686,,31/07/2017,2200386114,"4,400.00",BROADWAY LODGE LTD
http://statistics.data.gov.uk/id/local-authority/38,Oxfordshire County Council,LD EXT RESP CONTRACT,5544,B*Fostering - Temp/Respite,13/07/2017,3110246411,"1,993.21",Bromford Support
http://statistics.data.gov.uk/id/local-authority/38,Oxfordshire County Council,LD CLIENTS SOUTH,5686,,13/07/2017,3110246422,"15,995.21",Brook House Residential
http://statistics.data.gov.uk/id/local-authority/38,Oxfordshire County Council,LD CLIENTS SOUTH,5688,,13/07/2017,3110246294,"25,384.18",Brook House Residential
http://statistics.data.gov.uk/id/local-authority/38,Oxfordshire County Council,MH SPOT FUNDING,5686,,13/07/2017,3110246393,"21,271.00",Brookdale Care
http://statistics.data.gov.uk/id/local-authority/38,Oxfordshire County Council,POST 16 SEN,4330,Transport to School Activities,31/07/2017,3110252180,514,Browns Taxis Ltd
http://statistics.data.gov.uk/id/local-authority/38,Oxfordshire County Council,TRANSPORT COSTS,4330,Transport to School Activities,07/07/2017,3110243724,637,Browns Taxis Ltd
http://statistics.data.gov.uk/id/local-authority/38,Oxfordshire County Council,MEADOWBROOK TRANSPT,4330,Transport to School Activities,19/07/2017,3110247854,916,Browns Taxis Ltd
http://statistics.data.gov.uk/id/local-authority/38,Oxfordshire County Council,MEADOWBROOK TRANSPT,4330,Transport to School Activities,31/07/2017,3110252182,916,Browns Taxis Ltd
http://statistics.data.gov.uk/id/local-authority/38,Oxfordshire County Council,TRANSPORT COSTS,4330,Transport to School Activities,17/07/2017,3110247162,"1,269.00",Browns Taxis Ltd
http://statistics.data.gov.uk/id/local-authority/38,Oxfordshire County Council,MEADOWBROOK TRANSPT,4330,Transport to School Activities,31/07/2017,3110252176,"1,332.00",Browns Taxis Ltd
http://statistics.data.gov.uk/id/local-authority/38,Oxfordshire County Council,MEADOWBROOK TRANSPT,4330,Transport to School Activities,31/07/2017,3110252183,"1,755.00",Browns Taxis Ltd
http://statistics.data.gov.uk/id/local-authority/38,Oxfordshire County Council,SEN TRANSPORT,4330,Transport to School Activities,13/07/2017,3110246634,"1,776.00",Browns Taxis Ltd
http://statistics.data.gov.uk/id/local-authority/38,Oxfordshire County Council,SEN TRANSPORT,4330,Transport to School Activities,13/07/2017,3110246658,"1,792.00",Browns Taxis Ltd
http://statistics.data.gov.uk/id/local-authority/38,Oxfordshire County Council,POST 16 SEN,4330,Transport to School Activities,13/07/2017,3110246642,"2,254.00",Browns Taxis Ltd
http://statistics.data.gov.uk/id/local-authority/38,Oxfordshire County Council,MEADOWBROOK TRANSPT,4330,Transport to School Activities,31/07/2017,3110252178,"4,240.50",Browns Taxis Ltd
http://statistics.data.gov.uk/id/local-authority/38,Oxfordshire County Council,SEN TRANSPORT,4330,Transport to School Activities,13/07/2017,3110246637,"5,654.00",Browns Taxis Ltd
http://statistics.data.gov.uk/id/local-authority/38,Oxfordshire County Council,OPPB CONTCARE H SUPP,5899,Social Care - Direct Payments,12/07/2017,3110244430,"5,932.96",Redacted Personal Data
http://statistics.data.gov.uk/id/local-authority/38,Oxfordshire County Council,Mainstream Res,5558,,06/07/2017,2200374885,"6,480.00",Bryn Melyn Care Ltd
http://statistics.data.gov.uk/id/local-authority/38,Oxfordshire County Council,Mainstream Res,5558,,06/07/2017,2200374878,"8,100.00",Bryn Melyn Care Ltd
http://statistics.data.gov.uk/id/local-authority/38,Oxfordshire County Council,Mainstream Res,5558,,06/07/2017,2200374888,"8,370.00",Bryn Melyn Care Ltd
http://statistics.data.gov.uk/id/local-authority/38,Oxfordshire County Council,Mainstream Res,5558,,06/07/2017,2200374882,"18,754.29",Bryn Melyn Care Ltd
http://statistics.data.gov.uk/id/local-authority/38,Oxfordshire County Council,Mainstream Res,5558,,06/07/2017,2200374873,"23,442.86",Bryn Melyn Care Ltd
http://statistics.data.gov.uk/id/local-authority/38,Oxfordshire County Council,Mainstream Res,5558,,06/07/2017,2200374884,"24,224.29",Bryn Melyn Care Ltd
http://statistics.data.gov.uk/id/local-authority/38,Oxfordshire County Council,LD CLIENTS CITY,5686,,13/07/2017,3110246410,"5,582.21",Bryn-y-Wawr
http://statistics.data.gov.uk/id/local-authority/38,Oxfordshire County Council,ICT Operations & Maintenance,5072,Telephone - Equipment,03/07/2017,2200372801,"4,307.38",BT Plc (One Bill)
http://statistics.data.gov.uk/id/local-authority/38,Oxfordshire County Council,LAC PUPIL PREMIUM,5537,Payments to Other Establishments,19/07/2017,3110248180,"1,132.00",Buckingham Park CE Primary School
http://statistics.data.gov.uk/id/local-authority/38,Oxfordshire County Council,Care Packages & Placements- LD - OCC,5686,,13/07/2017,3110246545,"1,009.63",Buckinghamshire Care Limited
http://statistics.data.gov.uk/id/local-authority/38,Oxfordshire County Council,MAINSTREAM-SECONDARY,4330,Transport to School Activities,26/07/2017,3110251209,599,BUCKINGHAMSHIRE COUNTY COUNCIL
http://statistics.data.gov.uk/id/local-authority/38,Oxfordshire County Council,UNIFORMED SALARIES,5668,Technical and Professional Consultant F,19/07/2017,2200380573,"2,030.34",Buckinghamshire Milton Keynes Fire
http://statistics.data.gov.uk/id/local-authority/38,Oxfordshire County Council,CARE HOME SPOT CITY,5686,,13/07/2017,3110246174,"4,555.92",BUPA CARE SERVICES
http://statistics.data.gov.uk/id/local-authority/38,Oxfordshire County Council,HN IN SEC SCHOOLS,5537,Payments to Other Establishments,17/07/2017,3110248037,"3,235.00",Burford Academy
http://statistics.data.gov.uk/id/local-authority/38,Oxfordshire County Council,LD CLIENTS NORTH,5688,,13/07/2017,3110246309,708.57,Burgess Care Ltd.
http://statistics.data.gov.uk/id/local-authority/38,Oxfordshire County Council,LD CLIENTS NORTH,5686,,13/07/2017,3110246502,"26,571.47",Burgess Care Ltd.
http://statistics.data.gov.uk/id/local-authority/38,Oxfordshire County Council,THAMES PATH,4407,Equipment,31/07/2017,2200386095,"4,950.00",Buryhook Countryside Management
http://statistics.data.gov.uk/id/local-authority/38,Oxfordshire County Council,ROW MAINT,5526,Payments to Private Contractors,04/07/2017,2200373476,"6,150.00",Buryhook Countryside Management
http://statistics.data.gov.uk/id/local-authority/38,Oxfordshire County Council,PLAYGROUP FEES,5537,Payments to Other Establishments,13/07/2017,3110246921,693,Busy Bees Day Nursery
http://statistics.data.gov.uk/id/local-authority/38,Oxfordshire County Council,PARENT & BABY,5559,,06/07/2017,2200374952,"1,240.00",BY THE BRIDGE
http://statistics.data.gov.uk/id/local-authority/38,Oxfordshire County Council,Independent Foster,5559,,06/07/2017,2200374738,"1,334.25",BY THE BRIDGE
http://statistics.data.gov.uk/id/local-authority/38,Oxfordshire County Council,Independent Foster,5559,,06/07/2017,2200374936,"4,078.16",BY THE BRIDGE
http://statistics.data.gov.uk/id/local-authority/38,Oxfordshire County Council,Independent Foster,5559,,06/07/2017,2200374947,"4,078.16",BY THE BRIDGE
http://statistics.data.gov.uk/id/local-authority/38,Oxfordshire County Council,Independent Foster,5559,,06/07/2017,2200374918,"4,204.29",BY THE BRIDGE
http://statistics.data.gov.uk/id/local-authority/38,Oxfordshire County Council,Independent Foster,5559,,06/07/2017,2200374919,"4,204.29",BY THE BRIDGE
http://statistics.data.gov.uk/id/local-authority/38,Oxfordshire County Council,Independent Foster,5559,,06/07/2017,2200374920,"4,204.29",BY THE BRIDGE
http://statistics.data.gov.uk/id/local-authority/38,Oxfordshire County Council,Independent Foster,5559,,06/07/2017,2200374921,"4,204.29",BY THE BRIDGE
http://statistics.data.gov.uk/id/local-authority/38,Oxfordshire County Council,Independent Foster,5559,,06/07/2017,2200374922,"4,204.29",BY THE BRIDGE
http://statistics.data.gov.uk/id/local-authority/38,Oxfordshire County Council,Independent Foster,5559,,06/07/2017,2200374932,"4,204.29",BY THE BRIDGE
http://statistics.data.gov.uk/id/local-authority/38,Oxfordshire County Council,Independent Foster,5559,,06/07/2017,2200374939,"4,204.29",BY THE BRIDGE
http://statistics.data.gov.uk/id/local-authority/38,Oxfordshire County Council,Independent Foster,5559,,06/07/2017,2200374940,"4,204.29",BY THE BRIDGE
http://statistics.data.gov.uk/id/local-authority/38,Oxfordshire County Council,UASC UNDER 16,5559,,06/07/2017,2200374795,"4,427.14",BY THE BRIDGE
http://statistics.data.gov.uk/id/local-authority/38,Oxfordshire County Council,Independent Foster,5559,,06/07/2017,2200374938,"4,427.14",BY THE BRIDGE
http://statistics.data.gov.uk/id/local-authority/38,Oxfordshire County Council,Independent Foster,5559,,07/07/2017,2200375551,"4,447.50",BY THE BRIDGE
http://statistics.data.gov.uk/id/local-authority/38,Oxfordshire County Council,PARENT & BABY,5559,,06/07/2017,2200374941,"4,650.00",BY THE BRIDGE
http://statistics.data.gov.uk/id/local-authority/38,Oxfordshire County Council,Independent Foster,5559,,06/07/2017,2200374930,"5,395.50",BY THE BRIDGE
http://statistics.data.gov.uk/id/local-authority/38,Oxfordshire County Council,AGENCY RESID - DISAB,5559,,06/07/2017,2200374933,"5,507.14",BY THE BRIDGE
http://statistics.data.gov.uk/id/local-authority/38,Oxfordshire County Council,ICT Strategy & Partnerships,4495,IT Software,13/07/2017,2200377922,923.1,Bytes Software Services
http://statistics.data.gov.uk/id/local-authority/38,Oxfordshire County Council,FFF - Programme Capacity,4495,IT Software,11/07/2017,2200377005,"1,047.02",Bytes Software Services
http://statistics.data.gov.uk/id/local-authority/38,Oxfordshire County Council,FM RECHARGES,4495,IT Software,31/07/2017,2200386426,"4,354.41",Bytes Software Services
http://statistics.data.gov.uk/id/local-authority/38,Oxfordshire County Council,ICT Operations & Maintenance,4495,IT Software,17/07/2017,2200379458,"9,554.34",Bytes Software Services
http://statistics.data.gov.uk/id/local-authority/38,Oxfordshire County Council,FOSTERING MAIN,5542,B*Payments to carers,19/07/2017,3110247510,520.96,Redacted Personal Data
http://statistics.data.gov.uk/id/local-authority/38,Oxfordshire County Council,FOSTERING MAIN,5415,Residential Activities,19/07/2017,3110247539,542.76,Redacted Personal Data
http://statistics.data.gov.uk/id/local-authority/38,Oxfordshire County Council,FPT SOUTH/VALE,4685,Clothing and Uniforms,26/07/2017,3110250049,758.25,Redacted Personal Data
http://statistics.data.gov.uk/id/local-authority/38,Oxfordshire County Council,FOSTERING MAIN,5549,B*Fostering Allowance - Regulation 38,05/07/2017,3110243230,795.34,Redacted Personal Data
http://statistics.data.gov.uk/id/local-authority/38,Oxfordshire County Council,FOSTERING MAIN,5549,B*Fostering Allowance - Regulation 38,12/07/2017,3110244742,795.34,Redacted Personal Data
http://statistics.data.gov.uk/id/local-authority/38,Oxfordshire County Council,FOSTERING MAIN,5549,B*Fostering Allowance - Regulation 38,26/07/2017,3110250039,795.34,Redacted Personal Data
http://statistics.data.gov.uk/id/local-authority/38,Oxfordshire County Council,FOSTERING MAIN,5415,Residential Activities,19/07/2017,3110247528,"1,095.34",Redacted Personal Data
http://statistics.data.gov.uk/id/local-authority/38,Oxfordshire County Council,FOSTERING MAIN,5542,B*Payments to carers,05/07/2017,3110243124,708.63,Redacted Personal Data
http://statistics.data.gov.uk/id/local-authority/38,Oxfordshire County Council,FOSTERING MAIN,5542,B*Payments to carers,12/07/2017,3110244518,708.63,Redacted Personal Data
http://statistics.data.gov.uk/id/local-authority/38,Oxfordshire County Council,FOSTERING MAIN,5542,B*Payments to carers,26/07/2017,3110249992,708.63,Redacted Personal Data
http://statistics.data.gov.uk/id/local-authority/38,Oxfordshire County Council,FOSTERING MAIN,5542,B*Payments to carers,19/07/2017,3110247482,908.63,Redacted Personal Data
http://statistics.data.gov.uk/id/local-authority/38,Oxfordshire County Council,FOSTERING MAIN,5542,B*Payments to carers,26/07/2017,3110249998,831.68,Redacted Personal Data
http://statistics.data.gov.uk/id/local-authority/38,Oxfordshire County Council,FOSTERING MAIN,5542,B*Payments to carers,12/07/2017,3110244547,"1,033.54",Redacted Personal Data
http://statistics.data.gov.uk/id/local-authority/38,Oxfordshire County Council,FOSTERING MAIN,5542,B*Payments to carers,05/07/2017,3110243137,"1,355.18",Redacted Personal Data
http://statistics.data.gov.uk/id/local-authority/38,Oxfordshire County Council,FOSTERING MAIN,5542,B*Payments to carers,19/07/2017,3110247488,"1,605.18",Redacted Personal Data
http://statistics.data.gov.uk/id/local-authority/38,Oxfordshire County Council,SPECIAL GUARDIANSHIP,5664,B*Holiday Allowance,05/07/2017,3110243112,608.21,Redacted Personal Data
http://statistics.data.gov.uk/id/local-authority/38,Oxfordshire County Council,SPECIAL GUARDIANSHIP,5664,B*Holiday Allowance,12/07/2017,3110244467,608.21,Redacted Personal Data
http://statistics.data.gov.uk/id/local-authority/38,Oxfordshire County Council,SPECIAL GUARDIANSHIP,5664,B*Holiday Allowance,19/07/2017,3110247706,608.21,Redacted Personal Data
http://statistics.data.gov.uk/id/local-authority/38,Oxfordshire County Council,SPECIAL GUARDIANSHIP,5664,B*Holiday Allowance,26/07/2017,3110249763,608.21,Redacted Personal Data
http://statistics.data.gov.uk/id/local-authority/38,Oxfordshire County Council,Care Packages & Placements- LD - OCC,4314,"Other Trans Contract Costs (CRB, Car Sea",11/07/2017,3110243910,567.83,C S Comley
http://statistics.data.gov.uk/id/local-authority/38,Oxfordshire County Council,POST 16 SEN,4330,Transport to School Activities,11/07/2017,3110243902,630.37,C S Comley
http://statistics.data.gov.uk/id/local-authority/38,Oxfordshire County Council,SEN TRANSPORT,5227,Other Transport Arrangements,11/07/2017,3110243894,722,C S Comley
http://statistics.data.gov.uk/id/local-authority/38,Oxfordshire County Council,POST 16 SEN,4330,Transport to School Activities,11/07/2017,3110243914,"1,135.67",C S Comley
http://statistics.data.gov.uk/id/local-authority/38,Oxfordshire County Council,Care Packages & Placements- LD - OCC,5227,Other Transport Arrangements,11/07/2017,3110243887,"1,260.00",C S Comley
http://statistics.data.gov.uk/id/local-authority/38,Oxfordshire County Council,Care Packages & Placements- LD - OCC,4314,"Other Trans Contract Costs (CRB, Car Sea",11/07/2017,3110243898,"1,862.00",C S Comley
http://statistics.data.gov.uk/id/local-authority/38,Oxfordshire County Council,SEN TRANSPORT,4330,Transport to School Activities,11/07/2017,3110243890,"2,094.75",C S Comley
http://statistics.data.gov.uk/id/local-authority/38,Oxfordshire County Council,FOSTERING MAIN,5415,Residential Activities,19/07/2017,3110247502,654.97,Redacted Personal Data
http://statistics.data.gov.uk/id/local-authority/38,Oxfordshire County Council,SEN TRANSPORT,5227,Other Transport Arrangements,28/07/2017,3110251796,540,C V OSullivan
http://statistics.data.gov.uk/id/local-authority/38,Oxfordshire County Council,POST 16 SEN,5227,Other Transport Arrangements,28/07/2017,3110251799,600,C V OSullivan
http://statistics.data.gov.uk/id/local-authority/38,Oxfordshire County Council,RESPITE,4330,Transport to School Activities,28/07/2017,3110251800,616,C V OSullivan
http://statistics.data.gov.uk/id/local-authority/38,Oxfordshire County Council,Care Packages & Placements- LD - OCC,4314,"Other Trans Contract Costs (CRB, Car Sea",28/07/2017,3110251797,800,C V OSullivan
http://statistics.data.gov.uk/id/local-authority/38,Oxfordshire County Council,SEN TRANSPORT,5227,Other Transport Arrangements,28/07/2017,3110251802,"1,081.20",C V OSullivan
http://statistics.data.gov.uk/id/local-authority/38,Oxfordshire County Council,SEN TRANSPORT,4330,Transport to School Activities,28/07/2017,3110251795,"1,260.00",C V OSullivan
http://statistics.data.gov.uk/id/local-authority/38,Oxfordshire County Council,POST 16 SEN,4330,Transport to School Activities,28/07/2017,3110251798,"1,800.00",C V OSullivan
http://statistics.data.gov.uk/id/local-authority/38,Oxfordshire County Council,SEN TRANSPORT,4330,Transport to School Activities,28/07/2017,3110251801,"3,992.40",C V OSullivan
http://statistics.data.gov.uk/id/local-authority/38,Oxfordshire County Council,SEN TRANSPORT,5227,Other Transport Arrangements,11/07/2017,3110243956,513,C&M Management Services Ltd
http://statistics.data.gov.uk/id/local-authority/38,Oxfordshire County Council,SEN TRANSPORT,5227,Other Transport Arrangements,11/07/2017,3110243968,532,C&M Management Services Ltd
http://statistics.data.gov.uk/id/local-authority/38,Oxfordshire County Council,SEN TRANSPORT,5227,Other Transport Arrangements,11/07/2017,3110243980,567.72,C&M Management Services Ltd
http://statistics.data.gov.uk/id/local-authority/38,Oxfordshire County Council,SEN TRANSPORT,5227,Other Transport Arrangements,11/07/2017,3110243991,573.2,C&M Management Services Ltd
http://statistics.data.gov.uk/id/local-authority/38,Oxfordshire County Council,SEN TRANSPORT,5227,Other Transport Arrangements,11/07/2017,3110243986,627,C&M Management Services Ltd
http://statistics.data.gov.uk/id/local-authority/38,Oxfordshire County Council,SEN TRANSPORT,5227,Other Transport Arrangements,11/07/2017,3110243917,684,C&M Management Services Ltd
http://statistics.data.gov.uk/id/local-authority/38,Oxfordshire County Council,SEN TRANSPORT,5227,Other Transport Arrangements,11/07/2017,3110243946,684,C&M Management Services Ltd
http://statistics.data.gov.uk/id/local-authority/38,Oxfordshire County Council,SEN TRANSPORT,5227,Other Transport Arrangements,11/07/2017,3110243938,720,C&M Management Services Ltd
http://statistics.data.gov.uk/id/local-authority/38,Oxfordshire County Council,SEN TRANSPORT,5227,Other Transport Arrangements,11/07/2017,3110243962,720,C&M Management Services Ltd
http://statistics.data.gov.uk/id/local-authority/38,Oxfordshire County Council,Care Packages & Placements- LD - OCC,4314,"Other Trans Contract Costs (CRB, Car Sea",11/07/2017,3110243950,783.75,C&M Management Services Ltd
http://statistics.data.gov.uk/id/local-authority/38,Oxfordshire County Council,SEN TRANSPORT,5227,Other Transport Arrangements,11/07/2017,3110243995,795.2,C&M Management Services Ltd
http://statistics.data.gov.uk/id/local-authority/38,Oxfordshire County Council,SEN TRANSPORT,4330,Transport to School Activities,11/07/2017,3110243971,855,C&M Management Services Ltd
http://statistics.data.gov.uk/id/local-authority/38,Oxfordshire County Council,SEN TRANSPORT,5227,Other Transport Arrangements,26/07/2017,3110251197,856.9,C&M Management Services Ltd
http://statistics.data.gov.uk/id/local-authority/38,Oxfordshire County Council,SEN TRANSPORT,4330,Transport to School Activities,11/07/2017,3110243926,"1,098.00",C&M Management Services Ltd
http://statistics.data.gov.uk/id/local-authority/38,Oxfordshire County Council,Care Packages & Placements- LD - OCC,4314,"Other Trans Contract Costs (CRB, Car Sea",11/07/2017,3110243922,"1,440.00",C&M Management Services Ltd
http://statistics.data.gov.uk/id/local-authority/38,Oxfordshire County Council,SEN TRANSPORT,5227,Other Transport Arrangements,14/07/2017,3110246884,"1,501.00",C&M Management Services Ltd
http://statistics.data.gov.uk/id/local-authority/38,Oxfordshire County Council,SEN TRANSPORT,4330,Transport to School Activities,11/07/2017,3110243953,"1,838.25",C&M Management Services Ltd
http://statistics.data.gov.uk/id/local-authority/38,Oxfordshire County Council,SEN TRANSPORT,4330,Transport to School Activities,11/07/2017,3110243913,"2,080.50",C&M Management Services Ltd
http://statistics.data.gov.uk/id/local-authority/38,Oxfordshire County Council,SEN TRANSPORT,4330,Transport to School Activities,11/07/2017,3110243942,"2,090.00",C&M Management Services Ltd
http://statistics.data.gov.uk/id/local-authority/38,Oxfordshire County Council,SEN TRANSPORT,4330,Transport to School Activities,11/07/2017,3110243977,"2,113.75",C&M Management Services Ltd
http://statistics.data.gov.uk/id/local-authority/38,Oxfordshire County Council,SEN TRANSPORT,4330,Transport to School Activities,11/07/2017,3110243989,"2,160.80",C&M Management Services Ltd
http://statistics.data.gov.uk/id/local-authority/38,Oxfordshire County Council,SEN TRANSPORT,4330,Transport to School Activities,11/07/2017,3110243959,"2,240.00",C&M Management Services Ltd
http://statistics.data.gov.uk/id/local-authority/38,Oxfordshire County Council,SEN TRANSPORT,4330,Transport to School Activities,11/07/2017,3110243965,"2,470.00",C&M Management Services Ltd
http://statistics.data.gov.uk/id/local-authority/38,Oxfordshire County Council,SEN TRANSPORT,4330,Transport to School Activities,11/07/2017,3110243934,"2,670.00",C&M Management Services Ltd
http://statistics.data.gov.uk/id/local-authority/38,Oxfordshire County Council,SEN TRANSPORT,4330,Transport to School Activities,26/07/2017,3110251195,"2,675.20",C&M Management Services Ltd
http://statistics.data.gov.uk/id/local-authority/38,Oxfordshire County Council,Care Packages & Placements- LD - OCC,5227,Other Transport Arrangements,03/07/2017,3110242707,"2,676.88",C&M Management Services Ltd
http://statistics.data.gov.uk/id/local-authority/38,Oxfordshire County Council,SEN TRANSPORT,4330,Transport to School Activities,11/07/2017,3110243997,"2,736.20",C&M Management Services Ltd
http://statistics.data.gov.uk/id/local-authority/38,Oxfordshire County Council,SEN TRANSPORT,4330,Transport to School Activities,26/07/2017,3110251198,"2,736.20",C&M Management Services Ltd
http://statistics.data.gov.uk/id/local-authority/38,Oxfordshire County Council,SEN TRANSPORT,4330,Transport to School Activities,11/07/2017,3110243993,"3,341.80",C&M Management Services Ltd
http://statistics.data.gov.uk/id/local-authority/38,Oxfordshire County Council,SEN TRANSPORT,4330,Transport to School Activities,11/07/2017,3110243983,"3,469.40",C&M Management Services Ltd
http://statistics.data.gov.uk/id/local-authority/38,Oxfordshire County Council,SEN TRANSPORT,4330,Transport to School Activities,14/07/2017,3110246883,"3,855.10",C&M Management Services Ltd
http://statistics.data.gov.uk/id/local-authority/38,Oxfordshire County Council,PD COMM SUPP DIDCOT,5899,Social Care - Direct Payments,12/07/2017,3110245097,"1,152.00",Redacted Personal Data
http://statistics.data.gov.uk/id/local-authority/38,Oxfordshire County Council,LD CLIENTS NORTH,5686,,13/07/2017,3110246241,"28,956.39",Cambian Care Services Ltd
http://statistics.data.gov.uk/id/local-authority/38,Oxfordshire County Council,LD CLIENTS SOUTH,5686,,13/07/2017,3110246215,"66,928.91",CAMBIAN LEARNING DISABILITIES LTD
http://statistics.data.gov.uk/id/local-authority/38,Oxfordshire County Council,LD CLIENTS SOUTH,5899,Social Care - Direct Payments,12/07/2017,3110245224,736,Redacted Personal Data
http://statistics.data.gov.uk/id/local-authority/38,Oxfordshire County Council,FOSTERING MAIN,5569,,05/07/2017,3110243352,641.3,Redacted Personal Data
http://statistics.data.gov.uk/id/local-authority/38,Oxfordshire County Council,FOSTERING MAIN,5569,,12/07/2017,3110245062,641.3,Redacted Personal Data
http://statistics.data.gov.uk/id/local-authority/38,Oxfordshire County Council,LD CLIENTS NORTH,5688,,13/07/2017,3110246293,"3,758.44",Camphill Communities Thornbury
http://statistics.data.gov.uk/id/local-authority/38,Oxfordshire County Council,UASC 16&17,5559,,06/07/2017,2200374793,"1,705.00",Capstone Vision Foster Care Ltd
http://statistics.data.gov.uk/id/local-authority/38,Oxfordshire County Council,PD COMM SUPP DIDCOT,5899,Social Care - Direct Payments,12/07/2017,3110244115,"3,720.00",Redacted Personal Data
http://statistics.data.gov.uk/id/local-authority/38,Oxfordshire County Council,LD CLIENTS NORTH,5899,Social Care - Direct Payments,12/07/2017,3110244759,916,Redacted Personal Data
http://statistics.data.gov.uk/id/local-authority/38,Oxfordshire County Council,COMM DRAWDOWN FUNDNG,8351,Furn. & Equip. costing less than 6000,03/07/2017,2200372562,700,Carapace Solutions Ltd
http://statistics.data.gov.uk/id/local-authority/38,Oxfordshire County Council,ContrO ASC Payments Control Account,5689,,26/07/2017,3110250260,"-4,782.00",Care Outlook Ltd
http://statistics.data.gov.uk/id/local-authority/38,Oxfordshire County Council,Care Packages & Placements- PD - OCC,5689,,26/07/2017,3110250287,548.07,Care Outlook Ltd
http://statistics.data.gov.uk/id/local-authority/38,Oxfordshire County Council,CSB - CITY,5689,,26/07/2017,3110250284,626.67,Care Outlook Ltd
http://statistics.data.gov.uk/id/local-authority/38,Oxfordshire County Council,CSB - CITY,5689,,26/07/2017,3110250276,638.76,Care Outlook Ltd
http://statistics.data.gov.uk/id/local-authority/38,Oxfordshire County Council,CSB - CITY,5689,,26/07/2017,3110250268,643.9,Care Outlook Ltd
http://statistics.data.gov.uk/id/local-authority/38,Oxfordshire County Council,CSB - CITY,5689,,26/07/2017,3110250270,721.89,Care Outlook Ltd
http://statistics.data.gov.uk/id/local-authority/38,Oxfordshire County Council,Care Packages & Placements- Older People,5689,,26/07/2017,3110250283,736.4,Care Outlook Ltd
http://statistics.data.gov.uk/id/local-authority/38,Oxfordshire County Council,Care Packages & Placements- PD - OCC,5689,,26/07/2017,3110250272,854.6,Care Outlook Ltd
http://statistics.data.gov.uk/id/local-authority/38,Oxfordshire County Council,CSB - CITY,5689,,26/07/2017,3110250288,919.9,Care Outlook Ltd
http://statistics.data.gov.uk/id/local-authority/38,Oxfordshire County Council,CSB - CITY,5689,,26/07/2017,3110250262,956.78,Care Outlook Ltd
http://statistics.data.gov.uk/id/local-authority/38,Oxfordshire County Council,Care Packages & Placements- Older People,5689,,26/07/2017,3110250265,995.47,Care Outlook Ltd
http://statistics.data.gov.uk/id/local-authority/38,Oxfordshire County Council,CSB - CITY,5689,,26/07/2017,3110250261,"1,353.70",Care Outlook Ltd
http://statistics.data.gov.uk/id/local-authority/38,Oxfordshire County Council,Care Packages & Placements- Older People,5689,,26/07/2017,3110250280,"2,088.89",Care Outlook Ltd
http://statistics.data.gov.uk/id/local-authority/38,Oxfordshire County Council,LAUNDRY SERVICE,4861,Hired and Contracted Services,06/07/2017,2200374858,"4,021.55",Care Outlook Ltd
http://statistics.data.gov.uk/id/local-authority/38,Oxfordshire County Council,LAUNDRY SERVICE,4861,Hired and Contracted Services,06/07/2017,2200374862,"4,724.20",Care Outlook Ltd
http://statistics.data.gov.uk/id/local-authority/38,Oxfordshire County Council,LD CLIENTS NORTH,5686,,13/07/2017,3110246473,"9,571.25",Care UK
http://statistics.data.gov.uk/id/local-authority/38,Oxfordshire County Council,LD CLIENTS NORTH,5686,,13/07/2017,3110246343,"12,742.02",Care UK Learning Disabilities
http://statistics.data.gov.uk/id/local-authority/38,Oxfordshire County Council,CMPB WITNEY,5689,,20/07/2017,3110248163,628.35,Care with Care Ltd
http://statistics.data.gov.uk/id/local-authority/38,Oxfordshire County Council,Care Packages & Placements- Older People,5693,,20/07/2017,3110248170,883.95,Care with Care Ltd
http://statistics.data.gov.uk/id/local-authority/38,Oxfordshire County Council,Care Packages & Placements- Older People,5693,,20/07/2017,3110248171,947.85,Care with Care Ltd
http://statistics.data.gov.uk/id/local-authority/38,Oxfordshire County Council,CMPB WITNEY,5689,,20/07/2017,3110248172,979.8,Care with Care Ltd
http://statistics.data.gov.uk/id/local-authority/38,Oxfordshire County Council,Care Packages & Placements- Older People,5693,,20/07/2017,3110248168,985.13,Care with Care Ltd
http://statistics.data.gov.uk/id/local-authority/38,Oxfordshire County Council,Care Packages & Placements- Older People,5693,,20/07/2017,3110248169,"1,278.00",Care with Care Ltd
http://statistics.data.gov.uk/id/local-authority/38,Oxfordshire County Council,Mental Health Clients,5691,,05/07/2017,3110243371,728,Care With Dignity Partnerships
http://statistics.data.gov.uk/id/local-authority/38,Oxfordshire County Council,Care Packages & Placements- Older People,5691,,07/07/2017,2200375297,"17,777.50",CAREMARK (AYLESBURY & WYCOMBE)
http://statistics.data.gov.uk/id/local-authority/38,Oxfordshire County Council,Care Packages & Placements- Older People,5689,,26/07/2017,3110250348,502.25,Caremark (West Oxfordshire & Cherwe
http://statistics.data.gov.uk/id/local-authority/38,Oxfordshire County Council,Care Packages & Placements- PD - OCC,5689,,26/07/2017,3110250327,504.12,Caremark (West Oxfordshire & Cherwe
http://statistics.data.gov.uk/id/local-authority/38,Oxfordshire County Council,Care Packages & Placements- Older People,5689,,26/07/2017,3110250342,517.03,Caremark (West Oxfordshire & Cherwe
http://statistics.data.gov.uk/id/local-authority/38,Oxfordshire County Council,Care Packages & Placements- Older People,5689,,26/07/2017,3110250312,534.23,Caremark (West Oxfordshire & Cherwe
http://statistics.data.gov.uk/id/local-authority/38,Oxfordshire County Council,PD COMM SUPP WITNEY,5689,,26/07/2017,3110250392,555.69,Caremark (West Oxfordshire & Cherwe
http://statistics.data.gov.uk/id/local-authority/38,Oxfordshire County Council,Care Packages & Placements- Older People,5689,,26/07/2017,3110250301,578.65,Caremark (West Oxfordshire & Cherwe
http://statistics.data.gov.uk/id/local-authority/38,Oxfordshire County Council,Care Packages & Placements- Older People,5689,,26/07/2017,3110250317,595.14,Caremark (West Oxfordshire & Cherwe
http://statistics.data.gov.uk/id/local-authority/38,Oxfordshire County Council,Care Packages & Placements- Older People,5689,,26/07/2017,3110250380,599.04,Caremark (West Oxfordshire & Cherwe
http://statistics.data.gov.uk/id/local-authority/38,Oxfordshire County Council,Care Packages & Placements- Older People,5689,,26/07/2017,3110250357,601.94,Caremark (West Oxfordshire & Cherwe
http://statistics.data.gov.uk/id/local-authority/38,Oxfordshire County Council,CMPB WITNEY,5689,,26/07/2017,3110250331,603.9,Caremark (West Oxfordshire & Cherwe
http://statistics.data.gov.uk/id/local-authority/38,Oxfordshire County Council,Care Packages & Placements- Older People,5689,,26/07/2017,3110250339,607.64,Caremark (West Oxfordshire & Cherwe
http://statistics.data.gov.uk/id/local-authority/38,Oxfordshire County Council,Care Packages & Placements- Older People,5689,,26/07/2017,3110250388,613.99,Caremark (West Oxfordshire & Cherwe
http://statistics.data.gov.uk/id/local-authority/38,Oxfordshire County Council,Care Packages & Placements- Older People,5689,,26/07/2017,3110250303,623.08,Caremark (West Oxfordshire & Cherwe
http://statistics.data.gov.uk/id/local-authority/38,Oxfordshire County Council,Care Packages & Placements- Older People,5689,,26/07/2017,3110250304,624.88,Caremark (West Oxfordshire & Cherwe
http://statistics.data.gov.uk/id/local-authority/38,Oxfordshire County Council,CMPB WITNEY,5689,,26/07/2017,3110250383,666.31,Caremark (West Oxfordshire & Cherwe
http://statistics.data.gov.uk/id/local-authority/38,Oxfordshire County Council,Care Packages & Placements- Older People,5689,,26/07/2017,3110250353,732.37,Caremark (West Oxfordshire & Cherwe
http://statistics.data.gov.uk/id/local-authority/38,Oxfordshire County Council,OPPB CONTCARE DEL HE,5695,,26/07/2017,3110250316,752.79,Caremark (West Oxfordshire & Cherwe
http://statistics.data.gov.uk/id/local-authority/38,Oxfordshire County Council,Care Packages & Placements- PD - OCC,5689,,26/07/2017,3110250375,792.92,Caremark (West Oxfordshire & Cherwe
http://statistics.data.gov.uk/id/local-authority/38,Oxfordshire County Council,CMPB WITNEY,5689,,26/07/2017,3110250381,794.49,Caremark (West Oxfordshire & Cherwe
http://statistics.data.gov.uk/id/local-authority/38,Oxfordshire County Council,CMPB WITNEY,5689,,26/07/2017,3110250300,802.71,Caremark (West Oxfordshire & Cherwe
http://statistics.data.gov.uk/id/local-authority/38,Oxfordshire County Council,Care Packages & Placements- Older People,5689,,26/07/2017,3110250322,835.56,Caremark (West Oxfordshire & Cherwe
http://statistics.data.gov.uk/id/local-authority/38,Oxfordshire County Council,Care Packages & Placements- Older People,5689,,26/07/2017,3110250337,883.57,Caremark (West Oxfordshire & Cherwe
http://statistics.data.gov.uk/id/local-authority/38,Oxfordshire County Council,Care Packages & Placements- PD - OCC,5689,,26/07/2017,3110250377,904.71,Caremark (West Oxfordshire & Cherwe
http://statistics.data.gov.uk/id/local-authority/38,Oxfordshire County Council,CMPB WITNEY,5689,,26/07/2017,3110250391,941.35,Caremark (West Oxfordshire & Cherwe
http://statistics.data.gov.uk/id/local-authority/38,Oxfordshire County Council,Care Packages & Placements- PD - OCC,5689,,26/07/2017,3110250340,964.54,Caremark (West Oxfordshire & Cherwe
http://statistics.data.gov.uk/id/local-authority/38,Oxfordshire County Council,Care Packages & Placements- Older People,5689,,26/07/2017,3110250319,979.95,Caremark (West Oxfordshire & Cherwe
http://statistics.data.gov.uk/id/local-authority/38,Oxfordshire County Council,Care Packages & Placements- Older People,5689,,26/07/2017,3110250389,991.05,Caremark (West Oxfordshire & Cherwe
http://statistics.data.gov.uk/id/local-authority/38,Oxfordshire County Council,CMPB WITNEY,5689,,26/07/2017,3110250371,991.43,Caremark (West Oxfordshire & Cherwe
http://statistics.data.gov.uk/id/local-authority/38,Oxfordshire County Council,Care Packages & Placements- Older People,5689,,26/07/2017,3110250368,"1,031.19",Caremark (West Oxfordshire & Cherwe
http://statistics.data.gov.uk/id/local-authority/38,Oxfordshire County Council,Care Packages & Placements- Older People,5689,,26/07/2017,3110250385,"1,054.96",Caremark (West Oxfordshire & Cherwe
http://statistics.data.gov.uk/id/local-authority/38,Oxfordshire County Council,Care Packages & Placements- Older People,5689,,26/07/2017,3110250364,"1,080.99",Caremark (West Oxfordshire & Cherwe
http://statistics.data.gov.uk/id/local-authority/38,Oxfordshire County Council,CMPB WITNEY,5689,,26/07/2017,3110250338,"1,083.73",Caremark (West Oxfordshire & Cherwe
http://statistics.data.gov.uk/id/local-authority/38,Oxfordshire County Council,Care Packages & Placements- Older People,5689,,26/07/2017,3110250334,"1,117.18",Caremark (West Oxfordshire & Cherwe
http://statistics.data.gov.uk/id/local-authority/38,Oxfordshire County Council,Care Packages & Placements- Older People,5689,,26/07/2017,3110250314,"1,142.40",Caremark (West Oxfordshire & Cherwe
http://statistics.data.gov.uk/id/local-authority/38,Oxfordshire County Council,Care Packages & Placements- Older People,5689,,26/07/2017,3110250308,"1,192.85",Caremark (West Oxfordshire & Cherwe
http://statistics.data.gov.uk/id/local-authority/38,Oxfordshire County Council,Care Packages & Placements- Older People,5689,,26/07/2017,3110250305,"1,202.81",Caremark (West Oxfordshire & Cherwe
http://statistics.data.gov.uk/id/local-authority/38,Oxfordshire County Council,Care Packages & Placements- Older People,5689,,26/07/2017,3110250306,"1,207.11",Caremark (West Oxfordshire & Cherwe
http://statistics.data.gov.uk/id/local-authority/38,Oxfordshire County Council,Care Packages & Placements- Older People,5689,,26/07/2017,3110250356,"1,211.39",Caremark (West Oxfordshire & Cherwe
http://statistics.data.gov.uk/id/local-authority/38,Oxfordshire County Council,Care Packages & Placements- Older People,5689,,26/07/2017,3110250350,"1,288.81",Caremark (West Oxfordshire & Cherwe
http://statistics.data.gov.uk/id/local-authority/38,Oxfordshire County Council,Care Packages & Placements- Older People,5689,,26/07/2017,3110250324,"1,367.63",Caremark (West Oxfordshire & Cherwe
http://statistics.data.gov.uk/id/local-authority/38,Oxfordshire County Council,Care Packages & Placements- Older People,5689,,26/07/2017,3110250346,"1,381.57",Caremark (West Oxfordshire & Cherwe
http://statistics.data.gov.uk/id/local-authority/38,Oxfordshire County Council,Care Packages & Placements- Older People,5689,,26/07/2017,3110250363,"1,411.70",Caremark (West Oxfordshire & Cherwe
http://statistics.data.gov.uk/id/local-authority/38,Oxfordshire County Council,CMPB WITNEY,5689,,26/07/2017,3110250323,"1,447.71",Caremark (West Oxfordshire & Cherwe
http://statistics.data.gov.uk/id/local-authority/38,Oxfordshire County Council,Care Packages & Placements- Older People,5689,,26/07/2017,3110250311,"1,469.39",Caremark (West Oxfordshire & Cherwe
http://statistics.data.gov.uk/id/local-authority/38,Oxfordshire County Council,Care Packages & Placements- Older People,5689,,26/07/2017,3110250354,"1,495.55",Caremark (West Oxfordshire & Cherwe
http://statistics.data.gov.uk/id/local-authority/38,Oxfordshire County Council,Care Packages & Placements- Older People,5689,,26/07/2017,3110250291,"1,541.05",Caremark (West Oxfordshire & Cherwe
http://statistics.data.gov.uk/id/local-authority/38,Oxfordshire County Council,Care Packages & Placements- Older People,5689,,26/07/2017,3110250332,"1,618.80",Caremark (West Oxfordshire & Cherwe
http://statistics.data.gov.uk/id/local-authority/38,Oxfordshire County Council,Care Packages & Placements- Older People,5689,,26/07/2017,3110250394,"1,622.03",Caremark (West Oxfordshire & Cherwe
http://statistics.data.gov.uk/id/local-authority/38,Oxfordshire County Council,CMPB WITNEY,5689,,26/07/2017,3110250318,"1,785.54",Caremark (West Oxfordshire & Cherwe
http://statistics.data.gov.uk/id/local-authority/38,Oxfordshire County Council,Care Packages & Placements- Older People,5689,,26/07/2017,3110250349,"1,896.84",Caremark (West Oxfordshire & Cherwe
http://statistics.data.gov.uk/id/local-authority/38,Oxfordshire County Council,Care Packages & Placements- Older People,5689,,26/07/2017,3110250297,"2,106.80",Caremark (West Oxfordshire & Cherwe
http://statistics.data.gov.uk/id/local-authority/38,Oxfordshire County Council,Care Packages & Placements- Older People,5689,,26/07/2017,3110250372,"2,235.47",Caremark (West Oxfordshire & Cherwe
http://statistics.data.gov.uk/id/local-authority/38,Oxfordshire County Council,Care Packages & Placements- OP Health,5689,,26/07/2017,3110250293,"2,502.73",Caremark (West Oxfordshire & Cherwe
http://statistics.data.gov.uk/id/local-authority/38,Oxfordshire County Council,Care Packages & Placements- Older People,5691,,11/07/2017,2200376533,"3,635.74",Caremark (West Oxfordshire & Cherwe
http://statistics.data.gov.uk/id/local-authority/38,Oxfordshire County Council,Care Packages & Placements- Older People,5689,,26/07/2017,3110250330,"3,759.64",Caremark (West Oxfordshire & Cherwe
http://statistics.data.gov.uk/id/local-authority/38,Oxfordshire County Council,LD CLIENTS NORTH,5688,,13/07/2017,3110246249,"13,443.33",Caretech Community Services Ltd
http://statistics.data.gov.uk/id/local-authority/38,Oxfordshire County Council,LD CLIENTS NORTH,5686,,13/07/2017,3110246280,"20,352.12",Caretech Community Services Ltd
http://statistics.data.gov.uk/id/local-authority/38,Oxfordshire County Council,Care Packages & Placements- Older People,5689,,26/07/2017,3110250433,528.8,Caretree Ltd
http://statistics.data.gov.uk/id/local-authority/38,Oxfordshire County Council,Care Packages & Placements- Older People,5689,,26/07/2017,3110250406,565.32,Caretree Ltd
http://statistics.data.gov.uk/id/local-authority/38,Oxfordshire County Council,Care Packages & Placements- Older People,5689,,26/07/2017,3110250421,568.97,Caretree Ltd
http://statistics.data.gov.uk/id/local-authority/38,Oxfordshire County Council,CSB - DIDCOT,5689,,26/07/2017,3110250436,584.29,Caretree Ltd
http://statistics.data.gov.uk/id/local-authority/38,Oxfordshire County Council,Care Packages & Placements- Older People,5689,,26/07/2017,3110250422,659.82,Caretree Ltd
http://statistics.data.gov.uk/id/local-authority/38,Oxfordshire County Council,CSB - DIDCOT,5689,,26/07/2017,3110250400,786.81,Caretree Ltd
http://statistics.data.gov.uk/id/local-authority/38,Oxfordshire County Council,Care Packages & Placements- Older People,5689,,26/07/2017,3110250423,882.85,Caretree Ltd
http://statistics.data.gov.uk/id/local-authority/38,Oxfordshire County Council,Care Packages & Placements- Older People,5689,,26/07/2017,3110250418,944.53,Caretree Ltd
http://statistics.data.gov.uk/id/local-authority/38,Oxfordshire County Council,Care Packages & Placements- Older People,5689,,26/07/2017,3110250429,981.75,Caretree Ltd
http://statistics.data.gov.uk/id/local-authority/38,Oxfordshire County Council,Care Packages & Placements- Older People,5689,,26/07/2017,3110250401,"1,042.34",Caretree Ltd
http://statistics.data.gov.uk/id/local-authority/38,Oxfordshire County Council,Care Packages & Placements- Older People,5689,,26/07/2017,3110250415,"1,156.95",Caretree Ltd
http://statistics.data.gov.uk/id/local-authority/38,Oxfordshire County Council,Care Packages & Placements- Older People,5689,,26/07/2017,3110250434,"1,162.95",Caretree Ltd
http://statistics.data.gov.uk/id/local-authority/38,Oxfordshire County Council,Care Packages & Placements- Older People,5689,,26/07/2017,3110250410,"1,171.14",Caretree Ltd
http://statistics.data.gov.uk/id/local-authority/38,Oxfordshire County Council,Care Packages & Placements- Older People,5689,,26/07/2017,3110250408,"1,304.03",Caretree Ltd
http://statistics.data.gov.uk/id/local-authority/38,Oxfordshire County Council,Care Packages & Placements- Older People,5689,,26/07/2017,3110250416,"1,591.80",Caretree Ltd
http://statistics.data.gov.uk/id/local-authority/38,Oxfordshire County Council,Care Packages & Placements- Older People,5689,,26/07/2017,3110250425,"1,605.42",Caretree Ltd
http://statistics.data.gov.uk/id/local-authority/38,Oxfordshire County Council,Care Packages & Placements- Older People,5689,,26/07/2017,3110250426,"2,184.44",Caretree Ltd
http://statistics.data.gov.uk/id/local-authority/38,Oxfordshire County Council,CSB - DIDCOT,5689,,26/07/2017,3110250411,"2,700.98",Caretree Ltd
http://statistics.data.gov.uk/id/local-authority/38,Oxfordshire County Council,PD COMM SUPP DIDCOT,5689,,26/07/2017,3110250428,"2,737.38",Caretree Ltd
http://statistics.data.gov.uk/id/local-authority/38,Oxfordshire County Council,Care Packages & Placements- Older People,5689,,26/07/2017,3110250424,"2,799.81",Caretree Ltd
http://statistics.data.gov.uk/id/local-authority/38,Oxfordshire County Council,Care Packages & Placements- Older People,5689,,26/07/2017,3110250417,"2,859.95",Caretree Ltd
http://statistics.data.gov.uk/id/local-authority/38,Oxfordshire County Council,Care Packages & Placements- Older People,5689,,26/07/2017,3110250412,"3,129.39",Caretree Ltd
http://statistics.data.gov.uk/id/local-authority/38,Oxfordshire County Council,EDM,4665,Catering,25/07/2017,2200384577,"1,019.76",Carillion
http://statistics.data.gov.uk/id/local-authority/38,Oxfordshire County Council,CAP CHRGES-PRIM SCHS,8102,Payments to main contractor,19/07/2017,2200380959,"-101,112.40",Carillion LGS Ltd
http://statistics.data.gov.uk/id/local-authority/38,Oxfordshire County Council,HARD FM,3787,Premises Repairs,26/07/2017,2200384711,"-4,479.91",Carillion LGS Ltd
http://statistics.data.gov.uk/id/local-authority/38,Oxfordshire County Council,HARD FM,3787,Premises Repairs,14/07/2017,2200378861,511.72,Carillion LGS Ltd
http://statistics.data.gov.uk/id/local-authority/38,Oxfordshire County Council,HARD FM,3787,Premises Repairs,26/07/2017,2200384958,624.71,Carillion LGS Ltd
http://statistics.data.gov.uk/id/local-authority/38,Oxfordshire County Council,PROPERTY,1362,Creditors GR/IR -,19/07/2017,2200381265,909.56,Carillion LGS Ltd
http://statistics.data.gov.uk/id/local-authority/38,Oxfordshire County Council,CAP CHRGES-PRIM SCHS,8102,Payments to main contractor,03/07/2017,2200372844,959.18,Carillion LGS Ltd
http://statistics.data.gov.uk/id/local-authority/38,Oxfordshire County Council,HARD FM,3787,Premises Repairs,18/07/2017,2200380087,"1,043.58",Carillion LGS Ltd
http://statistics.data.gov.uk/id/local-authority/38,Oxfordshire County Council,ROSE HILL PRIMARY  O,3787,Premises Repairs,18/07/2017,2200380502,"1,121.00",Carillion LGS Ltd
http://statistics.data.gov.uk/id/local-authority/38,Oxfordshire County Council,CAP CHRGES-PREM,8102,Payments to main contractor,31/07/2017,2200386434,"1,157.96",Carillion LGS Ltd
http://statistics.data.gov.uk/id/local-authority/38,Oxfordshire County Council,CAP CHRGES-SPEC SCHS,8102,Payments to main contractor,10/07/2017,2200376280,"1,428.44",Carillion LGS Ltd
http://statistics.data.gov.uk/id/local-authority/38,Oxfordshire County Council,CAP CHRGES-PRIM SCHS,8102,Payments to main contractor,18/07/2017,2200380133,"1,666.88",Carillion LGS Ltd
http://statistics.data.gov.uk/id/local-authority/38,Oxfordshire County Council,HARD FM,3787,Premises Repairs,19/07/2017,2200380761,"1,702.84",Carillion LGS Ltd
http://statistics.data.gov.uk/id/local-authority/38,Oxfordshire County Council,CAP CHRGES-SEC SCHS,8102,Payments to main contractor,18/07/2017,2200379708,"2,351.35",Carillion LGS Ltd
http://statistics.data.gov.uk/id/local-authority/38,Oxfordshire County Council,HARD FM,3787,Premises Repairs,21/07/2017,2200382654,"2,704.13",Carillion LGS Ltd
http://statistics.data.gov.uk/id/local-authority/38,Oxfordshire County Council,HARD FM,3787,Premises Repairs,14/07/2017,2200378858,"2,866.78",Carillion LGS Ltd
http://statistics.data.gov.uk/id/local-authority/38,Oxfordshire County Council,CAP CHRGES-PRIM SCHS,8102,Payments to main contractor,07/07/2017,2200375366,"3,294.72",Carillion LGS Ltd
http://statistics.data.gov.uk/id/local-authority/38,Oxfordshire County Council,CORPORATE LANDLORD,8102,Payments to main contractor,17/07/2017,2200379111,"4,162.58",Carillion LGS Ltd
http://statistics.data.gov.uk/id/local-authority/38,Oxfordshire County Council,CORPORATE LANDLORD,8102,Payments to main contractor,26/07/2017,2200384987,"4,173.59",Carillion LGS Ltd
http://statistics.data.gov.uk/id/local-authority/38,Oxfordshire County Council,CAP CHRGES-SEC SCHS,8102,Payments to main contractor,18/07/2017,2200380129,"4,175.05",Carillion LGS Ltd
http://statistics.data.gov.uk/id/local-authority/38,Oxfordshire County Council,HARD FM,3787,Premises Repairs,27/07/2017,2200385372,"4,370.52",Carillion LGS Ltd
http://statistics.data.gov.uk/id/local-authority/38,Oxfordshire County Council,CAP CHRGES-PRIM SCHS,8102,Payments to main contractor,27/07/2017,2200385179,"4,800.93",Carillion LGS Ltd
http://statistics.data.gov.uk/id/local-authority/38,Oxfordshire County Council,CAP CHRGES-PRIM SCHS,8102,Payments to main contractor,10/07/2017,2200375843,"5,313.70",Carillion LGS Ltd
http://statistics.data.gov.uk/id/local-authority/38,Oxfordshire County Council,CAP NEW DIRECTIONS,8102,Payments to main contractor,18/07/2017,2200380465,"6,000.60",Carillion LGS Ltd
http://statistics.data.gov.uk/id/local-authority/38,Oxfordshire County Council,HARD FM,3787,Premises Repairs,27/07/2017,2200385376,"6,117.66",Carillion LGS Ltd
http://statistics.data.gov.uk/id/local-authority/38,Oxfordshire County Council,HARD FM,3787,Premises Repairs,27/07/2017,2200385374,"6,809.55",Carillion LGS Ltd
http://statistics.data.gov.uk/id/local-authority/38,Oxfordshire County Council,CNTRACT & PERF MGMNT,5526,Payments to Private Contractors,17/07/2017,2200379546,"7,990.00",Carillion LGS Ltd
http://statistics.data.gov.uk/id/local-authority/38,Oxfordshire County Council,HARD FM,3787,Premises Repairs,27/07/2017,2200385364,"10,702.98",Carillion LGS Ltd
http://statistics.data.gov.uk/id/local-authority/38,Oxfordshire County Council,CAP CHRGES-PRIM SCHS,8102,Payments to main contractor,17/07/2017,2200379071,"11,273.33",Carillion LGS Ltd
http://statistics.data.gov.uk/id/local-authority/38,Oxfordshire County Council,CAP CHRGES-PREM,8102,Payments to main contractor,17/07/2017,2200379076,"13,759.89",Carillion LGS Ltd
http://statistics.data.gov.uk/id/local-authority/38,Oxfordshire County Council,CAP CHRGES-PRIM SCHS,8102,Payments to main contractor,10/07/2017,2200375838,"13,986.01",Carillion LGS Ltd
http://statistics.data.gov.uk/id/local-authority/38,Oxfordshire County Council,CAP CHRGES-SPEC SCHS,8102,Payments to main contractor,17/07/2017,2200379058,"14,076.65",Carillion LGS Ltd
http://statistics.data.gov.uk/id/local-authority/38,Oxfordshire County Council,HARD FM,3787,Premises Repairs,27/07/2017,2200385377,"14,247.58",Carillion LGS Ltd
http://statistics.data.gov.uk/id/local-authority/38,Oxfordshire County Council,CAP CHRGES-PREM,8102,Payments to main contractor,17/07/2017,2200379060,"14,927.70",Carillion LGS Ltd
http://statistics.data.gov.uk/id/local-authority/38,Oxfordshire County Council,HARD FM,3787,Premises Repairs,18/07/2017,2200380475,"15,111.63",Carillion LGS Ltd
http://statistics.data.gov.uk/id/local-authority/38,Oxfordshire County Council,CAP CHRGES-PREM,8102,Payments to main contractor,17/07/2017,2200379073,"15,694.95",Carillion LGS Ltd
http://statistics.data.gov.uk/id/local-authority/38,Oxfordshire County Council,CAP CHRGES-PRIM SCHS,8102,Payments to main contractor,18/07/2017,2200380137,"20,114.18",Carillion LGS Ltd
http://statistics.data.gov.uk/id/local-authority/38,Oxfordshire County Council,HARD FM,3787,Premises Repairs,27/07/2017,2200385380,"20,409.63",Carillion LGS Ltd
http://statistics.data.gov.uk/id/local-authority/38,Oxfordshire County Council,HARD FM,3787,Premises Repairs,27/07/2017,2200385382,"20,591.91",Carillion LGS Ltd
http://statistics.data.gov.uk/id/local-authority/38,Oxfordshire County Council,CAP CHRGES-PRIM SCHS,8102,Payments to main contractor,31/07/2017,2200386410,"21,603.99",Carillion LGS Ltd
http://statistics.data.gov.uk/id/local-authority/38,Oxfordshire County Council,CORPORATE LANDLORD,8102,Payments to main contractor,17/07/2017,2200379109,"22,531.35",Carillion LGS Ltd
http://statistics.data.gov.uk/id/local-authority/38,Oxfordshire County Council,CAP CHRGES-PRIM SCHS,8102,Payments to main contractor,18/07/2017,2200380122,"26,138.89",Carillion LGS Ltd
http://statistics.data.gov.uk/id/local-authority/38,Oxfordshire County Council,CAP CHRGES-SEC SCHS,8102,Payments to main contractor,17/07/2017,2200379431,"53,627.20",Carillion LGS Ltd
http://statistics.data.gov.uk/id/local-authority/38,Oxfordshire County Council,CORPORATE LANDLORD,8102,Payments to main contractor,17/07/2017,2200379062,"72,838.49",Carillion LGS Ltd
http://statistics.data.gov.uk/id/local-authority/38,Oxfordshire County Council,CAP CHRGES-SEC SCHS,8004,Design Consultant,18/07/2017,2200380229,"77,804.99",Carillion LGS Ltd
http://statistics.data.gov.uk/id/local-authority/38,Oxfordshire County Council,CAP CHRGES-PRIM SCHS,8102,Payments to main contractor,18/07/2017,2200379712,"90,047.85",Carillion LGS Ltd
http://statistics.data.gov.uk/id/local-authority/38,Oxfordshire County Council,CAP CHRGES-PRIM SCHS,8102,Payments to main contractor,18/07/2017,2200380136,"101,112.40",Carillion LGS Ltd
http://statistics.data.gov.uk/id/local-authority/38,Oxfordshire County Council,CAP CHRGES-PRIM SCHS,8102,Payments to main contractor,19/07/2017,2200381159,"101,112.40",Carillion LGS Ltd
http://statistics.data.gov.uk/id/local-authority/38,Oxfordshire County Council,CAP NEW DIRECTIONS,8102,Payments to main contractor,17/07/2017,2200379108,"107,651.98",Carillion LGS Ltd
http://statistics.data.gov.uk/id/local-authority/38,Oxfordshire County Council,CAP CHRGES-PRIM SCHS,8102,Payments to main contractor,18/07/2017,2200379709,"109,411.77",Carillion LGS Ltd
http://statistics.data.gov.uk/id/local-authority/38,Oxfordshire County Council,Care Packages & Placements- OP Health,5692,,13/07/2017,3110246529,"8,239.80",Caring Homes Healthcare Group Ltd
http://statistics.data.gov.uk/id/local-authority/38,Oxfordshire County Council,Agency HOLDING code,2040,Agency Staff,11/07/2017,2200376927,"95,199.70",Caritas Recruitment Ltd
http://statistics.data.gov.uk/id/local-authority/38,Oxfordshire County Council,Agency HOLDING code,2040,Agency Staff,12/07/2017,2200377361,"100,488.86",Caritas Recruitment Ltd
http://statistics.data.gov.uk/id/local-authority/38,Oxfordshire County Council,FOSTERING MAIN,5415,Residential Activities,19/07/2017,3110247408,563.16,Redacted Personal Data
http://statistics.data.gov.uk/id/local-authority/38,Oxfordshire County Council,LD CLIENTS NORTH,5899,Social Care - Direct Payments,12/07/2017,3110245246,"1,863.64",Redacted Personal Data
http://statistics.data.gov.uk/id/local-authority/38,Oxfordshire County Council,Care Packages & Placements- Older People,5899,Social Care - Direct Payments,12/07/2017,3110245528,608,Redacted Personal Data
http://statistics.data.gov.uk/id/local-authority/38,Oxfordshire County Council,,1441,Uncleared Misc Income Receipts,06/07/2017,3110243501,596.16,Redacted Personal Data
http://statistics.data.gov.uk/id/local-authority/38,Oxfordshire County Council,Care Packages & Placements- PD - OCC,5899,Social Care - Direct Payments,12/07/2017,3110244818,"3,040.00",Redacted Personal Data
http://statistics.data.gov.uk/id/local-authority/38,Oxfordshire County Council,PD COMM SUPP AB'DON,5899,Social Care - Direct Payments,12/07/2017,3110244025,"5,060.00",Redacted Personal Data
http://statistics.data.gov.uk/id/local-authority/38,Oxfordshire County Council,FOSTERING MAIN,5415,Residential Activities,19/07/2017,3110247382,506.03,Redacted Personal Data
http://statistics.data.gov.uk/id/local-authority/38,Oxfordshire County Council,CONCESSIONARY FARES,5781,Payments to Transport Operators,31/07/2017,2200386050,"18,055.06",Carousel Buses Ltd
http://statistics.data.gov.uk/id/local-authority/38,Oxfordshire County Council,OneTransport Project,5526,Payments to Private Contractors,28/07/2017,2200385912,"23,980.00",Carra UK Limited
http://statistics.data.gov.uk/id/local-authority/38,Oxfordshire County Council,MAINSTREAM-PRIMARY,4330,Transport to School Activities,04/07/2017,3110242879,684,Carriage Company
http://statistics.data.gov.uk/id/local-authority/38,Oxfordshire County Council,MAINSTREAM-SECONDARY,4330,Transport to School Activities,04/07/2017,3110242878,950,Carriage Company
http://statistics.data.gov.uk/id/local-authority/38,Oxfordshire County Council,Care Packages & Placements- Older People,5689,,26/07/2017,3110250454,555.26,Casa Care Ltd
http://statistics.data.gov.uk/id/local-authority/38,Oxfordshire County Council,CSB - BANBURY,5689,,26/07/2017,3110250449,615.68,Casa Care Ltd
http://statistics.data.gov.uk/id/local-authority/38,Oxfordshire County Council,CSB - BANBURY,5689,,26/07/2017,3110250457,685.59,Casa Care Ltd
http://statistics.data.gov.uk/id/local-authority/38,Oxfordshire County Council,CSB - BANBURY,5689,,26/07/2017,3110250441,706.38,Casa Care Ltd
http://statistics.data.gov.uk/id/local-authority/38,Oxfordshire County Council,Care Packages & Placements- Older People,5689,,26/07/2017,3110250443,712.46,Casa Care Ltd
http://statistics.data.gov.uk/id/local-authority/38,Oxfordshire County Council,CSB - BANBURY,5689,,26/07/2017,3110250455,714.65,Casa Care Ltd
http://statistics.data.gov.uk/id/local-authority/38,Oxfordshire County Council,CSB - BANBURY,5689,,26/07/2017,3110250445,834.04,Casa Care Ltd
http://statistics.data.gov.uk/id/local-authority/38,Oxfordshire County Council,Care Packages & Placements- Older People,5689,,26/07/2017,3110250451,834.63,Casa Care Ltd
http://statistics.data.gov.uk/id/local-authority/38,Oxfordshire County Council,Care Packages & Placements- Older People,5689,,26/07/2017,3110250452,951.14,Casa Care Ltd
http://statistics.data.gov.uk/id/local-authority/38,Oxfordshire County Council,CSB - BANBURY,5689,,26/07/2017,3110250450,989.69,Casa Care Ltd
http://statistics.data.gov.uk/id/local-authority/38,Oxfordshire County Council,CSB - BANBURY,5689,,26/07/2017,3110250460,989.98,Casa Care Ltd
http://statistics.data.gov.uk/id/local-authority/38,Oxfordshire County Council,CSB - BANBURY,5689,,26/07/2017,3110250446,"1,011.27",Casa Care Ltd
http://statistics.data.gov.uk/id/local-authority/38,Oxfordshire County Council,CSB - BANBURY,5689,,26/07/2017,3110250456,"1,011.55",Casa Care Ltd
http://statistics.data.gov.uk/id/local-authority/38,Oxfordshire County Council,PD COMM SUPP BANB,5689,,26/07/2017,3110250440,"2,428.33",Casa Care Ltd
http://statistics.data.gov.uk/id/local-authority/38,Oxfordshire County Council,PD COMM SUPP BANB,5689,,06/07/2017,3110243469,"3,959.76",Casa Care Ltd
http://statistics.data.gov.uk/id/local-authority/38,Oxfordshire County Council,PLAYGROUP FEES,5537,Payments to Other Establishments,27/07/2017,3110251677,"1,108.80",Castle Pre-School (Banbury)
http://statistics.data.gov.uk/id/local-authority/38,Oxfordshire County Council,GYPSY & TRAVELLER SV,3956,Non System - Water - Metered,14/07/2017,2200378430,"1,312.46",Castle Water Ltd
http://statistics.data.gov.uk/id/local-authority/38,Oxfordshire County Council,GYPSY & TRAVELLER SV,3956,Non System - Water - Metered,14/07/2017,2200378447,"5,283.42",Castle Water Ltd
http://statistics.data.gov.uk/id/local-authority/38,Oxfordshire County Council,CSB - BANBURY,5899,Social Care - Direct Payments,12/07/2017,3110244712,976,Redacted Personal Data
http://statistics.data.gov.uk/id/local-authority/38,Oxfordshire County Council,MH SPOT FUNDING,5686,,13/07/2017,3110246461,"6,642.86",Catherine Care Ltd
http://statistics.data.gov.uk/id/local-authority/38,Oxfordshire County Council,SEN TRANSPORT,4330,Transport to School Activities,28/07/2017,3110251974,509.76,Redacted Personal Data
http://statistics.data.gov.uk/id/local-authority/38,Oxfordshire County Council,OTHER NON-HOUSEHOLD,5526,Payments to Private Contractors,13/07/2017,2200378009,"1,110.32",Cawleys Ltd
http://statistics.data.gov.uk/id/local-authority/38,Oxfordshire County Council,OPPB CONTCARE RNCC,5687,,13/07/2017,3110246436,"191,664.53",Cedar Court Care Home
http://statistics.data.gov.uk/id/local-authority/38,Oxfordshire County Council,OPPB FAST TRACK,5691,,28/07/2017,3110251687,926.76,Cedarwood Care
http://statistics.data.gov.uk/id/local-authority/38,Oxfordshire County Council,OPPB FAST TRACK,5691,,21/07/2017,3110249227,"5,375.00",Cedarwood Care
http://statistics.data.gov.uk/id/local-authority/38,Oxfordshire County Council,Mockingbird,4861,Hired and Contracted Services,04/07/2017,2200373770,965,Censeo Oxford Ltd
http://statistics.data.gov.uk/id/local-authority/38,Oxfordshire County Council,CW ADOPT & FOST TEAM,4861,Hired and Contracted Services,05/07/2017,2200373925,"1,000.00",Censeo Oxford Ltd
http://statistics.data.gov.uk/id/local-authority/38,Oxfordshire County Council,CW ADOPT & FOST TEAM,4861,Hired and Contracted Services,05/07/2017,2200373928,"2,479.00",Censeo Oxford Ltd
http://statistics.data.gov.uk/id/local-authority/38,Oxfordshire County Council,CARE HOME SPOT WEST,5687,,13/07/2017,3110246499,"2,803.06",Central London Community
http://statistics.data.gov.uk/id/local-authority/38,Oxfordshire County Council,PROCUREMENT,4232,Vehicle Fuel,24/07/2017,2200383652,684.69,Certas Energy UK Ltd
http://statistics.data.gov.uk/id/local-authority/38,Oxfordshire County Council,PROCUREMENT,4232,Vehicle Fuel,17/07/2017,2200379252,721.68,Certas Energy UK Ltd
http://statistics.data.gov.uk/id/local-authority/38,Oxfordshire County Council,PROCUREMENT,4232,Vehicle Fuel,31/07/2017,2200386128,909.3,Certas Energy UK Ltd
http://statistics.data.gov.uk/id/local-authority/38,Oxfordshire County Council,PROCUREMENT,4232,Vehicle Fuel,21/07/2017,2200382810,912.61,Certas Energy UK Ltd
http://statistics.data.gov.uk/id/local-authority/38,Oxfordshire County Council,PROCUREMENT,4232,Vehicle Fuel,17/07/2017,2200379250,"1,194.38",Certas Energy UK Ltd
http://statistics.data.gov.uk/id/local-authority/38,Oxfordshire County Council,PROCUREMENT,4232,Vehicle Fuel,06/07/2017,2200374729,"1,345.80",Certas Energy UK Ltd
http://statistics.data.gov.uk/id/local-authority/38,Oxfordshire County Council,PROCUREMENT,4232,Vehicle Fuel,28/07/2017,2200385657,"1,547.63",Certas Energy UK Ltd
http://statistics.data.gov.uk/id/local-authority/38,Oxfordshire County Council,PROCUREMENT,4232,Vehicle Fuel,17/07/2017,2200379245,"1,623.78",Certas Energy UK Ltd
http://statistics.data.gov.uk/id/local-authority/38,Oxfordshire County Council,PROCUREMENT,4232,Vehicle Fuel,27/07/2017,2200385067,"1,644.84",Certas Energy UK Ltd
http://statistics.data.gov.uk/id/local-authority/38,Oxfordshire County Council,PROCUREMENT,4232,Vehicle Fuel,06/07/2017,2200374726,"2,691.60",Certas Energy UK Ltd
http://statistics.data.gov.uk/id/local-authority/38,Oxfordshire County Council,PROCUREMENT,4232,Vehicle Fuel,24/07/2017,2200383651,"2,735.10",Certas Energy UK Ltd
http://statistics.data.gov.uk/id/local-authority/38,Oxfordshire County Council,PROCUREMENT,4232,Vehicle Fuel,06/07/2017,2200374724,"3,141.99",Certas Energy UK Ltd
http://statistics.data.gov.uk/id/local-authority/38,Oxfordshire County Council,VEHICLE RENEW FUND,4498,Health and Safety Equipment,10/07/2017,2200376341,988.5,CFM Services
http://statistics.data.gov.uk/id/local-authority/38,Oxfordshire County Council,LD CLIENTS NORTH,5686,,13/07/2017,3110246344,"58,994.04",Chacombe Park Care Home
http://statistics.data.gov.uk/id/local-authority/38,Oxfordshire County Council,Care Packages & Placements- Older People,5687,,13/07/2017,3110246166,"2,191.92",Chalgrove Care & Nursing Home Limit
http://statistics.data.gov.uk/id/local-authority/38,Oxfordshire County Council,PLAYGROUP FEES,5537,Payments to Other Establishments,27/07/2017,3110251667,539,Chalgrove Community Primary School
http://statistics.data.gov.uk/id/local-authority/38,Oxfordshire County Council,SEN Inclusion Fund,5537,Payments to Other Establishments,13/07/2017,3110246691,924,Chalgrove Community Primary School
http://statistics.data.gov.uk/id/local-authority/38,Oxfordshire County Council,Agency HOLDING code,2040,Agency Staff,11/07/2017,2200376472,"219,409.35",Champion Employment Ltd
http://statistics.data.gov.uk/id/local-authority/38,Oxfordshire County Council,MAINSTREAM-SECONDARY,4330,Transport to School Activities,13/07/2017,3110246587,727.2,Chapel Cars
http://statistics.data.gov.uk/id/local-authority/38,Oxfordshire County Council,MAINSTREAM-PRIMARY,4330,Transport to School Activities,13/07/2017,3110246584,"2,090.70",Chapel Cars
